Workbook

Sheet Menu
F2: This file contains the excel tables of the rates contained in the published Schedule of Standard Prices for Eskom tariffs.
F4: 2023/24 SCHEDULE OF STANDARD PRICES FOR ESKOM TARIFFS 1 April 2023 to 31 March 2024 for Non-Local Authority supplies, and 1 July 2023 to 30 June 2024 for Local Authority supplies.
H6: Click on the arrow to select the tariff
H7: Non-local authority (NLA) | J7: Local Authority (Munic)
G8: WEPS | H8: u | J8: u
F9: ê | G9: Megaflex | H9: u | J9: u
F10: ê | G10: Megaflex Gen | H10: u | J10: n/a
F11: ê | G11: Nightsave Large Urban | H11: u | J11: u
F12: ê | G12: Miniflex | H12: u | J12: u
F13: ê | G13: Nightsave Small Urban | H13: u | J13: u
F14: ê | G14: Businessrate | H14: u | J14: u
F15: ê | G15: Public lighting | H15: u | J15: u
F16: ê | G16: Ruraflex | H16: u | J16: u
F17: ê | G17: Ruraflex Gen | H17: u | J17: n/a
F18: ê | G18: Landrate tariffs | H18: u | J18: u
F19: ê | G19: Homepower tariffs | H19: u | J19: u
F20: ê | G20: Homeflex | H20: u | J20: n/a
F21: ê | G21: Homelight tariffs | H21: u | J21: n/a
F22: ê | G22: Excess NCC charges | H22: u | J22: u
F23: ê | G23: Transmission use of system charges | H23: u | J23: n/a
F24: ê | G24: Distribution use of system charges | H24: u | J24: n/a
F25: ê | G25: Loss factors | H25: u | J25: u
F26: ê | G26: Excess network capacity charges | H26: u | J26: u
F27: ê | G27: Generation reconciliations | H27: u | J27: u

Sheet WEPS NLA
G1: Back to menu
A2: Non-municipal | G2: WEPS – Non-local Authority
J4: Active energy charge [c/kWh] | V4: Transmission network charges [R/kVA/m]
H5: Transmission zone | J5: High demand season [Jun - Aug] | P5: Low demand season [Sep - May]
I6: Voltage | J6: Peak | L6: Standard | N6: Off Peak | P6: Peak | R6: Standard | T6: Off Peak
A7: Tariff | B7: Tariff nameBillcode | C7: Tx zone | D7: Voltage | E7: Billcode | K7: VAT incl | M7: VAT incl | O7: VAT incl | Q7: VAT incl | S7: VAT incl | U7: VAT incl | W7: VAT incl
A8: WEPS | B8: We | C8: 0 | D8: 1 | E8: =B8&C8&D8&IF($A$2="Non-municipal","N",IF($A$2="Municiple","Y","error")) -> We01N | H8: ≤ 300km | I8: < 500V | J8: 542.79 | K8: =ROUND(J8 * (1 + VAT), 2) -> 624.21 | L8: 165.14 | M8: =ROUND(L8 * (1 + VAT), 2) -> 189.91 | N8: 90.17 | O8: =ROUND(N8 * (1 + VAT), 2) -> 103.7 | P8: 177.74 | Q8: =ROUND(P8 * (1 + VAT), 2) -> 204.4 | R8: 122.64 | S8: =ROUND(R8 * (1 + VAT), 2) -> 141.04 | T8: 78.19 | U8: =ROUND(T8 * (1 + VAT), 2) -> 89.92 | V8: 15.53 | W8: =ROUND(V8 * (1 + VAT), 2) -> 17.86
A9: WEPS | B9: We | C9: 0 | D9: 2 | E9: We02N | I9: ≥ 500V & < 66kV | J9: 534.27 | K9: =ROUND(J9 * (1 + VAT), 2) -> 614.41 | L9: 161.85 | M9: 186.13 | N9: 87.91 | O9: 101.1 | P9: 174.26 | Q9: 200.4 | R9: 119.96 | S9: 137.95 | T9: 76.1 | U9: 87.52 | V9: 14.19 | W9: 16.32
A10: WEPS | B10: We | C10: 0 | D10: 3 | E10: We03N | I10: ≥ 66kV & ≤ 132kV | J10: 517.35 | K10: 594.95 | L10: 156.71 | M10: 180.22 | N10: 85.12 | O10: 97.89 | P10: 168.78 | Q10: 194.1 | R10: 116.13 | S10: 133.55 | T10: 73.72 | U10: 84.78 | V10: 13.81 | W10: 15.88
A11: WEPS | B11: We | C11: 0 | D11: 4 | E11: We04N | I11: > 132kV* | J11: 487.58 | K11: 560.72 | L11: 147.68 | M11: 169.83 | N11: 80.22 | O11: 92.25 | P11: 159.1 | Q11: 182.97 | R11: 109.47 | S11: 125.89 | T11: 69.46 | U11: 79.88 | V11: 17.47 | W11: 20.09
A12: WEPS | B12: We | C12: 1 | D12: 1 | E12: We11N | H12: > 300km and ≤ 600km | I12: < 500V | J12: 547.21 | K12: 629.29 | L12: 165.8 | M12: 190.67 | N12: 90.02 | O12: 103.52 | P12: 178.52 | Q12: 205.3 | R12: 122.91 | S12: 141.35 | T12: 77.98 | U12: 89.68 | V12: 15.64 | W12: 17.99
A13: WEPS | B13: We | C13: 1 | D13: 2 | E13: We12N | I13: ≥ 500V & < 66kV | J13: 539.6 | K13: 620.54 | L13: 163.45 | M13: 187.97 | N13: 88.76 | O13: 102.07 | P13: 176.05 | Q13: 202.46 | R13: 121.14 | S13: 139.31 | T13: 76.85 | U13: 88.38 | V13: 14.32 | W13: 16.47
A14: WEPS | B14: We | C14: 1 | D14: 3 | E14: We13N | I14: ≥ 66kV & ≤ 132kV | J14: 522.43 | K14: 600.79 | L14: 158.24 | M14: 181.98 | N14: 85.91 | O14: 98.8 | P14: 170.41 | Q14: 195.97 | R14: 117.29 | S14: 134.88 | T14: 74.42 | U14: 85.58 | V14: 13.92 | W14: 16.01
A15: WEPS | B15: We | C15: 1 | D15: 4 | E15: We14N | I15: > 132kV* | J15: 492.47 | K15: 566.34 | L15: 149.21 | M15: 171.59 | N15: 80.97 | O15: 93.12 | P15: 160.63 | Q15: 184.72 | R15: 110.53 | S15: 127.11 | T15: 70.11 | U15: 80.63 | V15: 17.62 | W15: 20.26
A16: WEPS | B16: We | C16: 2 | D16: 1 | E16: We21N | H16: > 600km and ≤ 900km | I16: < 500V | J16: 552.66 | K16: 635.56 | L16: 167.42 | M16: 192.53 | N16: 90.89 | O16: 104.52 | P16: 180.28 | Q16: 207.32 | R16: 124.1 | S16: 142.72 | T16: 78.7 | U16: 90.51 | V16: 15.82 | W16: 18.19
A17: WEPS | B17: We | C17: 2 | D17: 2 | E17: We22N | I17: ≥ 500V & < 66kV | J17: 545.02 | K17: 626.77 | L17: 165.13 | M17: 189.9 | N17: 89.66 | O17: 103.11 | P17: 177.79 | Q17: 204.46 | R17: 122.38 | S17: 140.74 | T17: 77.63 | U17: 89.27 | V17: 14.45 | W17: 16.62
A18: WEPS | B18: We | C18: 2 | D18: 3 | E18: We23N | I18: ≥ 66kV & ≤ 132kV | J18: 527.77 | K18: 606.94 | L18: 159.88 | M18: 183.86 | N18: 86.8 | O18: 99.82 | P18: 172.15 | Q18: 197.97 | R18: 118.51 | S18: 136.29 | T18: 75.19 | U18: 86.47 | V18: 14 | W18: 16.1
A19: WEPS | B19: We | C19: 2 | D19: 4 | E19: We24N | I19: > 132kV* | J19: 497.43 | K19: 572.04 | L19: 150.66 | M19: 173.26 | N19: 81.87 | O19: 94.15 | P19: 162.25 | Q19: 186.59 | R19: 111.66 | S19: 128.41 | T19: 70.86 | U19: 81.49 | V19: 17.88 | W19: 20.56
A20: WEPS | B20: We | C20: 3 | D20: 1 | E20: We31N | H20: > 900km | I20: < 500V | J20: 558.22 | K20: 641.95 | L20: 169.17 | M20: 194.55 | N20: 91.81 | O20: 105.58 | P20: 182.12 | Q20: 209.44 | R20: 125.32 | S20: 144.12 | T20: 79.53 | U20: 91.46 | V20: 15.92 | W20: 18.31
A21: WEPS | B21: We | C21: 3 | D21: 2 | E21: We32N | I21: ≥ 500V & < 66kV | J21: 550.44 | K21: 633.01 | L21: 166.73 | M21: 191.74 | N21: 90.51 | O21: 104.09 | P21: 179.53 | Q21: 206.46 | R21: 123.54 | S21: 142.07 | T21: 78.39 | U21: 90.15 | V21: 14.62 | W21: 16.81
A22: WEPS | B22: We | C22: 3 | D22: 3 | E22: We33N | I22: ≥ 66kV & ≤ 132kV | J22: 533.06 | K22: 613.02 | L22: 161.46 | M22: 185.68 | N22: 87.67 | O22: 100.82 | P22: 173.87 | Q22: 199.95 | R22: 119.67 | S22: 137.62 | T22: 75.92 | U22: 87.31 | V22: 14.13 | W22: 16.25
A23: WEPS | B23: We | C23: 3 | D23: 4 | E23: We34N | I23: > 132kV* | J23: 502.27 | K23: 577.61 | L23: 152.22 | M23: 175.05 | N23: 82.7 | O23: 95.11 | P23: 163.94 | Q23: 188.53 | R23: 112.88 | S23: 129.81 | T23: 71.64 | U23: 82.39 | V23: 18.01 | W23: 20.71
I24: * 132 kV or Transmission connected
H25: Distribution network charges
H26: Voltage | J26: Network capacity charge [R/kVA/m] | L26: Network demand charge [R/kVA/m] | N26: Urban low voltage subsidy charge [R/kVA/m]
Q27: Voltage | S27: Ancillary service charge [c/kWh]
A28: Tariff | B28: Tariff nameBillcode | C28: Tx zone | D28: Voltage | E28: Billcode | K28: VAT incl | M28: VAT incl | O28: VAT incl | T28: VAT incl
A29: WEPS | B29: We | C29: 0 | D29: 1 | E29: We01N | H29: < 500V | J29: 30.86 | K29: =ROUND(J29 * (1 + VAT), 2) -> 35.49 | L29: 58.51 | M29: =ROUND(L29 * (1 + VAT), 2) -> 67.29 | N29: 0 | O29: =ROUND(N29 * (1 + VAT), 2) -> 0 | Q29: < 500V | S29: 0.71 | T29: =ROUND(S29 * (1 + VAT), 2) -> 0.82
A30: WEPS | B30: We | C30: 0 | D30: 2 | E30: We02N | H30: ≥ 500V & < 66kV | J30: 28.3 | K30: =ROUND(J30 * (1 + VAT), 2) -> 32.55 | L30: 53.68 | M30: =ROUND(L30 * (1 + VAT), 2) -> 61.73 | N30: 0 | O30: =ROUND(N30 * (1 + VAT), 2) -> 0 | Q30: ≥ 500V & < 66kV | S30: 0.7 | T30: =ROUND(S30 * (1 + VAT), 2) -> 0.81
A31: WEPS | B31: We | C31: 0 | D31: 3 | E31: We03N | H31: ≥ 66kV & ≤ 132kV | J31: 10.11 | K31: =ROUND(J31 * (1 + VAT), 2) -> 11.63 | L31: 18.71 | M31: =ROUND(L31 * (1 + VAT), 2) -> 21.52 | N31: 24.93 | O31: =ROUND(N31 * (1 + VAT), 2) -> 28.67 | Q31: ≥ 66kV & ≤ 132kV | S31: 0.68 | T31: =ROUND(S31 * (1 + VAT), 2) -> 0.78
A32: WEPS | B32: We | C32: 0 | D32: 4 | E32: We04N | H32: > 132kV* | J32: 0 | K32: =ROUND(J32 * (1 + VAT), 2) -> 0 | L32: 0 | M32: =ROUND(L32 * (1 + VAT), 2) -> 0 | N32: 24.93 | O32: =ROUND(N32 * (1 + VAT), 2) -> 28.67 | Q32: > 132kV* | S32: 0.63 | T32: =ROUND(S32 * (1 + VAT), 2) -> 0.72
H33: * 132 kV or Transmission connected | Q33: * 132 kV or Transmission connected
H35: Customer categories | J35: Service charge [R/account/day] | L35: Administration charge [R/POD/day] | Q35: Reactive energy charge [c/kVArh]
A37: Tariff | B37: Tariff nameBillcode | C37: Tx zone | D37: Voltage | E37: Billcode | K37: VAT incl | M37: VAT incl | Q37: High season | S37: Low season
A38: WEPS | B38: We | C38: 0 | D38: 1 | E38: We01N | H38: ≤ 100 kVA | J38: 25.21 | K38: =ROUND(J38 * (1 + VAT), 2) -> 28.99 | L38: 5.54 | M38: =ROUND(L38 * (1 + VAT), 2) -> 6.37 | R38: VAT incl | T38: VAT incl
A39: WEPS | B39: We | C39: 0 | D39: 1 | E39: We01N | H39: > 100 kVA & ≤ 500 kVA | J39: 115.14 | K39: =ROUND(J39 * (1 + VAT), 2) -> 132.41 | L39: 32.3 | M39: =ROUND(L39 * (1 + VAT), 2) -> 37.15 | Q39: 24.95 | R39: =ROUND(Q39 * (1 + VAT), 2) -> 28.69 | S39: 0 | T39: =ROUND(S39 * (1 + VAT), 2) -> 0
A40: WEPS | B40: We | C40: 0 | D40: 1 | E40: We01N | H40: > 500 kVA & ≤ 1 MVA | J40: 354.25 | K40: =ROUND(J40 * (1 + VAT), 2) -> 407.39 | L40: 64.12 | M40: =ROUND(L40 * (1 + VAT), 2) -> 73.74
A41: WEPS | B41: We | C41: 0 | D41: 1 | E41: We01N | H41: > 1 MVA | J41: 354.25 | K41: =ROUND(J41 * (1 + VAT), 2) -> 407.39 | L41: 159.66 | M41: =ROUND(L41 * (1 + VAT), 2) -> 183.61
A42: WEPS | B42: We | C42: 0 | D42: 1 | E42: We01N | H42: Key customers | J42: 6942.01 | K42: =ROUND(J42 * (1 + VAT), 2) -> 7983.31 | L42: 221.7 | M42: =ROUND(L42 * (1 + VAT), 2) -> 254.96
H45: Electrification and rural network subsidy charge [c/kWh] | J45: Affordability subsidy charge [c/kWh] Only payable by non-local authority tariffs
A48: Tariff | B48: Tariff nameBillcode | C48: Tx zone | D48: Voltage | E48: Billcode | I48: VAT incl | K48: VAT incl
A49: WEPS | B49: We | C49: 0 | D49: 1 | E49: We01N | H49: 13.8 | I49: =ROUND(H49 * (1 + VAT), 2) -> 15.87 | J49: 7.37 | K49: =ROUND(J49 * (1 + VAT), 2) -> 8.48
H52: Active energy charge excluding losses [c/kWh]
H53: High demand season [Jun - Aug] | N53: Low demand season [Sep - May]
H54: Peak | J54: Standard | L54: Off Peak | N54: Peak | P54: Standard | R54: Off Peak
A55: Tariff | B55: Tariff nameBillcode | C55: Tx zone | D55: Voltage | E55: Billcode | I55: VAT incl | K55: VAT incl | M55: VAT incl | O55: VAT incl | Q55: VAT incl | S55: VAT incl
A56: WEPS | B56: We | C56: 0 | D56: 1 | E56: We01N | H56: =ROUND(J11/'Loss Factors'!$T$6, 2) -> 482.42 | I56: =ROUND(H56 * (1 + VAT), 2) -> 554.78 | J56: =ROUND(L11/'Loss Factors'!$T$6, 2) -> 146.12 | K56: =ROUND(J56 * (1 + VAT), 2) -> 168.04 | L56: =ROUND(N11/'Loss Factors'!$T$6, 2) -> 79.37 | M56: =ROUND(L56 * (1 + VAT), 2) -> 91.28 | N56: =ROUND(P11/'Loss Factors'!$T$6, 2) -> 157.42 | O56: =ROUND(N56 * (1 + VAT), 2) -> 181.03 | P56: =ROUND(R11/'Loss Factors'!$T$6, 2) -> 108.31 | Q56: =ROUND(P56 * (1 + VAT), 2) -> 124.56 | R56: =ROUND(T11/'Loss Factors'!$T$6, 2) -> 68.72 | S56: =ROUND(R56 * (1 + VAT), 2) -> 79.03
H58: Active energy charge excluding losses and enviromental levy [c/kWh]
H59: High demand season [Jun - Aug] | N59: Low demand season [Sep - May]
H60: Peak | J60: Standard | L60: Off Peak | N60: Peak | P60: Standard | R60: Off Peak
A61: Tariff | B61: Tariff nameBillcode | C61: Tx zone | D61: Voltage | E61: Billcode | I61: VAT incl | K61: VAT incl | M61: VAT incl | O61: VAT incl | Q61: VAT incl | S61: VAT incl
A62: WEPS | B62: We | C62: 0 | D62: 1 | E62: We01N | H62: =H56-ROUND('Env levy'!$C$8,2) -> 478.93 | I62: =ROUND(H62 * (1 + VAT), 2) -> 550.77 | J62: =J56-ROUND('Env levy'!$C$8,2) -> 142.63 | K62: =ROUND(J62 * (1 + VAT), 2) -> 164.02 | L62: =L56-ROUND('Env levy'!$C$8,2) -> 75.88 | M62: =ROUND(L62 * (1 + VAT), 2) -> 87.26 | N62: =N56-ROUND('Env levy'!$C$8,2) -> 153.93 | O62: =ROUND(N62 * (1 + VAT), 2) -> 177.02 | P62: =P56-ROUND('Env levy'!$C$8,2) -> 104.82 | Q62: =ROUND(P62 * (1 + VAT), 2) -> 120.54 | R62: =R56-ROUND('Env levy'!$C$8,2) -> 65.23 | S62: =ROUND(R62 * (1 + VAT), 2) -> 75.01

Sheet WEPS Munic
G1: Back to menu
A2: Municiple | G2: WEPS – Local Authority
J4: Active energy charge [c/kWh] | V4: Transmission network charges [R/kVA/m]
H5: Transmission zone | J5: High demand season [Jun - Aug] | P5: Low demand season [Sep - May]
I6: Voltage | J6: Peak | L6: Standard | N6: Off Peak | P6: Peak | R6: Standard | T6: Off Peak
A7: Tariff | B7: Tariff nameBillcode | C7: Tx zone | D7: Voltage | E7: Billcode | K7: VAT incl | M7: VAT incl | O7: VAT incl | Q7: VAT incl | S7: VAT incl | U7: VAT incl | W7: VAT incl
A8: WEPS | B8: We | C8: 0 | D8: 1 | E8: =B8&C8&D8&IF($A$2="Non-municipal","N",IF($A$2="Municiple","Y","error")) -> We01Y | H8: ≤ 300km | I8: < 500V | J8: 562.5 | K8: =ROUND(J8 * (1 + VAT), 2) -> 646.88 | L8: 171.17 | M8: =ROUND(L8 * (1 + VAT), 2) -> 196.85 | N8: 93.4 | O8: =ROUND(N8 * (1 + VAT), 2) -> 107.41 | P8: 184.15 | Q8: =ROUND(P8 * (1 + VAT), 2) -> 211.77 | R8: 127.09 | S8: =ROUND(R8 * (1 + VAT), 2) -> 146.15 | T8: 81.01 | U8: =ROUND(T8 * (1 + VAT), 2) -> 93.16 | V8: 15.68 | W8: =ROUND(V8 * (1 + VAT), 2) -> 18.03
A9: WEPS | B9: We | C9: 0 | D9: 2 | E9: =B9&C9&D9&IF($A$2="Non-municipal","N",IF($A$2="Municiple","Y","error")) -> We02Y | I9: ≥ 500V & < 66kV | J9: 553.63 | K9: 636.67 | L9: 167.74 | M9: 192.9 | N9: 91.11 | O9: 104.78 | P9: 180.6 | Q9: 207.69 | R9: 124.29 | S9: 142.93 | T9: 78.88 | U9: 90.71 | V9: 14.3 | W9: 16.45
A10: WEPS | B10: We | C10: 0 | D10: 3 | E10: We03Y | I10: ≥ 66kV & ≤ 132kV | J10: 536.17 | K10: 616.6 | L10: 162.42 | M10: 186.78 | N10: 88.21 | O10: 101.44 | P10: 174.91 | Q10: 201.15 | R10: 120.41 | S10: 138.47 | T10: 76.37 | U10: 87.83 | V10: 13.91 | W10: 16
A11: WEPS | B11: We | C11: 0 | D11: 4 | E11: We04Y | I11: > 132kV* | J11: 505.3 | K11: 581.1 | L11: 153.07 | M11: 176.03 | N11: 83.12 | O11: 95.59 | P11: 164.83 | Q11: 189.55 | R11: 113.44 | S11: 130.46 | T11: 71.96 | U11: 82.75 | V11: 17.62 | W11: 20.26
A12: WEPS | B12: We | C12: 1 | D12: 1 | E12: We11Y | H12: > 300km and ≤ 600km | I12: < 500V | J12: 567.09 | K12: 652.15 | L12: 171.78 | M12: 197.55 | N12: 93.27 | O12: 107.26 | P12: 184.99 | Q12: 212.74 | R12: 127.35 | S12: 146.45 | T12: 80.8 | U12: 92.92 | V12: 15.74 | W12: 18.1
A13: WEPS | B13: We | C13: 1 | D13: 2 | E13: We12Y | I13: ≥ 500V & < 66kV | J13: 559.17 | K13: 643.05 | L13: 169.39 | M13: 194.8 | N13: 91.98 | O13: 105.78 | P13: 182.44 | Q13: 209.81 | R13: 125.55 | S13: 144.38 | T13: 79.64 | U13: 91.59 | V13: 14.47 | W13: 16.64
A14: WEPS | B14: We | C14: 1 | D14: 3 | E14: We13Y | I14: ≥ 66kV & ≤ 132kV | J14: 541.41 | K14: 622.62 | L14: 164 | M14: 188.6 | N14: 89.06 | O14: 102.42 | P14: 176.62 | Q14: 203.11 | R14: 121.54 | S14: 139.77 | T14: 77.09 | U14: 88.65 | V14: 14.03 | W14: 16.13
A15: WEPS | B15: We | C15: 1 | D15: 4 | E15: We14Y | I15: > 132kV* | J15: 510.34 | K15: 586.89 | L15: 154.64 | M15: 177.84 | N15: 83.95 | O15: 96.54 | P15: 166.45 | Q15: 191.42 | R15: 114.6 | S15: 131.79 | T15: 72.67 | U15: 83.57 | V15: 17.79 | W15: 20.46
A16: WEPS | B16: We | C16: 2 | D16: 1 | E16: We21Y | H16: > 600km and ≤ 900km | I16: < 500V | J16: 572.75 | K16: 658.66 | L16: 173.51 | M16: 199.54 | N16: 94.2 | O16: 108.33 | P16: 186.81 | Q16: 214.83 | R16: 128.61 | S16: 147.9 | T16: 81.59 | U16: 93.83 | V16: 15.95 | W16: 18.34
A17: WEPS | B17: We | C17: 2 | D17: 2 | E17: We22Y | I17: ≥ 500V & < 66kV | J17: 564.81 | K17: 649.53 | L17: 171.08 | M17: 196.74 | N17: 92.92 | O17: 106.86 | P17: 184.28 | Q17: 211.92 | R17: 126.75 | S17: 145.76 | T17: 80.45 | U17: 92.52 | V17: 14.55 | W17: 16.73
A18: WEPS | B18: We | C18: 2 | D18: 3 | E18: We23Y | I18: ≥ 66kV & ≤ 132kV | J18: 546.93 | K18: 628.97 | L18: 165.65 | M18: 190.5 | N18: 89.94 | O18: 103.43 | P18: 178.35 | Q18: 205.1 | R18: 122.75 | S18: 141.16 | T18: 77.85 | U18: 89.53 | V18: 14.14 | W18: 16.26
A19: WEPS | B19: We | C19: 2 | D19: 4 | E19: We24Y | I19: > 132kV* | J19: 515.46 | K19: 592.78 | L19: 156.18 | M19: 179.61 | N19: 84.79 | O19: 97.51 | P19: 168.17 | Q19: 193.4 | R19: 115.73 | S19: 133.09 | T19: 73.41 | U19: 84.42 | V19: 18.03 | W19: 20.73
A20: WEPS | B20: We | C20: 3 | D20: 1 | E20: We31Y | H20: > 900km | I20: < 500V | J20: 578.48 | K20: 665.25 | L20: 175.27 | M20: 201.56 | N20: 95.17 | O20: 109.45 | P20: 188.73 | Q20: 217.04 | R20: 129.87 | S20: 149.35 | T20: 82.41 | U20: 94.77 | V20: 16.02 | W20: 18.42
A21: WEPS | B21: We | C21: 3 | D21: 2 | E21: We32Y | I21: ≥ 500V & < 66kV | J21: 570.45 | K21: 656.02 | L21: 172.79 | M21: 198.71 | N21: 93.85 | O21: 107.93 | P21: 186.06 | Q21: 213.97 | R21: 128.06 | S21: 147.27 | T21: 81.21 | U21: 93.39 | V21: 14.72 | W21: 16.93
A22: WEPS | B22: We | C22: 3 | D22: 3 | E22: We33Y | I22: ≥ 66kV & ≤ 132kV | J22: 552.43 | K22: 635.29 | L22: 167.36 | M22: 192.46 | N22: 90.88 | O22: 104.51 | P22: 180.2 | Q22: 207.23 | R22: 124 | S22: 142.6 | T22: 78.66 | U22: 90.46 | V22: 14.24 | W22: 16.38
A23: WEPS | B23: We | C23: 3 | D23: 4 | E23: We34Y | I23: > 132kV* | J23: 520.54 | K23: 598.62 | L23: 157.75 | M23: 181.41 | N23: 85.74 | O23: 98.6 | P23: 169.89 | Q23: 195.37 | R23: 116.94 | S23: 134.48 | T23: 74.22 | U23: 85.35 | V23: 18.14 | W23: 20.86
I24: * 132 kV or Transmission connected
H25: Distribution network charges
H26: Voltage | J26: Network capacity charge [R/kVA/m] | L26: Network demand charge [R/kVA/m] | N26: Urban low voltage subsidy charge [R/kVA/m]
Q27: Voltage | S27: Ancillary service charge [c/kWh]
A28: Tariff | B28: Tariff nameBillcode | C28: Tx zone | D28: Voltage | E28: Billcode | K28: VAT incl | M28: VAT incl | O28: VAT incl | T28: VAT incl
A29: WEPS | B29: We | C29: 0 | D29: 1 | E29: =B29&C29&D29&IF($A$2="Non-municipal","N",IF($A$2="Municiple","Y","error")) -> We01Y | H29: < 500V | J29: 31.26 | K29: =ROUND(J29 * (1 + VAT), 2) -> 35.95 | L29: 59.22 | M29: =ROUND(L29 * (1 + VAT), 2) -> 68.1 | N29: 0 | O29: =ROUND(N29 * (1 + VAT), 2) -> 0 | Q29: < 500V | S29: 0.73 | T29: =ROUND(S29 * (1 + VAT), 2) -> 0.84
A30: WEPS | B30: We | C30: 0 | D30: 2 | E30: =B30&C30&D30&IF($A$2="Non-municipal","N",IF($A$2="Municiple","Y","error")) -> We02Y | H30: ≥ 500V & < 66kV | J30: 28.65 | K30: =ROUND(J30 * (1 + VAT), 2) -> 32.95 | L30: 54.31 | M30: =ROUND(L30 * (1 + VAT), 2) -> 62.46 | N30: 0 | O30: =ROUND(N30 * (1 + VAT), 2) -> 0 | Q30: ≥ 500V & < 66kV | S30: 0.71 | T30: =ROUND(S30 * (1 + VAT), 2) -> 0.82
A31: WEPS | B31: We | C31: 0 | D31: 3 | E31: =B31&C31&D31&IF($A$2="Non-municipal","N",IF($A$2="Municiple","Y","error")) -> We03Y | H31: ≥ 66kV & ≤ 132kV | J31: 10.25 | K31: =ROUND(J31 * (1 + VAT), 2) -> 11.79 | L31: 18.96 | M31: =ROUND(L31 * (1 + VAT), 2) -> 21.8 | N31: 25.1 | O31: =ROUND(N31 * (1 + VAT), 2) -> 28.87 | Q31: ≥ 66kV & ≤ 132kV | S31: 0.65 | T31: =ROUND(S31 * (1 + VAT), 2) -> 0.75
A32: WEPS | B32: We | C32: 0 | D32: 4 | E32: =B32&C32&D32&IF($A$2="Non-municipal","N",IF($A$2="Municiple","Y","error")) -> We04Y | H32: > 132kV* | J32: 0 | K32: =ROUND(J32 * (1 + VAT), 2) -> 0 | L32: 0 | M32: =ROUND(L32 * (1 + VAT), 2) -> 0 | N32: 25.1 | O32: =ROUND(N32 * (1 + VAT), 2) -> 28.87 | Q32: > 132kV* | S32: 0.62 | T32: =ROUND(S32 * (1 + VAT), 2) -> 0.71
H33: * 132 kV or Transmission connected | Q33: * 132 kV or Transmission connected
H35: Customer categories | J35: Service charge [R/account/day] | L35: Administration charge [R/POD/day] | Q35: Reactive energy charge [c/kVArh]
A37: Tariff | B37: Tariff nameBillcode | C37: Tx zone | D37: Voltage | E37: Billcode | K37: VAT incl | M37: VAT incl | Q37: High season | S37: Low season
A38: WEPS | B38: We | C38: 0 | D38: 1 | E38: =B38&C38&D38&IF($A$2="Non-municipal","N",IF($A$2="Municiple","Y","error")) -> We01Y | H38: ≤ 100 kVA | J38: 25.38 | K38: =ROUND(J38 * (1 + VAT), 2) -> 29.19 | L38: 5.56 | M38: =ROUND(L38 * (1 + VAT), 2) -> 6.39 | R38: VAT incl | T38: VAT incl
A39: WEPS | B39: We | C39: 0 | D39: 1 | E39: =B39&C39&D39&IF($A$2="Non-municipal","N",IF($A$2="Municiple","Y","error")) -> We01Y | H39: > 100 kVA & ≤ 500 kVA | J39: 115.98 | K39: =ROUND(J39 * (1 + VAT), 2) -> 133.38 | L39: 32.48 | M39: =ROUND(L39 * (1 + VAT), 2) -> 37.35 | Q39: 25.11 | R39: =ROUND(Q39 * (1 + VAT), 2) -> 28.88 | S39: 0 | T39: =ROUND(S39 * (1 + VAT), 2) -> 0
A40: WEPS | B40: We | C40: 0 | D40: 1 | E40: =B40&C40&D40&IF($A$2="Non-municipal","N",IF($A$2="Municiple","Y","error")) -> We01Y | H40: > 500 kVA & ≤ 1 MVA | J40: 356.92 | K40: =ROUND(J40 * (1 + VAT), 2) -> 410.46 | L40: 64.61 | M40: =ROUND(L40 * (1 + VAT), 2) -> 74.3
A41: WEPS | B41: We | C41: 0 | D41: 1 | E41: =B41&C41&D41&IF($A$2="Non-municipal","N",IF($A$2="Municiple","Y","error")) -> We01Y | H41: > 1 MVA | J41: 356.92 | K41: =ROUND(J41 * (1 + VAT), 2) -> 410.46 | L41: 160.88 | M41: =ROUND(L41 * (1 + VAT), 2) -> 185.01
A42: WEPS | B42: We | C42: 0 | D42: 1 | E42: =B42&C42&D42&IF($A$2="Non-municipal","N",IF($A$2="Municiple","Y","error")) -> We01Y | H42: Key customers | J42: 6994.19 | K42: =ROUND(J42 * (1 + VAT), 2) -> 8043.32 | L42: 223.36 | M42: =ROUND(L42 * (1 + VAT), 2) -> 256.86
H45: Electrification and rural network subsidy charge [c/kWh]
A48: Tariff | B48: Tariff nameBillcode | C48: Tx zone | D48: Voltage | E48: Billcode | I48: VAT incl
A49: WEPS | B49: We | C49: 0 | D49: 1 | E49: =B49&C49&D49&IF($A$2="Non-municipal","N",IF($A$2="Municiple","Y","error")) -> We01Y | H49: 13.9 | I49: =ROUND(H49 * (1 + VAT), 2) -> 15.99
H52: Active energy charge excluding losses [c/kWh]
H53: High demand season [Jun - Aug] | N53: Low demand season [Sep - May]
H54: Peak | J54: Standard | L54: Off Peak | N54: Peak | P54: Standard | R54: Off Peak
A55: Tariff | B55: Tariff nameBillcode | C55: Tx zone | D55: Voltage | E55: Billcode | I55: VAT incl | K55: VAT incl | M55: VAT incl | O55: VAT incl | Q55: VAT incl | S55: VAT incl
A56: WEPS | B56: We | C56: 0 | D56: 1 | E56: =B56&C56&D56&IF($A$2="Non-municipal","N",IF($A$2="Municiple","Y","error")) -> We01Y | H56: =ROUND(J11/'Loss Factors'!$T$6, 2) -> 499.95 | I56: =ROUND(H56 * (1 + VAT), 2) -> 574.94 | J56: =ROUND(L11/'Loss Factors'!$T$6, 2) -> 151.45 | K56: =ROUND(J56 * (1 + VAT), 2) -> 174.17 | L56: =ROUND(N11/'Loss Factors'!$T$6, 2) -> 82.24 | M56: =ROUND(L56 * (1 + VAT), 2) -> 94.58 | N56: =ROUND(P11/'Loss Factors'!$T$6, 2) -> 163.08 | O56: =ROUND(N56 * (1 + VAT), 2) -> 187.54 | P56: =ROUND(R11/'Loss Factors'!$T$6, 2) -> 112.24 | Q56: =ROUND(P56 * (1 + VAT), 2) -> 129.08 | R56: =ROUND(T11/'Loss Factors'!$T$6, 2) -> 71.2 | S56: =ROUND(R56 * (1 + VAT), 2) -> 81.88
H58: Active energy charge excluding losses and enviromental levy [c/kWh]
H59: High demand season [Jun - Aug] | N59: Low demand season [Sep - May]
H60: Peak | J60: Standard | L60: Off Peak | N60: Peak | P60: Standard | R60: Off Peak
A61: Tariff | B61: Tariff nameBillcode | C61: Tx zone | D61: Voltage | E61: Billcode | I61: VAT incl | K61: VAT incl | M61: VAT incl | O61: VAT incl | Q61: VAT incl | S61: VAT incl
A62: WEPS | B62: We | C62: 0 | D62: 1 | E62: =B62&C62&D62&IF($A$2="Non-municipal","N",IF($A$2="Municiple","Y","error")) -> We01Y | H62: =H56-ROUND('Env levy'!$C$8,2) -> 496.46 | I62: =ROUND(H62 * (1 + VAT), 2) -> 570.93 | J62: =J56-ROUND('Env levy'!$C$8,2) -> 147.96 | K62: =ROUND(J62 * (1 + VAT), 2) -> 170.15 | L62: =L56-ROUND('Env levy'!$C$8,2) -> 78.75 | M62: =ROUND(L62 * (1 + VAT), 2) -> 90.56 | N62: =N56-ROUND('Env levy'!$C$8,2) -> 159.59 | O62: =ROUND(N62 * (1 + VAT), 2) -> 183.53 | P62: =P56-ROUND('Env levy'!$C$8,2) -> 108.75 | Q62: =ROUND(P62 * (1 + VAT), 2) -> 125.06 | R62: =R56-ROUND('Env levy'!$C$8,2) -> 67.71 | S62: =ROUND(R62 * (1 + VAT), 2) -> 77.87

Sheet Nightsave Large NLA
H1: Back to menu
A2: Non-municipal | G2: Nightsave Urban Large – Non-local Authority | AG2: check value
J4: Active energy charge [c/kWh] | N4: Energy demand charge [R/kVA/m] | R4: Transmission network charges [R/kVA/m]
H5: Transmission zone | J5: High demand season [Jun - Aug] | L5: Low demand season [Sep - May] | N5: High demand season [Jun - Aug] | P5: Low demand season [Sep - May]
I6: Voltage
A7: Tariff | B7: Tariff nameBillcode | C7: Tx zone | D7: Voltage | E7: Billcode | K7: VAT incl | M7: VAT incl | O7: VAT incl | Q7: VAT incl | S7: VAT incl
A8: Nightsave Large | B8: NL | C8: 0 | D8: 1 | E8: =B8&C8&D8&IF($A$2="Non-municipal","N",IF($A$2="Municiple","Y","error")) -> NL01N | H8: ≤ 300km | I8: < 500V | J8: 134.06 | K8: =ROUND(J8 * (1 + VAT), 2) -> 154.17 | L8: 104.21 | M8: =ROUND(L8 * (1 + VAT), 2) -> 119.84 | N8: 407.91 | O8: =ROUND(N8 * (1 + VAT), 2) -> 469.1 | P8: 57.01 | Q8: =ROUND(P8 * (1 + VAT), 2) -> 65.56 | R8: 15.53 | S8: =ROUND(R8 * (1 + VAT), 2) -> 17.86
A9: Nightsave Large | B9: NL | C9: 0 | D9: 2 | E9: =B9&C9&D9&IF($A$2="Non-municipal","N",IF($A$2="Municiple","Y","error")) -> NL02N | I9: ≥ 500V & < 66kV | J9: 126.94 | K9: 145.98 | L9: 99.08 | M9: 113.94 | N9: 394.8 | O9: 454.02 | P9: 55.18 | Q9: 63.46 | R9: 14.19 | S9: 16.32
A10: Nightsave Large | B10: NL | C10: 0 | D10: 3 | E10: NL03N | I10: ≥ 66kV & ≤ 132kV | J10: 126.01 | K10: 144.91 | L10: 97.9 | M10: 112.59 | N10: 380.43 | O10: 437.49 | P10: 53.18 | Q10: 61.16 | R10: 13.81 | S10: 15.88
A11: Nightsave Large | B11: NL | C11: 0 | D11: 4 | E11: NL04N | I11: > 132kV* | J11: 117.87 | K11: 135.55 | L11: 91.65 | M11: 105.4 | N11: 366.97 | O11: 422.02 | P11: 51.29 | Q11: 58.98 | R11: 17.47 | S11: 20.09
A12: Nightsave Large | B12: NL | C12: 1 | D12: 1 | E12: NL11N | H12: > 300km and ≤ 600km | I12: < 500V | J12: 135.85 | K12: 156.23 | L12: 105.36 | M12: 121.16 | N12: 412.11 | O12: 473.93 | P12: 57.56 | Q12: 66.19 | R12: 15.64 | S12: 17.99
A13: Nightsave Large | B13: NL | C13: 1 | D13: 2 | E13: NL12N | I13: ≥ 500V & < 66kV | J13: 129.61 | K13: 149.05 | L13: 101.11 | M13: 116.28 | N13: 398.82 | O13: 458.64 | P13: 55.67 | Q13: 64.02 | R13: 14.32 | S13: 16.47
A14: Nightsave Large | B14: NL | C14: 1 | D14: 3 | E14: NL13N | I14: ≥ 66kV & ≤ 132kV | J14: 128.65 | K14: 147.95 | L14: 99.89 | M14: 114.87 | N14: 384.19 | O14: 441.82 | P14: 53.68 | Q14: 61.73 | R14: 13.92 | S14: 16.01
A15: Nightsave Large | B15: NL | C15: 1 | D15: 4 | E15: NL14N | I15: > 132kV* | J15: 120.36 | K15: 138.41 | L15: 93.52 | M15: 107.55 | N15: 370.71 | O15: 426.32 | P15: 51.76 | Q15: 59.52 | R15: 17.62 | S15: 20.26
A16: Nightsave Large | B16: NL | C16: 2 | D16: 1 | E16: NL21N | H16: > 600km and ≤ 900km | I16: < 500V | J16: 137.11 | K16: 157.68 | L16: 106.38 | M16: 122.34 | N16: 416.33 | O16: 478.78 | P16: 58.15 | Q16: 66.87 | R16: 15.82 | S16: 18.19
A17: Nightsave Large | B17: NL | C17: 2 | D17: 2 | E17: NL22N | I17: ≥ 500V & < 66kV | J17: 130.89 | K17: 150.52 | L17: 102.16 | M17: 117.48 | N17: 402.82 | O17: 463.24 | P17: 56.3 | Q17: 64.75 | R17: 14.45 | S17: 16.62
A18: Nightsave Large | B18: NL | C18: 2 | D18: 3 | E18: NL23N | I18: ≥ 66kV & ≤ 132kV | J18: 129.9 | K18: 149.39 | L18: 100.88 | M18: 116.01 | N18: 388.07 | O18: 446.28 | P18: 54.22 | Q18: 62.35 | R18: 14 | S18: 16.1
A19: Nightsave Large | B19: NL | C19: 2 | D19: 4 | E19: NL24N | I19: > 132kV* | J19: 121.53 | K19: 139.76 | L19: 94.48 | M19: 108.65 | N19: 374.41 | O19: 430.57 | P19: 52.27 | Q19: 60.11 | R19: 17.88 | S19: 20.56
A20: Nightsave Large | B20: NL | C20: 3 | D20: 1 | E20: NL31N | H20: > 900km | I20: < 500V | J20: 138.58 | K20: 159.37 | L20: 107.45 | M20: 123.57 | N20: 420.37 | O20: 483.43 | P20: 58.71 | Q20: 67.52 | R20: 15.92 | S20: 18.31
A21: Nightsave Large | B21: NL | C21: 3 | D21: 2 | E21: NL32N | I21: ≥ 500V & < 66kV | J21: 132.16 | K21: 151.98 | L21: 103.14 | M21: 118.61 | N21: 406.85 | O21: 467.88 | P21: 56.8 | Q21: 65.32 | R21: 14.62 | S21: 16.81
A22: Nightsave Large | B22: NL | C22: 3 | D22: 3 | E22: NL33N | I22: ≥ 66kV & ≤ 132kV | J22: 131.25 | K22: 150.94 | L22: 101.86 | M22: 117.14 | N22: 392.02 | O22: 450.82 | P22: 54.77 | Q22: 62.99 | R22: 14.13 | S22: 16.25
A23: Nightsave Large | B23: NL | C23: 3 | D23: 4 | E23: NL34N | I23: > 132kV* | J23: 122.83 | K23: 141.25 | L23: 95.51 | M23: 109.84 | N23: 378.21 | O23: 434.94 | P23: 52.8 | Q23: 60.72 | R23: 18.01 | S23: 20.71
I24: * 132 kV or Transmission connected
H26: Distribution network charges
H27: Voltage | J27: Network capacity charge [R/kVA/m] | L27: Network demand charge [R/kVA/m] | N27: Urban low voltage subsidy charge [R/kVA/m]
Q28: Voltage | R28: Ancillary service charge [c/kWh]
A29: Tariff | B29: Tariff nameBillcode | C29: Tx zone | D29: Voltage | E29: Billcode | K29: VAT incl | M29: VAT incl | O29: VAT incl | S29: VAT incl
A30: Nightsave Large | B30: NL | C30: 0 | D30: 1 | E30: =B30&C30&D30&IF($A$2="Non-municipal","N",IF($A$2="Municiple","Y","error")) -> NL01N | H30: < 500V | J30: 30.86 | K30: =ROUND(J30 * (1 + VAT), 2) -> 35.49 | L30: 58.51 | M30: =ROUND(L30 * (1 + VAT), 2) -> 67.29 | N30: 0 | O30: =ROUND(N30 * (1 + VAT), 2) -> 0 | Q30: < 500V | R30: 0.71 | S30: =ROUND(R30 * (1 + VAT), 2) -> 0.82
A31: Nightsave Large | B31: NL | C31: 0 | D31: 2 | E31: =B31&C31&D31&IF($A$2="Non-municipal","N",IF($A$2="Municiple","Y","error")) -> NL02N | H31: ≥ 500V & < 66kV | J31: 28.3 | K31: =ROUND(J31 * (1 + VAT), 2) -> 32.55 | L31: 53.68 | M31: =ROUND(L31 * (1 + VAT), 2) -> 61.73 | N31: 0 | O31: =ROUND(N31 * (1 + VAT), 2) -> 0 | Q31: ≥ 500V & < 66kV | R31: 0.7 | S31: =ROUND(R31 * (1 + VAT), 2) -> 0.81
A32: Nightsave Large | B32: NL | C32: 0 | D32: 3 | E32: =B32&C32&D32&IF($A$2="Non-municipal","N",IF($A$2="Municiple","Y","error")) -> NL03N | H32: ≥ 66kV & ≤ 132kV | J32: 10.11 | K32: =ROUND(J32 * (1 + VAT), 2) -> 11.63 | L32: 18.71 | M32: =ROUND(L32 * (1 + VAT), 2) -> 21.52 | N32: 24.93 | O32: =ROUND(N32 * (1 + VAT), 2) -> 28.67 | Q32: ≥ 66kV & ≤ 132kV | R32: 0.68 | S32: =ROUND(R32 * (1 + VAT), 2) -> 0.78
A33: Nightsave Large | B33: NL | C33: 0 | D33: 4 | E33: =B33&C33&D33&IF($A$2="Non-municipal","N",IF($A$2="Municiple","Y","error")) -> NL04N | H33: > 132kV / Transmission connected | J33: 0 | K33: =ROUND(J33 * (1 + VAT), 2) -> 0 | L33: 0 | M33: =ROUND(L33 * (1 + VAT), 2) -> 0 | N33: 24.93 | O33: =ROUND(N33 * (1 + VAT), 2) -> 28.67 | Q33: > 132kV* | R33: 0.63 | S33: =ROUND(R33 * (1 + VAT), 2) -> 0.72
Q34: * 132 kV or Transmission connected
H36: Customer categories | I36: Service charge [R/account/day] | K36: Administration charge [R/POD/day] | N36: Electrification and rural network subsidy charge [c/kWh] | P36: Affordability subsidy charge [c/kWh] Only payable by non-local authority tariffs
A38: Tariff | B38: Tariff nameBillcode | C38: Tx zone | D38: Voltage | E38: Billcode | J38: VAT incl | L38: VAT incl
A39: Nightsave Large | B39: NL | C39: 0 | D39: 1 | E39: =B39&C39&D39&IF($A$2="Non-municipal","N",IF($A$2="Municiple","Y","error")) -> NL01N | H39: >1 MVA | I39: 354.25 | J39: =ROUND(I39 * (1 + VAT), 2) -> 407.39 | K39: 159.66 | L39: =ROUND(K39 * (1 + VAT), 2) -> 183.61 | O39: VAT incl | Q39: VAT incl
A40: Nightsave Large | B40: NL | C40: 0 | D40: 1 | E40: =B40&C40&D40&IF($A$2="Non-municipal","N",IF($A$2="Municiple","Y","error")) -> NL01N | H40: Key customers | I40: 6942.01 | J40: =ROUND(I40 * (1 + VAT), 2) -> 7983.31 | K40: 221.7 | L40: =ROUND(K40 * (1 + VAT), 2) -> 254.96 | N40: 13.8 | O40: =ROUND(N40 * (1 + VAT), 2) -> 15.87 | P40: 7.37 | Q40: =ROUND(P40 * (1 + VAT), 2) -> 8.48
A46: Tariff | B46: Tariff nameBillcode | C46: Tx zone | D46: Voltage | E46: Billcode
A47: Nightsave Large | B47: NL | C47: 0 | D47: 1 | E47: =B47&C47&D47&IF($A$2="Non-municipal","N",IF($A$2="Municiple","Y","error")) -> NL01N

Sheet Nightsave Large Munic
H1: Back to menu
A2: Municiple | G2: Nightsave Urban Large – Local Authority | AG2: check value
J4: Active energy charge [c/kWh] | N4: Energy demand charge [R/kVA/m] | R4: Transmission network charges [R/kVA/m]
H5: Transmission zone | J5: High demand season [Jun - Aug] | L5: Low demand season [Sep - May] | N5: High demand season [Jun - Aug] | P5: Low demand season [Sep - May]
I6: Voltage
A7: Tariff | B7: Tariff nameBillcode | C7: Tx zone | D7: Voltage | E7: Billcode | K7: VAT incl | M7: VAT incl | O7: VAT incl | Q7: VAT incl | S7: VAT incl
A8: Nightsave Large | B8: NL | C8: 0 | D8: 1 | E8: NL01Y | H8: ≤ 300km | I8: < 500V | J8: 138.94 | K8: =ROUND(J8 * (1 + VAT), 2) -> 159.78 | L8: 108.03 | M8: =ROUND(L8 * (1 + VAT), 2) -> 124.23 | N8: 414.79 | O8: =ROUND(N8 * (1 + VAT), 2) -> 477.01 | P8: 57.95 | Q8: =ROUND(P8 * (1 + VAT), 2) -> 66.64 | R8: 15.68 | S8: =ROUND(R8 * (1 + VAT), 2) -> 18.03
A9: Nightsave Large | B9: NL | C9: 0 | D9: 2 | E9: NL02Y | I9: ≥ 500V & < 66kV | J9: 131.56 | K9: 151.29 | L9: 102.69 | M9: 118.09 | N9: 401.47 | O9: 461.69 | P9: 56.14 | Q9: 64.56 | R9: 14.3 | S9: 16.45
A10: Nightsave Large | B10: NL | C10: 0 | D10: 3 | E10: NL03Y | I10: ≥ 66kV & ≤ 132kV | J10: 130.59 | K10: 150.18 | L10: 101.43 | M10: 116.64 | N10: 386.85 | O10: 444.88 | P10: 54.07 | Q10: 62.18 | R10: 13.91 | S10: 16
A11: Nightsave Large | B11: NL | C11: 0 | D11: 4 | E11: NL04Y | I11: > 132kV* | J11: 122.17 | K11: 140.5 | L11: 94.99 | M11: 109.24 | N11: 373.19 | O11: 429.17 | P11: 52.13 | Q11: 59.95 | R11: 17.62 | S11: 20.26
A12: Nightsave Large | B12: NL | C12: 1 | D12: 1 | E12: NL11Y | H12: > 300km and ≤ 600km | I12: < 500V | J12: 140.75 | K12: 161.86 | L12: 109.2 | M12: 125.58 | N12: 419.09 | O12: 481.95 | P12: 58.51 | Q12: 67.29 | R12: 15.74 | S12: 18.1
A13: Nightsave Large | B13: NL | C13: 1 | D13: 2 | E13: NL12Y | I13: ≥ 500V & < 66kV | J13: 134.31 | K13: 154.46 | L13: 104.76 | M13: 120.47 | N13: 405.52 | O13: 466.35 | P13: 56.63 | Q13: 65.12 | R13: 14.47 | S13: 16.64
A14: Nightsave Large | B14: NL | C14: 1 | D14: 3 | E14: NL13Y | I14: ≥ 66kV & ≤ 132kV | J14: 133.31 | K14: 153.31 | L14: 103.55 | M14: 119.08 | N14: 390.71 | O14: 449.32 | P14: 54.59 | Q14: 62.78 | R14: 14.03 | S14: 16.13
A15: Nightsave Large | B15: NL | C15: 1 | D15: 4 | E15: NL14Y | I15: > 132kV* | J15: 124.68 | K15: 143.38 | L15: 96.95 | M15: 111.49 | N15: 376.97 | O15: 433.52 | P15: 52.64 | Q15: 60.54 | R15: 17.79 | S15: 20.46
A16: Nightsave Large | B16: NL | C16: 2 | D16: 1 | E16: NL21Y | H16: > 600km and ≤ 900km | I16: < 500V | J16: 142.09 | K16: 163.4 | L16: 110.22 | M16: 126.75 | N16: 423.33 | O16: 486.83 | P16: 59.14 | Q16: 68.01 | R16: 15.95 | S16: 18.34
A17: Nightsave Large | B17: NL | C17: 2 | D17: 2 | E17: NL22Y | I17: ≥ 500V & < 66kV | J17: 135.66 | K17: 156.01 | L17: 105.85 | M17: 121.73 | N17: 409.65 | O17: 471.1 | P17: 57.24 | Q17: 65.83 | R17: 14.55 | S17: 16.73
A18: Nightsave Large | B18: NL | C18: 2 | D18: 3 | E18: NL23Y | I18: ≥ 66kV & ≤ 132kV | J18: 134.64 | K18: 154.84 | L18: 104.58 | M18: 120.27 | N18: 394.64 | O18: 453.84 | P18: 55.12 | Q18: 63.39 | R18: 14.14 | S18: 16.26
A19: Nightsave Large | B19: NL | C19: 2 | D19: 4 | E19: NL24Y | I19: > 132kV* | J19: 125.94 | K19: 144.83 | L19: 97.92 | M19: 112.61 | N19: 380.78 | O19: 437.9 | P19: 53.21 | Q19: 61.19 | R19: 18.03 | S19: 20.73
A20: Nightsave Large | B20: NL | C20: 3 | D20: 1 | E20: NL31Y | H20: > 900km | I20: < 500V | J20: 143.61 | K20: 165.15 | L20: 111.34 | M20: 128.04 | N20: 427.5 | O20: 491.63 | P20: 59.72 | Q20: 68.68 | R20: 16.02 | S20: 18.42
A21: Nightsave Large | B21: NL | C21: 3 | D21: 2 | E21: NL32Y | I21: ≥ 500V & < 66kV | J21: 137.01 | K21: 157.56 | L21: 106.86 | M21: 122.89 | N21: 413.74 | O21: 475.8 | P21: 57.75 | Q21: 66.41 | R21: 14.72 | S21: 16.93
A22: Nightsave Large | B22: NL | C22: 3 | D22: 3 | E22: NL33Y | I22: ≥ 66kV & ≤ 132kV | J22: 135.99 | K22: 156.39 | L22: 105.58 | M22: 121.42 | N22: 398.63 | O22: 458.42 | P22: 55.71 | Q22: 64.07 | R22: 14.24 | S22: 16.38
A23: Nightsave Large | B23: NL | C23: 3 | D23: 4 | E23: NL34Y | I23: > 132kV* | J23: 127.32 | K23: 146.42 | L23: 99.01 | M23: 113.86 | N23: 384.61 | O23: 442.3 | P23: 53.69 | Q23: 61.74 | R23: 18.14 | S23: 20.86
I24: * 132 kV or Transmission connected
H26: Distribution network charges
H27: Voltage | J27: Network capacity charge [R/kVA/m] | L27: Network demand charge [R/kVA/m] | N27: Urban low voltage subsidy charge [R/kVA/m]
Q28: Voltage | R28: Ancillary service charge [c/kWh]
A29: Tariff | B29: Tariff nameBillcode | C29: Tx zone | D29: Voltage | E29: Billcode | K29: VAT incl | M29: VAT incl | O29: VAT incl | S29: VAT incl
A30: Nightsave Large | B30: NL | C30: 0 | D30: 1 | E30: NL01Y | H30: < 500V | J30: 31.26 | K30: =ROUND(J30 * (1 + VAT), 2) -> 35.95 | L30: 59.22 | M30: =ROUND(L30 * (1 + VAT), 2) -> 68.1 | N30: 0 | O30: =ROUND(N30 * (1 + VAT), 2) -> 0 | Q30: < 500V | R30: 0.73 | S30: =ROUND(R30 * (1 + VAT), 2) -> 0.84
A31: Nightsave Large | B31: NL | C31: 0 | D31: 2 | E31: NL02Y | H31: ≥ 500V & < 66kV | J31: 28.65 | K31: =ROUND(J31 * (1 + VAT), 2) -> 32.95 | L31: 54.31 | M31: =ROUND(L31 * (1 + VAT), 2) -> 62.46 | N31: 0 | O31: =ROUND(N31 * (1 + VAT), 2) -> 0 | Q31: ≥ 500V & < 66kV | R31: 0.71 | S31: =ROUND(R31 * (1 + VAT), 2) -> 0.82
A32: Nightsave Large | B32: NL | C32: 0 | D32: 3 | E32: NL03Y | H32: ≥ 66kV & ≤ 132kV | J32: 10.25 | K32: =ROUND(J32 * (1 + VAT), 2) -> 11.79 | L32: 18.96 | M32: =ROUND(L32 * (1 + VAT), 2) -> 21.8 | N32: 25.1 | O32: =ROUND(N32 * (1 + VAT), 2) -> 28.87 | Q32: ≥ 66kV & ≤ 132kV | R32: 0.65 | S32: =ROUND(R32 * (1 + VAT), 2) -> 0.75
A33: Nightsave Large | B33: NL | C33: 0 | D33: 4 | E33: NL04Y | H33: > 132kV / Transmission connected | J33: 0 | K33: =ROUND(J33 * (1 + VAT), 2) -> 0 | L33: 0 | M33: =ROUND(L33 * (1 + VAT), 2) -> 0 | N33: 25.1 | O33: =ROUND(N33 * (1 + VAT), 2) -> 28.87 | Q33: > 132kV* | R33: 0.62 | S33: =ROUND(R33 * (1 + VAT), 2) -> 0.71
Q34: * 132 kV or Transmission connected
H36: Customer categories | I36: Service charge [R/account/day] | K36: Administration charge [R/POD/day] | N36: Electrification and rural network subsidy charge [c/kWh]
A38: Tariff | B38: Tariff nameBillcode | C38: Tx zone | D38: Voltage | E38: Billcode | J38: VAT incl | L38: VAT incl
A39: Nightsave Large | B39: NL | C39: 0 | D39: 1 | E39: NL01Y | H39: >1 MVA | I39: 356.92 | J39: =ROUND(I39 * (1 + VAT), 2) -> 410.46 | K39: 160.88 | L39: =ROUND(K39 * (1 + VAT), 2) -> 185.01 | O39: VAT incl
A40: Nightsave Large | B40: NL | C40: 0 | D40: 1 | E40: NL01Y | H40: Key customers | I40: 6994.19 | J40: =ROUND(I40 * (1 + VAT), 2) -> 8043.32 | K40: 223.36 | L40: =ROUND(K40 * (1 + VAT), 2) -> 256.86 | N40: 13.9 | O40: =ROUND(N40 * (1 + VAT), 2) -> 15.99
A46: Tariff | B46: Tariff nameBillcode | C46: Tx zone | D46: Voltage | E46: Billcode
A47: Nightsave Large | B47: NL | C47: 0 | D47: 1 | E47: NL01Y

Sheet Nightsave Small NLA
G1: Back to menu
A2: Non-municipal | G2: Nightsave Urban Small – Non-local Authority | AF2: =SUM(#REF!,#REF!,#REF!,#REF!,#REF!,#REF!,#REF!,#REF!,#REF!) ->  | AG2: check value
J4: Active energy charge [c/kWh] | N4: Energy demand charge [R/kVA/m] | R4: Transmission network charges [R/kVA/m]
H5: Transmission zone | J5: High demand season [Jun - Aug] | L5: Low demand season [Sep - May] | N5: High demand season [Jun - Aug] | P5: Low demand season [Sep - May]
I6: Voltage
A7: Tariff | B7: Tariff nameBillcode | C7: Tx zone | D7: Voltage | E7: Billcode | K7: VAT incl | M7: VAT incl | O7: VAT incl | Q7: VAT incl | S7: VAT incl
A8: Nightsave Small | B8: NS | C8: 0 | D8: 1 | E8: =B8&C8&D8&IF($A$2="Non-municipal","N",IF($A$2="Municiple","Y","error")) -> NS01N | H8: ≤ 300km | I8: < 500V | J8: 134.06 | K8: =ROUND(J8 * (1 + VAT), 2) -> 154.17 | L8: 104.21 | M8: =ROUND(L8 * (1 + VAT), 2) -> 119.84 | N8: 286.47 | O8: =ROUND(N8 * (1 + VAT), 2) -> 329.44 | P8: 36.92 | Q8: =ROUND(P8 * (1 + VAT), 2) -> 42.46 | R8: 15.53 | S8: =ROUND(R8 * (1 + VAT), 2) -> 17.86
A9: Nightsave Small | B9: NS | C9: 0 | D9: 2 | E9: =B9&C9&D9&IF($A$2="Non-municipal","N",IF($A$2="Municiple","Y","error")) -> NS02N | I9: ≥ 500V & < 66kV | J9: 126.94 | K9: 145.98 | L9: 99.08 | M9: 113.94 | N9: 277.25 | O9: 318.84 | P9: 35.68 | Q9: 41.03 | R9: 14.19 | S9: 16.32
A10: Nightsave Small | B10: NS | C10: 0 | D10: 3 | E10: NS03N | I10: ≥ 66kV & ≤ 132kV | J10: 126.01 | K10: 144.91 | L10: 97.9 | M10: 112.59 | N10: 267.05 | O10: 307.11 | P10: 34.35 | Q10: 39.5 | R10: 13.81 | S10: 15.88
A11: Nightsave Small | B11: NS | C11: 0 | D11: 4 | E11: NS04N | I11: > 132kV* | J11: 117.87 | K11: 135.55 | L11: 91.65 | M11: 105.4 | N11: 257.71 | O11: 296.37 | P11: 33.15 | Q11: 38.12 | R11: 17.47 | S11: 20.09
A12: Nightsave Small | B12: NS | C12: 1 | D12: 1 | E12: NS11N | H12: > 300km and ≤ 600km | I12: < 500V | J12: 135.85 | K12: 156.23 | L12: 105.36 | M12: 121.16 | N12: 289.41 | O12: 332.82 | P12: 37.22 | Q12: 42.8 | R12: 15.64 | S12: 17.99
A13: Nightsave Small | B13: NS | C13: 1 | D13: 2 | E13: NS12N | I13: ≥ 500V & < 66kV | J13: 129.61 | K13: 149.05 | L13: 101.11 | M13: 116.28 | N13: 280.03 | O13: 322.03 | P13: 36.03 | Q13: 41.43 | R13: 14.32 | S13: 16.47
A14: Nightsave Small | B14: NS | C14: 1 | D14: 3 | E14: NS13N | I14: ≥ 66kV & ≤ 132kV | J14: 128.65 | K14: 147.95 | L14: 99.89 | M14: 114.87 | N14: 269.8 | O14: 310.27 | P14: 34.71 | Q14: 39.92 | R14: 13.92 | S14: 16.01
A15: Nightsave Small | B15: NS | C15: 1 | D15: 4 | E15: NS14N | I15: > 132kV* | J15: 120.36 | K15: 138.41 | L15: 93.52 | M15: 107.55 | N15: 260.28 | O15: 299.32 | P15: 33.48 | Q15: 38.5 | R15: 17.62 | S15: 20.26
A16: Nightsave Small | B16: NS | C16: 2 | D16: 1 | E16: NS21N | H16: > 600km and ≤ 900km | I16: < 500V | J16: 137.11 | K16: 157.68 | L16: 106.38 | M16: 122.34 | N16: 292.23 | O16: 336.06 | P16: 37.56 | Q16: 43.19 | R16: 15.82 | S16: 18.19
A17: Nightsave Small | B17: NS | C17: 2 | D17: 2 | E17: NS22N | I17: ≥ 500V & < 66kV | J17: 130.89 | K17: 150.52 | L17: 102.16 | M17: 117.48 | N17: 282.9 | O17: 325.34 | P17: 36.39 | Q17: 41.85 | R17: 14.45 | S17: 16.62
A18: Nightsave Small | B18: NS | C18: 2 | D18: 3 | E18: NS23N | I18: ≥ 66kV & ≤ 132kV | J18: 129.9 | K18: 149.39 | L18: 100.88 | M18: 116.01 | N18: 272.53 | O18: 313.41 | P18: 35.06 | Q18: 40.32 | R18: 14 | S18: 16.1
A19: Nightsave Small | B19: NS | C19: 2 | D19: 4 | E19: NS24N | I19: > 132kV* | J19: 121.53 | K19: 139.76 | L19: 94.48 | M19: 108.65 | N19: 262.85 | O19: 302.28 | P19: 33.82 | Q19: 38.89 | R19: 17.88 | S19: 20.56
A20: Nightsave Small | B20: NS | C20: 3 | D20: 1 | E20: NS31N | H20: > 900km | I20: < 500V | J20: 138.58 | K20: 159.37 | L20: 107.45 | M20: 123.57 | N20: 295.24 | O20: 339.53 | P20: 37.97 | Q20: 43.67 | R20: 15.92 | S20: 18.31
A21: Nightsave Small | B21: NS | C21: 3 | D21: 2 | E21: NS32N | I21: ≥ 500V & < 66kV | J21: 132.16 | K21: 151.98 | L21: 103.14 | M21: 118.61 | N21: 285.67 | O21: 328.52 | P21: 36.77 | Q21: 42.29 | R21: 14.62 | S21: 16.81
A22: Nightsave Small | B22: NS | C22: 3 | D22: 3 | E22: NS33N | I22: ≥ 66kV & ≤ 132kV | J22: 131.25 | K22: 150.94 | L22: 101.86 | M22: 117.14 | N22: 275.29 | O22: 316.58 | P22: 35.44 | Q22: 40.76 | R22: 14.13 | S22: 16.25
A23: Nightsave Small | B23: NS | C23: 3 | D23: 4 | E23: NS34N | I23: > 132kV* | J23: 122.83 | K23: 141.25 | L23: 95.51 | M23: 109.84 | N23: 265.61 | O23: 305.45 | P23: 34.21 | Q23: 39.34 | R23: 18.01 | S23: 20.71
I24: * 132 kV or Transmission connected
H26: Distribution network charges
J27: Network capacity charge [R/kVA/m] | L27: Network demand charge [R/kVA/m] | N27: Urban low voltage subsidy charge [R/kVA/m]
H28: Voltage | Q28: Voltage | R28: Ancillary service charge [c/kWh]
A29: Tariff | B29: Tariff nameBillcode | C29: Tx zone | D29: Voltage | E29: Billcode | K29: VAT incl | M29: VAT incl | O29: VAT incl | S29: VAT incl
A30: Nightsave Small | B30: NS | C30: 0 | D30: 1 | E30: =B30&C30&D30&IF($A$2="Non-municipal","N",IF($A$2="Municiple","Y","error")) -> NS01N | H30: < 500V | J30: 30.86 | K30: =ROUND(J30 * (1 + VAT), 2) -> 35.49 | L30: 58.51 | M30: =ROUND(L30 * (1 + VAT), 2) -> 67.29 | N30: 0 | O30: =ROUND(N30 * (1 + VAT), 2) -> 0 | Q30: < 500V | R30: 0.71 | S30: =ROUND(R30 * (1 + VAT), 2) -> 0.82
A31: Nightsave Small | B31: NS | C31: 0 | D31: 2 | E31: =B31&C31&D31&IF($A$2="Non-municipal","N",IF($A$2="Municiple","Y","error")) -> NS02N | H31: ≥ 500V & < 66kV | J31: 28.3 | K31: =ROUND(J31 * (1 + VAT), 2) -> 32.55 | L31: 53.68 | M31: =ROUND(L31 * (1 + VAT), 2) -> 61.73 | N31: 0 | O31: =ROUND(N31 * (1 + VAT), 2) -> 0 | Q31: ≥ 500V & < 66kV | R31: 0.7 | S31: =ROUND(R31 * (1 + VAT), 2) -> 0.81
A32: Nightsave Small | B32: NS | C32: 0 | D32: 3 | E32: =B32&C32&D32&IF($A$2="Non-municipal","N",IF($A$2="Municiple","Y","error")) -> NS03N | H32: ≥ 66kV & ≤ 132kV | J32: 10.11 | K32: =ROUND(J32 * (1 + VAT), 2) -> 11.63 | L32: 18.71 | M32: =ROUND(L32 * (1 + VAT), 2) -> 21.52 | N32: 24.93 | O32: =ROUND(N32 * (1 + VAT), 2) -> 28.67 | Q32: ≥ 66kV & ≤ 132kV | R32: 0.68 | S32: =ROUND(R32 * (1 + VAT), 2) -> 0.78
A33: Nightsave Small | B33: NS | C33: 0 | D33: 4 | E33: =B33&C33&D33&IF($A$2="Non-municipal","N",IF($A$2="Municiple","Y","error")) -> NS04N | H33: > 132kV / Transmission connected | J33: 0 | K33: =ROUND(J33 * (1 + VAT), 2) -> 0 | L33: 0 | M33: =ROUND(L33 * (1 + VAT), 2) -> 0 | N33: 24.93 | O33: =ROUND(N33 * (1 + VAT), 2) -> 28.67 | Q33: > 132kV* | R33: 0.63 | S33: =ROUND(R33 * (1 + VAT), 2) -> 0.72
Q34: * 132 kV or Transmission connected
H36: Customer categories | I36: Service charge [R/account/day] | K36: Administration charge [R/POD/day] | N36: Electrification and rural network subsidy charge [c/kWh] | P36: Affordability subsidy charge [c/kWh] Only payable by non-local authority tariffs
A38: Tariff | B38: Tariff nameBillcode | C38: Tx zone | D38: Voltage | E38: Billcode | J38: VAT incl | L38: VAT incl
A39: Nightsave Small | B39: NS | C39: 0 | D39: 1 | E39: =B39&C39&D39&IF($A$2="Non-municipal","N",IF($A$2="Municiple","Y","error")) -> NS01N | H39: ≤ 100 kVA | I39: 25.21 | J39: =ROUND(I39 * (1 + VAT), 2) -> 28.99 | K39: 5.54 | L39: =ROUND(K39 * (1 + VAT), 2) -> 6.37 | O39: VAT incl | Q39: VAT incl
A40: Nightsave Small | B40: NS | C40: 0 | D40: 1 | E40: =B40&C40&D40&IF($A$2="Non-municipal","N",IF($A$2="Municiple","Y","error")) -> NS01N | H40: > 100 kVA & ≤ 500 kVA | I40: 115.14 | J40: =ROUND(I40 * (1 + VAT), 2) -> 132.41 | K40: 32.3 | L40: =ROUND(K40 * (1 + VAT), 2) -> 37.15 | N40: 13.8 | O40: =ROUND(N40 * (1 + VAT), 2) -> 15.87 | P40: 7.37 | Q40: =ROUND(P40 * (1 + VAT), 2) -> 8.48
A41: Nightsave Small | B41: NS | C41: 0 | D41: 1 | E41: =B41&C41&D41&IF($A$2="Non-municipal","N",IF($A$2="Municiple","Y","error")) -> NS01N | H41: > 500 kVA & ≤ 1 MVA | I41: 354.25 | J41: =ROUND(I41 * (1 + VAT), 2) -> 407.39 | K41: 64.12 | L41: =ROUND(K41 * (1 + VAT), 2) -> 73.74
A42: Nightsave Small | B42: NS | C42: 0 | D42: 1 | E42: =B42&C42&D42&IF($A$2="Non-municipal","N",IF($A$2="Municiple","Y","error")) -> NS01N | H42: Key customers | I42: 6942.01 | J42: =ROUND(I42 * (1 + VAT), 2) -> 7983.31 | K42: 221.7 | L42: =ROUND(K42 * (1 + VAT), 2) -> 254.96
A47: Tariff | B47: Tariff nameBillcode | C47: Tx zone | D47: Voltage | E47: Billcode
A48: Nightsave Small | B48: NS | C48: 0 | D48: 1 | E48: =B48&C48&D48&IF($A$2="Non-municipal","N",IF($A$2="Municiple","Y","error")) -> NS01N

Sheet Nightsave Small Munic
G1: Back to menu
A2: Municiple | G2: Nightsave Urban Small – Local Authority | AF2: =SUM(#REF!,#REF!,#REF!,#REF!,#REF!,#REF!,#REF!,#REF!,#REF!) ->  | AG2: check value
J4: Active energy charge [c/kWh] | N4: Energy demand charge [R/kVA/m] | R4: Transmission network charges [R/kVA/m]
H5: Transmission zone | J5: High demand season [Jun - Aug] | L5: Low demand season [Sep - May] | N5: High demand season [Jun - Aug] | P5: Low demand season [Sep - May]
I6: Voltage
A7: Tariff | B7: Tariff nameBillcode | C7: Tx zone | D7: Voltage | E7: Billcode | K7: VAT incl | M7: VAT incl | O7: VAT incl | Q7: VAT incl | S7: VAT incl
A8: Nightsave Small | B8: NS | C8: 0 | D8: 1 | E8: NS01Y | H8: ≤ 300km | I8: < 500V | J8: 138.94 | K8: =ROUND(J8 * (1 + VAT), 2) -> 159.78 | L8: 108.03 | M8: =ROUND(L8 * (1 + VAT), 2) -> 124.23 | N8: 291.29 | O8: =ROUND(N8 * (1 + VAT), 2) -> 334.98 | P8: 37.56 | Q8: =ROUND(P8 * (1 + VAT), 2) -> 43.19 | R8: 15.68 | S8: =ROUND(R8 * (1 + VAT), 2) -> 18.03
A9: Nightsave Small | B9: NS | C9: 0 | D9: 2 | E9: NS02Y | I9: ≥ 500V & < 66kV | J9: 131.56 | K9: 151.29 | L9: 102.69 | M9: 118.09 | N9: 281.91 | O9: 324.2 | P9: 36.28 | Q9: 41.72 | R9: 14.3 | S9: 16.45
A10: Nightsave Small | B10: NS | C10: 0 | D10: 3 | E10: NS03Y | I10: ≥ 66kV & ≤ 132kV | J10: 130.59 | K10: 150.18 | L10: 101.43 | M10: 116.64 | N10: 271.59 | O10: 312.33 | P10: 34.92 | Q10: 40.16 | R10: 13.91 | S10: 16
A11: Nightsave Small | B11: NS | C11: 0 | D11: 4 | E11: NS04Y | I11: > 132kV* | J11: 122.17 | K11: 140.5 | L11: 94.99 | M11: 109.24 | N11: 262.06 | O11: 301.37 | P11: 33.72 | Q11: 38.78 | R11: 17.62 | S11: 20.26
A12: Nightsave Small | B12: NS | C12: 1 | D12: 1 | E12: NS11Y | H12: > 300km and ≤ 600km | I12: < 500V | J12: 140.75 | K12: 161.86 | L12: 109.2 | M12: 125.58 | N12: 294.3 | O12: 338.45 | P12: 37.87 | Q12: 43.55 | R12: 15.74 | S12: 18.1
A13: Nightsave Small | B13: NS | C13: 1 | D13: 2 | E13: NS12Y | I13: ≥ 500V & < 66kV | J13: 134.31 | K13: 154.46 | L13: 104.76 | M13: 120.47 | N13: 284.83 | O13: 327.55 | P13: 36.61 | Q13: 42.1 | R13: 14.47 | S13: 16.64
A14: Nightsave Small | B14: NS | C14: 1 | D14: 3 | E14: NS13Y | I14: ≥ 66kV & ≤ 132kV | J14: 133.31 | K14: 153.31 | L14: 103.55 | M14: 119.08 | N14: 274.39 | O14: 315.55 | P14: 35.26 | Q14: 40.55 | R14: 14.03 | S14: 16.13
A15: Nightsave Small | B15: NS | C15: 1 | D15: 4 | E15: NS14Y | I15: > 132kV* | J15: 124.68 | K15: 143.38 | L15: 96.95 | M15: 111.49 | N15: 264.69 | O15: 304.39 | P15: 34.05 | Q15: 39.16 | R15: 17.79 | S15: 20.46
A16: Nightsave Small | B16: NS | C16: 2 | D16: 1 | E16: NS21Y | H16: > 600km and ≤ 900km | I16: < 500V | J16: 142.09 | K16: 163.4 | L16: 110.22 | M16: 126.75 | N16: 297.24 | O16: 341.83 | P16: 38.22 | Q16: 43.95 | R16: 15.95 | S16: 18.34
A17: Nightsave Small | B17: NS | C17: 2 | D17: 2 | E17: NS22Y | I17: ≥ 500V & < 66kV | J17: 135.66 | K17: 156.01 | L17: 105.85 | M17: 121.73 | N17: 287.66 | O17: 330.81 | P17: 37.03 | Q17: 42.58 | R17: 14.55 | S17: 16.73
A18: Nightsave Small | B18: NS | C18: 2 | D18: 3 | E18: NS23Y | I18: ≥ 66kV & ≤ 132kV | J18: 134.64 | K18: 154.84 | L18: 104.58 | M18: 120.27 | N18: 277.14 | O18: 318.71 | P18: 35.63 | Q18: 40.97 | R18: 14.14 | S18: 16.26
A19: Nightsave Small | B19: NS | C19: 2 | D19: 4 | E19: NS24Y | I19: > 132kV* | J19: 125.94 | K19: 144.83 | L19: 97.92 | M19: 112.61 | N19: 267.31 | O19: 307.41 | P19: 34.37 | Q19: 39.53 | R19: 18.03 | S19: 20.73
A20: Nightsave Small | B20: NS | C20: 3 | D20: 1 | E20: NS31Y | H20: > 900km | I20: < 500V | J20: 143.61 | K20: 165.15 | L20: 111.34 | M20: 128.04 | N20: 300.22 | O20: 345.25 | P20: 38.58 | Q20: 44.37 | R20: 16.02 | S20: 18.42
A21: Nightsave Small | B21: NS | C21: 3 | D21: 2 | E21: NS32Y | I21: ≥ 500V & < 66kV | J21: 137.01 | K21: 157.56 | L21: 106.86 | M21: 122.89 | N21: 290.51 | O21: 334.09 | P21: 37.37 | Q21: 42.98 | R21: 14.72 | S21: 16.93
A22: Nightsave Small | B22: NS | C22: 3 | D22: 3 | E22: NS33Y | I22: ≥ 66kV & ≤ 132kV | J22: 135.99 | K22: 156.39 | L22: 105.58 | M22: 121.42 | N22: 279.94 | O22: 321.93 | P22: 36.01 | Q22: 41.41 | R22: 14.24 | S22: 16.38
A23: Nightsave Small | B23: NS | C23: 3 | D23: 4 | E23: NS34Y | I23: > 132kV* | J23: 127.32 | K23: 146.42 | L23: 99.01 | M23: 113.86 | N23: 270.12 | O23: 310.64 | P23: 34.78 | Q23: 40 | R23: 18.14 | S23: 20.86
I24: * 132 kV or Transmission connected
H26: Distribution network charges
J27: Network capacity charge [R/kVA/m] | L27: Network demand charge [R/kVA/m] | N27: Urban low voltage subsidy charge [R/kVA/m]
H28: Voltage | Q28: Voltage | R28: Ancillary service charge [c/kWh]
A29: Tariff | B29: Tariff nameBillcode | C29: Tx zone | D29: Voltage | E29: Billcode | K29: VAT incl | M29: VAT incl | O29: VAT incl | S29: VAT incl
A30: Nightsave Small | B30: NS | C30: 0 | D30: 1 | E30: NS01Y | H30: < 500V | J30: 31.26 | K30: =ROUND(J30 * (1 + VAT), 2) -> 35.95 | L30: 59.22 | M30: =ROUND(L30 * (1 + VAT), 2) -> 68.1 | N30: 0 | O30: =ROUND(N30 * (1 + VAT), 2) -> 0 | Q30: < 500V | R30: 0.73 | S30: =ROUND(R30 * (1 + VAT), 2) -> 0.84
A31: Nightsave Small | B31: NS | C31: 0 | D31: 2 | E31: NS02Y | H31: ≥ 500V & < 66kV | J31: 28.65 | K31: =ROUND(J31 * (1 + VAT), 2) -> 32.95 | L31: 54.31 | M31: =ROUND(L31 * (1 + VAT), 2) -> 62.46 | N31: 0 | O31: =ROUND(N31 * (1 + VAT), 2) -> 0 | Q31: ≥ 500V & < 66kV | R31: 0.71 | S31: =ROUND(R31 * (1 + VAT), 2) -> 0.82
A32: Nightsave Small | B32: NS | C32: 0 | D32: 3 | E32: NS03Y | H32: ≥ 66kV & ≤ 132kV | J32: 10.25 | K32: =ROUND(J32 * (1 + VAT), 2) -> 11.79 | L32: 18.96 | M32: =ROUND(L32 * (1 + VAT), 2) -> 21.8 | N32: 25.1 | O32: =ROUND(N32 * (1 + VAT), 2) -> 28.87 | Q32: ≥ 66kV & ≤ 132kV | R32: 0.65 | S32: =ROUND(R32 * (1 + VAT), 2) -> 0.75
A33: Nightsave Small | B33: NS | C33: 0 | D33: 4 | E33: NS04Y | H33: > 132kV / Transmission connected | J33: 0 | K33: =ROUND(J33 * (1 + VAT), 2) -> 0 | L33: 0 | M33: =ROUND(L33 * (1 + VAT), 2) -> 0 | N33: 25.1 | O33: =ROUND(N33 * (1 + VAT), 2) -> 28.87 | Q33: > 132kV* | R33: 0.62 | S33: =ROUND(R33 * (1 + VAT), 2) -> 0.71
Q34: * 132 kV or Transmission connected
H36: Customer categories | I36: Service charge [R/account/day] | K36: Administration charge [R/POD/day] | N36: Electrification and rural network subsidy charge [c/kWh]
A38: Tariff | B38: Tariff nameBillcode | C38: Tx zone | D38: Voltage | E38: Billcode | J38: VAT incl | L38: VAT incl
A39: Nightsave Small | B39: NS | C39: 0 | D39: 1 | E39: NS01Y | H39: ≤ 100 kVA | I39: 25.38 | J39: =ROUND(I39 * (1 + VAT), 2) -> 29.19 | K39: 5.56 | L39: =ROUND(K39 * (1 + VAT), 2) -> 6.39 | O39: VAT incl
A40: Nightsave Small | B40: NS | C40: 0 | D40: 1 | E40: NS01Y | H40: > 100 kVA & ≤ 500 kVA | I40: 115.98 | J40: =ROUND(I40 * (1 + VAT), 2) -> 133.38 | K40: 32.48 | L40: =ROUND(K40 * (1 + VAT), 2) -> 37.35 | N40: 13.9 | O40: =ROUND(N40 * (1 + VAT), 2) -> 15.99
A41: Nightsave Small | B41: NS | C41: 0 | D41: 1 | E41: NS01Y | H41: > 500 kVA & ≤ 1 MVA | I41: 356.92 | J41: =ROUND(I41 * (1 + VAT), 2) -> 410.46 | K41: 64.61 | L41: =ROUND(K41 * (1 + VAT), 2) -> 74.3
A42: Nightsave Small | B42: NS | C42: 0 | D42: 1 | E42: NS01Y | H42: Key customers | I42: 6994.19 | J42: =ROUND(I42 * (1 + VAT), 2) -> 8043.32 | K42: 223.36 | L42: =ROUND(K42 * (1 + VAT), 2) -> 256.86
A47: Tariff | B47: Tariff nameBillcode | C47: Tx zone | D47: Voltage | E47: Billcode
A48: Nightsave Small | B48: NS | C48: 0 | D48: 1 | E48: NS01Y

Sheet Megaflex NLA
G1: Back to menu
A2: Non-municipal | G2: Megaflex – Non-local Authority | AF2: =SUM(J8:T23,V8:V23,#REF!,#REF!,#REF!,#REF!,H26:J26,L26) ->  | AG2: check value
J4: Active energy charge [c/kWh] | V4: Transmission network charges [R/kVA/m]
H5: Transmission zone | J5: High demand season [Jun - Aug] | P5: Low demand season [Sep - May]
I6: Voltage | J6: Peak | L6: Standard | N6: Off Peak | P6: Peak | R6: Standard | T6: Off Peak
A7: Tariff | B7: Tariff nameBillcode | C7: Tx zone | D7: Voltage | E7: Billcode | K7: VAT incl | M7: VAT incl | O7: VAT incl | Q7: VAT incl | S7: VAT incl | U7: VAT incl | W7: VAT incl
A8: Megaflex | B8: Me | C8: 0 | D8: 1 | E8: =B8&C8&D8&IF($A$2="Non-municipal","N",IF($A$2="Municiple","Y","error")) -> Me01N | H8: ≤ 300km | I8: < 500V | J8: 542.79 | K8: =ROUND(J8 * (1 + VAT), 2) -> 624.21 | L8: 165.14 | M8: =ROUND(L8 * (1 + VAT), 2) -> 189.91 | N8: 90.17 | O8: =ROUND(N8 * (1 + VAT), 2) -> 103.7 | P8: 177.74 | Q8: =ROUND(P8 * (1 + VAT), 2) -> 204.4 | R8: 122.64 | S8: =ROUND(R8 * (1 + VAT), 2) -> 141.04 | T8: 78.19 | U8: =ROUND(T8 * (1 + VAT), 2) -> 89.92 | V8: 15.53 | W8: =ROUND(V8 * (1 + VAT), 2) -> 17.86
A9: Megaflex | B9: Me | C9: 0 | D9: 2 | E9: =B9&C9&D9&IF($A$2="Non-municipal","N",IF($A$2="Municiple","Y","error")) -> Me02N | I9: ≥ 500V & < 66kV | J9: 534.27 | K9: 614.41 | L9: 161.85 | M9: 186.13 | N9: 87.91 | O9: 101.1 | P9: 174.26 | Q9: 200.4 | R9: 119.96 | S9: 137.95 | T9: 76.1 | U9: 87.52 | V9: 14.19 | W9: 16.32
A10: Megaflex | B10: Me | C10: 0 | D10: 3 | E10: Me03N | I10: ≥ 66kV & ≤ 132kV | J10: 517.35 | K10: 594.95 | L10: 156.71 | M10: 180.22 | N10: 85.12 | O10: 97.89 | P10: 168.78 | Q10: 194.1 | R10: 116.13 | S10: 133.55 | T10: 73.72 | U10: 84.78 | V10: 13.81 | W10: 15.88
A11: Megaflex | B11: Me | C11: 0 | D11: 4 | E11: Me04N | I11: > 132kV* | J11: 487.58 | K11: 560.72 | L11: 147.68 | M11: 169.83 | N11: 80.22 | O11: 92.25 | P11: 159.1 | Q11: 182.97 | R11: 109.47 | S11: 125.89 | T11: 69.46 | U11: 79.88 | V11: 17.47 | W11: 20.09
A12: Megaflex | B12: Me | C12: 1 | D12: 1 | E12: Me11N | H12: > 300km and ≤ 600km | I12: < 500V | J12: 547.21 | K12: 629.29 | L12: 165.8 | M12: 190.67 | N12: 90.02 | O12: 103.52 | P12: 178.52 | Q12: 205.3 | R12: 122.91 | S12: 141.35 | T12: 77.98 | U12: 89.68 | V12: 15.64 | W12: 17.99
A13: Megaflex | B13: Me | C13: 1 | D13: 2 | E13: Me12N | I13: ≥ 500V & < 66kV | J13: 539.6 | K13: 620.54 | L13: 163.45 | M13: 187.97 | N13: 88.76 | O13: 102.07 | P13: 176.05 | Q13: 202.46 | R13: 121.14 | S13: 139.31 | T13: 76.85 | U13: 88.38 | V13: 14.32 | W13: 16.47
A14: Megaflex | B14: Me | C14: 1 | D14: 3 | E14: Me13N | I14: ≥ 66kV & ≤ 132kV | J14: 522.43 | K14: 600.79 | L14: 158.24 | M14: 181.98 | N14: 85.91 | O14: 98.8 | P14: 170.41 | Q14: 195.97 | R14: 117.29 | S14: 134.88 | T14: 74.42 | U14: 85.58 | V14: 13.92 | W14: 16.01
A15: Megaflex | B15: Me | C15: 1 | D15: 4 | E15: Me14N | I15: > 132kV* | J15: 492.47 | K15: 566.34 | L15: 149.21 | M15: 171.59 | N15: 80.97 | O15: 93.12 | P15: 160.63 | Q15: 184.72 | R15: 110.53 | S15: 127.11 | T15: 70.11 | U15: 80.63 | V15: 17.62 | W15: 20.26
A16: Megaflex | B16: Me | C16: 2 | D16: 1 | E16: Me21N | H16: > 600km and ≤ 900km | I16: < 500V | J16: 552.66 | K16: 635.56 | L16: 167.42 | M16: 192.53 | N16: 90.89 | O16: 104.52 | P16: 180.28 | Q16: 207.32 | R16: 124.1 | S16: 142.72 | T16: 78.7 | U16: 90.51 | V16: 15.82 | W16: 18.19
A17: Megaflex | B17: Me | C17: 2 | D17: 2 | E17: Me22N | I17: ≥ 500V & < 66kV | J17: 545.02 | K17: 626.77 | L17: 165.13 | M17: 189.9 | N17: 89.66 | O17: 103.11 | P17: 177.79 | Q17: 204.46 | R17: 122.38 | S17: 140.74 | T17: 77.63 | U17: 89.27 | V17: 14.45 | W17: 16.62
A18: Megaflex | B18: Me | C18: 2 | D18: 3 | E18: Me23N | I18: ≥ 66kV & ≤ 132kV | J18: 527.77 | K18: 606.94 | L18: 159.88 | M18: 183.86 | N18: 86.8 | O18: 99.82 | P18: 172.15 | Q18: 197.97 | R18: 118.51 | S18: 136.29 | T18: 75.19 | U18: 86.47 | V18: 14 | W18: 16.1
A19: Megaflex | B19: Me | C19: 2 | D19: 4 | E19: Me24N | I19: > 132kV* | J19: 497.43 | K19: 572.04 | L19: 150.66 | M19: 173.26 | N19: 81.87 | O19: 94.15 | P19: 162.25 | Q19: 186.59 | R19: 111.66 | S19: 128.41 | T19: 70.86 | U19: 81.49 | V19: 17.88 | W19: 20.56
A20: Megaflex | B20: Me | C20: 3 | D20: 1 | E20: Me31N | H20: > 900km | I20: < 500V | J20: 558.22 | K20: 641.95 | L20: 169.17 | M20: 194.55 | N20: 91.81 | O20: 105.58 | P20: 182.12 | Q20: 209.44 | R20: 125.32 | S20: 144.12 | T20: 79.53 | U20: 91.46 | V20: 15.92 | W20: 18.31
A21: Megaflex | B21: Me | C21: 3 | D21: 2 | E21: Me32N | I21: ≥ 500V & < 66kV | J21: 550.44 | K21: 633.01 | L21: 166.73 | M21: 191.74 | N21: 90.51 | O21: 104.09 | P21: 179.53 | Q21: 206.46 | R21: 123.54 | S21: 142.07 | T21: 78.39 | U21: 90.15 | V21: 14.62 | W21: 16.81
A22: Megaflex | B22: Me | C22: 3 | D22: 3 | E22: Me33N | I22: ≥ 66kV & ≤ 132kV | J22: 533.06 | K22: 613.02 | L22: 161.46 | M22: 185.68 | N22: 87.67 | O22: 100.82 | P22: 173.87 | Q22: 199.95 | R22: 119.67 | S22: 137.62 | T22: 75.92 | U22: 87.31 | V22: 14.13 | W22: 16.25
A23: Megaflex | B23: Me | C23: 3 | D23: 4 | E23: Me34N | I23: > 132kV* | J23: 502.27 | K23: 577.61 | L23: 152.22 | M23: 175.05 | N23: 82.7 | O23: 95.11 | P23: 163.94 | Q23: 188.53 | R23: 112.88 | S23: 129.81 | T23: 71.64 | U23: 82.39 | V23: 18.01 | W23: 20.71
I24: * 132 kV or Transmission connected
H26: Distribution network charges
J27: Network capacity charge [R/kVA/m] | L27: Network demand charge [R/kVA/m] | N27: Urban low voltage subsidy charge [R/kVA/m]
H28: Voltage | Q28: Voltage | S28: Ancillary service charge [c/kWh]
A29: Tariff | B29: Tariff nameBillcode | C29: Tx zone | D29: Voltage | E29: Billcode | K29: VAT incl | M29: VAT incl | O29: VAT incl | T29: VAT incl
A30: Megaflex | B30: Me | C30: 0 | D30: 1 | E30: =B30&C30&D30&IF($A$2="Non-municipal","N",IF($A$2="Municiple","Y","error")) -> Me01N | H30: < 500V | J30: 30.86 | K30: =ROUND(J30 * (1 + VAT), 2) -> 35.49 | L30: 58.51 | M30: =ROUND(L30 * (1 + VAT), 2) -> 67.29 | N30: 0 | O30: =ROUND(N30 * (1 + VAT), 2) -> 0 | Q30: < 500V | S30: 0.71 | T30: =ROUND(S30 * (1 + VAT), 2) -> 0.82
A31: Megaflex | B31: Me | C31: 0 | D31: 2 | E31: =B31&C31&D31&IF($A$2="Non-municipal","N",IF($A$2="Municiple","Y","error")) -> Me02N | H31: ≥ 500V & < 66kV | J31: 28.3 | K31: =ROUND(J31 * (1 + VAT), 2) -> 32.55 | L31: 53.68 | M31: =ROUND(L31 * (1 + VAT), 2) -> 61.73 | N31: 0 | O31: =ROUND(N31 * (1 + VAT), 2) -> 0 | Q31: ≥ 500V & < 66kV | S31: 0.7 | T31: =ROUND(S31 * (1 + VAT), 2) -> 0.81
A32: Megaflex | B32: Me | C32: 0 | D32: 3 | E32: =B32&C32&D32&IF($A$2="Non-municipal","N",IF($A$2="Municiple","Y","error")) -> Me03N | H32: ≥ 66kV & ≤ 132kV | J32: 10.11 | K32: =ROUND(J32 * (1 + VAT), 2) -> 11.63 | L32: 18.71 | M32: =ROUND(L32 * (1 + VAT), 2) -> 21.52 | N32: 24.93 | O32: =ROUND(N32 * (1 + VAT), 2) -> 28.67 | Q32: ≥ 66kV & ≤ 132kV | S32: 0.68 | T32: =ROUND(S32 * (1 + VAT), 2) -> 0.78
A33: Megaflex | B33: Me | C33: 0 | D33: 4 | E33: =B33&C33&D33&IF($A$2="Non-municipal","N",IF($A$2="Municiple","Y","error")) -> Me04N | H33: > 132kV* | J33: 0 | K33: =ROUND(J33 * (1 + VAT), 2) -> 0 | L33: 0 | M33: =ROUND(L33 * (1 + VAT), 2) -> 0 | N33: 24.93 | O33: =ROUND(N33 * (1 + VAT), 2) -> 28.67 | Q33: > 132kV* | S33: 0.63 | T33: =ROUND(S33 * (1 + VAT), 2) -> 0.72
H34: * 132 kV or Transmission connected | Q34: * 132 kV or Transmission connected
H36: Customer categories | J36: Service charge [R/account/day] | L36: Administration charge [R/POD/day] | Q36: Reactive energy charge [c/kVArh]
Q37: High season | S37: Low season
A38: Tariff | B38: Tariff nameBillcode | C38: Tx zone | D38: Voltage | E38: Billcode | K38: VAT incl | M38: VAT incl | R38: VAT incl | T38: VAT incl
A39: Megaflex | B39: Me | C39: 0 | D39: 1 | E39: =B39&C39&D39&IF($A$2="Non-municipal","N",IF($A$2="Municiple","Y","error")) -> Me01N | H39: > 1 MVA | J39: 354.25 | K39: =ROUND(J39 * (1 + VAT), 2) -> 407.39 | L39: 159.66 | M39: =ROUND(L39 * (1 + VAT), 2) -> 183.61 | Q39: 24.95 | R39: =ROUND(Q39 * (1 + VAT), 2) -> 28.69 | S39: 0 | T39: =ROUND(S39 * (1 + VAT), 2) -> 0
A40: Megaflex | B40: Me | C40: 0 | D40: 1 | E40: =B40&C40&D40&IF($A$2="Non-municipal","N",IF($A$2="Municiple","Y","error")) -> Me01N | H40: Key customers | J40: 6942.01 | K40: =ROUND(J40 * (1 + VAT), 2) -> 7983.31 | L40: 221.7 | M40: =ROUND(L40 * (1 + VAT), 2) -> 254.96
H42: Electrification and rural network subsidy charge [c/kWh] | J42: Affordability subsidy charge [c/kWh] Only payable by non-local authority tariffs
A45: Tariff | B45: Tariff nameBillcode | C45: Tx zone | D45: Voltage | E45: Billcode | I45: VAT incl | K45: VAT incl
A46: Megaflex | B46: Me | C46: 0 | D46: 1 | E46: =B46&C46&D46&IF($A$2="Non-municipal","N",IF($A$2="Municiple","Y","error")) -> Me01N | H46: 13.8 | I46: =ROUND(H46 * (1 + VAT), 2) -> 15.87 | J46: 7.37 | K46: =ROUND(J46 * (1 + VAT), 2) -> 8.48

Sheet Megaflex Munic
G1: Back to menu
A2: Municiple | G2: Megaflex – Local Authority | AF2: =SUM(J8:T23,V8:V23,#REF!,#REF!,#REF!,#REF!,H26:J26,L26) ->  | AG2: check value
J4: Active energy charge [c/kWh] | V4: Transmission network charges [R/kVA/m]
H5: Transmission zone | J5: High demand season [Jun - Aug] | P5: Low demand season [Sep - May]
I6: Voltage | J6: Peak | L6: Standard | N6: Off Peak | P6: Peak | R6: Standard | T6: Off Peak
A7: Tariff | B7: Tariff nameBillcode | C7: Tx zone | D7: Voltage | E7: Billcode | K7: VAT incl | M7: VAT incl | O7: VAT incl | Q7: VAT incl | S7: VAT incl | U7: VAT incl | W7: VAT incl
A8: Megaflex | B8: Me | C8: 0 | D8: 1 | E8: Me01Y | H8: ≤ 300km | I8: < 500V | J8: 562.5 | K8: =ROUND(J8 * (1 + VAT), 2) -> 646.88 | L8: 171.17 | M8: =ROUND(L8 * (1 + VAT), 2) -> 196.85 | N8: 93.4 | O8: =ROUND(N8 * (1 + VAT), 2) -> 107.41 | P8: 184.15 | Q8: =ROUND(P8 * (1 + VAT), 2) -> 211.77 | R8: 127.09 | S8: =ROUND(R8 * (1 + VAT), 2) -> 146.15 | T8: 81.01 | U8: =ROUND(T8 * (1 + VAT), 2) -> 93.16 | V8: 15.68 | W8: =ROUND(V8 * (1 + VAT), 2) -> 18.03
A9: Megaflex | B9: Me | C9: 0 | D9: 2 | E9: Me02Y | I9: ≥ 500V & < 66kV | J9: 553.63 | K9: 636.67 | L9: 167.74 | M9: 192.9 | N9: 91.11 | O9: 104.78 | P9: 180.6 | Q9: 207.69 | R9: 124.29 | S9: 142.93 | T9: 78.88 | U9: 90.71 | V9: 14.3 | W9: 16.45
A10: Megaflex | B10: Me | C10: 0 | D10: 3 | E10: Me03Y | I10: ≥ 66kV & ≤ 132kV | J10: 536.17 | K10: 616.6 | L10: 162.42 | M10: 186.78 | N10: 88.21 | O10: 101.44 | P10: 174.91 | Q10: 201.15 | R10: 120.41 | S10: 138.47 | T10: 76.37 | U10: 87.83 | V10: 13.91 | W10: 16
A11: Megaflex | B11: Me | C11: 0 | D11: 4 | E11: Me04Y | I11: > 132kV* | J11: 505.3 | K11: 581.1 | L11: 153.07 | M11: 176.03 | N11: 83.12 | O11: 95.59 | P11: 164.83 | Q11: 189.55 | R11: 113.44 | S11: 130.46 | T11: 71.96 | U11: 82.75 | V11: 17.62 | W11: 20.26
A12: Megaflex | B12: Me | C12: 1 | D12: 1 | E12: Me11Y | H12: > 300km and ≤ 600km | I12: < 500V | J12: 567.09 | K12: 652.15 | L12: 171.78 | M12: 197.55 | N12: 93.27 | O12: 107.26 | P12: 184.99 | Q12: 212.74 | R12: 127.35 | S12: 146.45 | T12: 80.8 | U12: 92.92 | V12: 15.74 | W12: 18.1
A13: Megaflex | B13: Me | C13: 1 | D13: 2 | E13: Me12Y | I13: ≥ 500V & < 66kV | J13: 559.17 | K13: 643.05 | L13: 169.39 | M13: 194.8 | N13: 91.98 | O13: 105.78 | P13: 182.44 | Q13: 209.81 | R13: 125.55 | S13: 144.38 | T13: 79.64 | U13: 91.59 | V13: 14.47 | W13: 16.64
A14: Megaflex | B14: Me | C14: 1 | D14: 3 | E14: Me13Y | I14: ≥ 66kV & ≤ 132kV | J14: 541.41 | K14: 622.62 | L14: 164 | M14: 188.6 | N14: 89.06 | O14: 102.42 | P14: 176.62 | Q14: 203.11 | R14: 121.54 | S14: 139.77 | T14: 77.09 | U14: 88.65 | V14: 14.03 | W14: 16.13
A15: Megaflex | B15: Me | C15: 1 | D15: 4 | E15: Me14Y | I15: > 132kV* | J15: 510.34 | K15: 586.89 | L15: 154.64 | M15: 177.84 | N15: 83.95 | O15: 96.54 | P15: 166.45 | Q15: 191.42 | R15: 114.6 | S15: 131.79 | T15: 72.67 | U15: 83.57 | V15: 17.79 | W15: 20.46
A16: Megaflex | B16: Me | C16: 2 | D16: 1 | E16: Me21Y | H16: > 600km and ≤ 900km | I16: < 500V | J16: 572.75 | K16: 658.66 | L16: 173.51 | M16: 199.54 | N16: 94.2 | O16: 108.33 | P16: 186.81 | Q16: 214.83 | R16: 128.61 | S16: 147.9 | T16: 81.59 | U16: 93.83 | V16: 15.95 | W16: 18.34
A17: Megaflex | B17: Me | C17: 2 | D17: 2 | E17: Me22Y | I17: ≥ 500V & < 66kV | J17: 564.81 | K17: 649.53 | L17: 171.08 | M17: 196.74 | N17: 92.92 | O17: 106.86 | P17: 184.28 | Q17: 211.92 | R17: 126.75 | S17: 145.76 | T17: 80.45 | U17: 92.52 | V17: 14.55 | W17: 16.73
A18: Megaflex | B18: Me | C18: 2 | D18: 3 | E18: Me23Y | I18: ≥ 66kV & ≤ 132kV | J18: 546.93 | K18: 628.97 | L18: 165.65 | M18: 190.5 | N18: 89.94 | O18: 103.43 | P18: 178.35 | Q18: 205.1 | R18: 122.75 | S18: 141.16 | T18: 77.85 | U18: 89.53 | V18: 14.14 | W18: 16.26
A19: Megaflex | B19: Me | C19: 2 | D19: 4 | E19: Me24Y | I19: > 132kV* | J19: 515.46 | K19: 592.78 | L19: 156.18 | M19: 179.61 | N19: 84.79 | O19: 97.51 | P19: 168.17 | Q19: 193.4 | R19: 115.73 | S19: 133.09 | T19: 73.41 | U19: 84.42 | V19: 18.03 | W19: 20.73
A20: Megaflex | B20: Me | C20: 3 | D20: 1 | E20: Me31Y | H20: > 900km | I20: < 500V | J20: 578.48 | K20: 665.25 | L20: 175.27 | M20: 201.56 | N20: 95.17 | O20: 109.45 | P20: 188.73 | Q20: 217.04 | R20: 129.87 | S20: 149.35 | T20: 82.41 | U20: 94.77 | V20: 16.02 | W20: 18.42
A21: Megaflex | B21: Me | C21: 3 | D21: 2 | E21: Me32Y | I21: ≥ 500V & < 66kV | J21: 570.45 | K21: 656.02 | L21: 172.79 | M21: 198.71 | N21: 93.85 | O21: 107.93 | P21: 186.06 | Q21: 213.97 | R21: 128.06 | S21: 147.27 | T21: 81.21 | U21: 93.39 | V21: 14.72 | W21: 16.93
A22: Megaflex | B22: Me | C22: 3 | D22: 3 | E22: Me33Y | I22: ≥ 66kV & ≤ 132kV | J22: 552.43 | K22: 635.29 | L22: 167.36 | M22: 192.46 | N22: 90.88 | O22: 104.51 | P22: 180.2 | Q22: 207.23 | R22: 124 | S22: 142.6 | T22: 78.66 | U22: 90.46 | V22: 14.24 | W22: 16.38
A23: Megaflex | B23: Me | C23: 3 | D23: 4 | E23: Me34Y | I23: > 132kV* | J23: 520.54 | K23: 598.62 | L23: 157.75 | M23: 181.41 | N23: 85.74 | O23: 98.6 | P23: 169.89 | Q23: 195.37 | R23: 116.94 | S23: 134.48 | T23: 74.22 | U23: 85.35 | V23: 18.14 | W23: 20.86
I24: * 132 kV or Transmission connected
H26: Distribution network charges
J27: Network capacity charge [R/kVA/m] | L27: Network demand charge [R/kVA/m] | N27: Urban low voltage subsidy charge [R/kVA/m]
H28: Voltage | Q28: Voltage | S28: Ancillary service charge [c/kWh]
A29: Tariff | B29: Tariff nameBillcode | C29: Tx zone | D29: Voltage | E29: Billcode | K29: VAT incl | M29: VAT incl | O29: VAT incl | T29: VAT incl
A30: Megaflex | B30: Me | C30: 0 | D30: 1 | E30: Me01Y | H30: < 500V | J30: 31.26 | K30: =ROUND(J30 * (1 + VAT), 2) -> 35.95 | L30: 59.22 | M30: =ROUND(L30 * (1 + VAT), 2) -> 68.1 | N30: 0 | O30: =ROUND(N30 * (1 + VAT), 2) -> 0 | Q30: < 500V | S30: 0.73 | T30: =ROUND(S30 * (1 + VAT), 2) -> 0.84
A31: Megaflex | B31: Me | C31: 0 | D31: 2 | E31: Me02Y | H31: ≥ 500V & < 66kV | J31: 28.65 | K31: =ROUND(J31 * (1 + VAT), 2) -> 32.95 | L31: 54.31 | M31: =ROUND(L31 * (1 + VAT), 2) -> 62.46 | N31: 0 | O31: =ROUND(N31 * (1 + VAT), 2) -> 0 | Q31: ≥ 500V & < 66kV | S31: 0.71 | T31: =ROUND(S31 * (1 + VAT), 2) -> 0.82
A32: Megaflex | B32: Me | C32: 0 | D32: 3 | E32: Me03Y | H32: ≥ 66kV & ≤ 132kV | J32: 10.25 | K32: =ROUND(J32 * (1 + VAT), 2) -> 11.79 | L32: 18.96 | M32: =ROUND(L32 * (1 + VAT), 2) -> 21.8 | N32: 25.1 | O32: =ROUND(N32 * (1 + VAT), 2) -> 28.87 | Q32: ≥ 66kV & ≤ 132kV | S32: 0.65 | T32: =ROUND(S32 * (1 + VAT), 2) -> 0.75
A33: Megaflex | B33: Me | C33: 0 | D33: 4 | E33: Me04Y | H33: > 132kV* | J33: 0 | K33: =ROUND(J33 * (1 + VAT), 2) -> 0 | L33: 0 | M33: =ROUND(L33 * (1 + VAT), 2) -> 0 | N33: 25.1 | O33: =ROUND(N33 * (1 + VAT), 2) -> 28.87 | Q33: > 132kV* | S33: 0.62 | T33: =ROUND(S33 * (1 + VAT), 2) -> 0.71
H34: * 132 kV or Transmission connected | Q34: * 132 kV or Transmission connected
H36: Customer categories | J36: Service charge [R/account/day] | L36: Administration charge [R/POD/day] | Q36: Reactive energy charge [c/kVArh]
Q37: High season | S37: Low season
A38: Tariff | B38: Tariff nameBillcode | C38: Tx zone | D38: Voltage | E38: Billcode | K38: VAT incl | M38: VAT incl | R38: VAT incl | T38: VAT incl
A39: Megaflex | B39: Me | C39: 0 | D39: 1 | E39: Me01Y | H39: > 1 MVA | J39: 356.92 | K39: =ROUND(J39 * (1 + VAT), 2) -> 410.46 | L39: 160.88 | M39: =ROUND(L39 * (1 + VAT), 2) -> 185.01 | Q39: 25.11 | R39: =ROUND(Q39 * (1 + VAT), 2) -> 28.88 | S39: 0 | T39: =ROUND(S39 * (1 + VAT), 2) -> 0
A40: Megaflex | B40: Me | C40: 0 | D40: 1 | E40: Me01Y | H40: Key customers | J40: 6994.19 | K40: =ROUND(J40 * (1 + VAT), 2) -> 8043.32 | L40: 223.36 | M40: =ROUND(L40 * (1 + VAT), 2) -> 256.86
H42: Electrification and rural network subsidy charge [c/kWh]
A45: Tariff | B45: Tariff nameBillcode | C45: Tx zone | D45: Voltage | E45: Billcode | I45: VAT incl
A46: Megaflex | B46: Me | C46: 0 | D46: 1 | E46: Me01Y | H46: 13.9 | I46: =ROUND(H46 * (1 + VAT), 2) -> 15.99

Sheet Megaflex Gen NLA
G1: Back to menu
A2: Non-municipal | G2: Megaflex Gen - Non-local authority
J4: Active energy charge for loads [c/kWh] | V4: Transmission network charges [R/kVA/m]
H5: Transmission zone | J5: High demand season [Jun - Aug] | P5: Low demand season [Sep - May]
I6: Voltage | J6: Peak | L6: Standard | N6: Off Peak | P6: Peak | R6: Standard | T6: Off Peak
A7: Tariff | B7: Tariff nameBillcode | C7: Tx zone | D7: Voltage | E7: Billcode | K7: VAT incl | M7: VAT incl | O7: VAT incl | Q7: VAT incl | S7: VAT incl | U7: VAT incl | W7: VAT incl
A8: Genflex urban loads | B8: GU | C8: 0 | D8: 1 | E8: =B8&C8&D8&IF($A$2="Non-municipal","N",IF($A$2="Municiple","Y","error")) -> GU01N | H8: ≤ 300km | I8: < 500V | J8: 542.79 | K8: =ROUND(J8 * (1 + VAT), 2) -> 624.21 | L8: 165.14 | M8: =ROUND(L8 * (1 + VAT), 2) -> 189.91 | N8: 90.17 | O8: =ROUND(N8 * (1 + VAT), 2) -> 103.7 | P8: 177.74 | Q8: =ROUND(P8 * (1 + VAT), 2) -> 204.4 | R8: 122.64 | S8: =ROUND(R8 * (1 + VAT), 2) -> 141.04 | T8: 78.19 | U8: =ROUND(T8 * (1 + VAT), 2) -> 89.92 | V8: 15.53 | W8: =ROUND(V8 * (1 + VAT), 2) -> 17.86
A9: Genflex urban loads | B9: GU | C9: 0 | D9: 2 | E9: =B9&C9&D9&IF($A$2="Non-municipal","N",IF($A$2="Municiple","Y","error")) -> GU02N | I9: ≥ 500V & < 66kV | J9: 534.27 | K9: 614.41 | L9: 161.85 | M9: 186.13 | N9: 87.91 | O9: 101.1 | P9: 174.26 | Q9: 200.4 | R9: 119.96 | S9: 137.95 | T9: 76.1 | U9: 87.52 | V9: 14.19 | W9: 16.32
A10: Genflex urban loads | B10: GU | C10: 0 | D10: 3 | E10: GU03N | I10: ≥ 66kV & ≤ 132kV | J10: 517.35 | K10: 594.95 | L10: 156.71 | M10: 180.22 | N10: 85.12 | O10: 97.89 | P10: 168.78 | Q10: 194.1 | R10: 116.13 | S10: 133.55 | T10: 73.72 | U10: 84.78 | V10: 13.81 | W10: 15.88
A11: Genflex urban loads | B11: GU | C11: 0 | D11: 4 | E11: GU04N | I11: > 132kV* | J11: 487.58 | K11: 560.72 | L11: 147.68 | M11: 169.83 | N11: 80.22 | O11: 92.25 | P11: 159.1 | Q11: 182.97 | R11: 109.47 | S11: 125.89 | T11: 69.46 | U11: 79.88 | V11: 17.47 | W11: 20.09
A12: Genflex urban loads | B12: GU | C12: 1 | D12: 1 | E12: GU11N | H12: > 300km and ≤ 600km | I12: < 500V | J12: 547.21 | K12: 629.29 | L12: 165.8 | M12: 190.67 | N12: 90.02 | O12: 103.52 | P12: 178.52 | Q12: 205.3 | R12: 122.91 | S12: 141.35 | T12: 77.98 | U12: 89.68 | V12: 15.64 | W12: 17.99
A13: Genflex urban loads | B13: GU | C13: 1 | D13: 2 | E13: GU12N | I13: ≥ 500V & < 66kV | J13: 539.6 | K13: 620.54 | L13: 163.45 | M13: 187.97 | N13: 88.76 | O13: 102.07 | P13: 176.05 | Q13: 202.46 | R13: 121.14 | S13: 139.31 | T13: 76.85 | U13: 88.38 | V13: 14.32 | W13: 16.47
A14: Genflex urban loads | B14: GU | C14: 1 | D14: 3 | E14: GU13N | I14: ≥ 66kV & ≤ 132kV | J14: 522.43 | K14: 600.79 | L14: 158.24 | M14: 181.98 | N14: 85.91 | O14: 98.8 | P14: 170.41 | Q14: 195.97 | R14: 117.29 | S14: 134.88 | T14: 74.42 | U14: 85.58 | V14: 13.92 | W14: 16.01
A15: Genflex urban loads | B15: GU | C15: 1 | D15: 4 | E15: GU14N | I15: > 132kV* | J15: 492.47 | K15: 566.34 | L15: 149.21 | M15: 171.59 | N15: 80.97 | O15: 93.12 | P15: 160.63 | Q15: 184.72 | R15: 110.53 | S15: 127.11 | T15: 70.11 | U15: 80.63 | V15: 17.62 | W15: 20.26
A16: Genflex urban loads | B16: GU | C16: 2 | D16: 1 | E16: GU21N | H16: > 600km and ≤ 900km | I16: < 500V | J16: 552.66 | K16: 635.56 | L16: 167.42 | M16: 192.53 | N16: 90.89 | O16: 104.52 | P16: 180.28 | Q16: 207.32 | R16: 124.1 | S16: 142.72 | T16: 78.7 | U16: 90.51 | V16: 15.82 | W16: 18.19
A17: Genflex urban loads | B17: GU | C17: 2 | D17: 2 | E17: GU22N | I17: ≥ 500V & < 66kV | J17: 545.02 | K17: 626.77 | L17: 165.13 | M17: 189.9 | N17: 89.66 | O17: 103.11 | P17: 177.79 | Q17: 204.46 | R17: 122.38 | S17: 140.74 | T17: 77.63 | U17: 89.27 | V17: 14.45 | W17: 16.62
A18: Genflex urban loads | B18: GU | C18: 2 | D18: 3 | E18: GU23N | I18: ≥ 66kV & ≤ 132kV | J18: 527.77 | K18: 606.94 | L18: 159.88 | M18: 183.86 | N18: 86.8 | O18: 99.82 | P18: 172.15 | Q18: 197.97 | R18: 118.51 | S18: 136.29 | T18: 75.19 | U18: 86.47 | V18: 14 | W18: 16.1
A19: Genflex urban loads | B19: GU | C19: 2 | D19: 4 | E19: GU24N | I19: > 132kV* | J19: 497.43 | K19: 572.04 | L19: 150.66 | M19: 173.26 | N19: 81.87 | O19: 94.15 | P19: 162.25 | Q19: 186.59 | R19: 111.66 | S19: 128.41 | T19: 70.86 | U19: 81.49 | V19: 17.88 | W19: 20.56
A20: Genflex urban loads | B20: GU | C20: 3 | D20: 1 | E20: GU31N | H20: > 900km | I20: < 500V | J20: 558.22 | K20: 641.95 | L20: 169.17 | M20: 194.55 | N20: 91.81 | O20: 105.58 | P20: 182.12 | Q20: 209.44 | R20: 125.32 | S20: 144.12 | T20: 79.53 | U20: 91.46 | V20: 15.92 | W20: 18.31
A21: Genflex urban loads | B21: GU | C21: 3 | D21: 2 | E21: GU32N | I21: ≥ 500V & < 66kV | J21: 550.44 | K21: 633.01 | L21: 166.73 | M21: 191.74 | N21: 90.51 | O21: 104.09 | P21: 179.53 | Q21: 206.46 | R21: 123.54 | S21: 142.07 | T21: 78.39 | U21: 90.15 | V21: 14.62 | W21: 16.81
A22: Genflex urban loads | B22: GU | C22: 3 | D22: 3 | E22: GU33N | I22: ≥ 66kV & ≤ 132kV | J22: 533.06 | K22: 613.02 | L22: 161.46 | M22: 185.68 | N22: 87.67 | O22: 100.82 | P22: 173.87 | Q22: 199.95 | R22: 119.67 | S22: 137.62 | T22: 75.92 | U22: 87.31 | V22: 14.13 | W22: 16.25
A23: Genflex urban loads | B23: GU | C23: 3 | D23: 4 | E23: GU34N | I23: > 132kV* | J23: 502.27 | K23: 577.61 | L23: 152.22 | M23: 175.05 | N23: 82.7 | O23: 95.11 | P23: 163.94 | Q23: 188.53 | R23: 112.88 | S23: 129.81 | T23: 71.64 | U23: 82.39 | V23: 18.01 | W23: 20.71
A24: Gen-purchase | B24: NLPurchADJ | C24: 0 | D24: 4 | E24: NLPurchADJ04N | H24: WEPS energy rate excluding losses | J24: 482.4181261 | K24: 554.78 | L24: 146.1165529 | M24: =ROUND(L24 * (1 + VAT), 2) -> 168.03 | N24: 79.37073316 | O24: =ROUND(N24 * (1 + VAT), 2) -> 91.28 | P24: 157.4156525 | Q24: =ROUND(P24 * (1 + VAT), 2) -> 181.03 | R24: 108.3110715 | S24: =ROUND(R24 * (1 + VAT), 2) -> 124.56 | T24: 68.72464628 | U24: =ROUND(T24 * (1 + VAT), 2) -> 79.03
A25: TUoS network charges for Transmission connected generators | B25: GenTUOS | C25: Cape | D25: 4 | E25: GenTUOSCape4N | I25: * 132 kV or Transmission connected
A26: TUoS network charges for Transmission connected generators | B26: GenTUOS | C26: Karoo | D26: 4 | E26: GenTUOSKaroo4N
A27: TUoS network charges for Transmission connected generators | B27: GenTUOS | C27: Kwazulu-Natal | D27: 4 | E27: GenTUOSKwazulu-Natal4N | H27: Distribution network charges for loads | Q27: Transmission network charges for generators | U27: Distribution network charges for generators*
A28: TUoS network charges for Transmission connected generators | B28: GenTUOS | C28: Vaal | D28: 4 | E28: GenTUOSVaal4N | J28: Network capacity charge [R/kVA/m] | L28: Network demand charge [R/kVA/m] | N28: Urban low voltage subsidy charge [R/kVA/m]
A29: TUoS network charges for Transmission connected generators | B29: GenTUOS | C29: Waterburg | D29: 4 | E29: GenTUOSWaterburg4N | H29: Voltage | Q29: TUoS [ > 132kV] | S29: Network charge [R/kW] | U29: Voltage | W29: Network capacity charge [R/kW/m]
A30: TUoS network charges for Transmission connected generators | B30: GenTUOS | C30: Mpumalanga | D30: 4 | E30: GenTUOSMpumalanga4N | H30: Voltage | K30: VAT incl | M30: VAT incl | O30: VAT incl | T30: VAT incl
A31: Genflex urban loads | B31: GU | C31: 0 | D31: 1 | E31: =B31&C31&D31&IF($A$2="Non-municipal","N",IF($A$2="Municiple","Y","error")) -> GU01N | H31: < 500V | J31: 30.86 | K31: =ROUND(J31 * (1 + VAT), 2) -> 35.49 | L31: 58.51 | M31: =ROUND(L31 * (1 + VAT), 2) -> 67.29 | N31: 0 | O31: =ROUND(N31 * (1 + VAT), 2) -> 0 | Q31: Cape | S31: 0 | T31: =ROUND(S31 * (1 + VAT), 2) -> 0 | X31: VAT incl
A32: Genflex urban loads | B32: GU | C32: 0 | D32: 2 | E32: =B32&C32&D32&IF($A$2="Non-municipal","N",IF($A$2="Municiple","Y","error")) -> GU02N | H32: ≥ 500V & < 66kV | J32: 28.3 | K32: =ROUND(J32 * (1 + VAT), 2) -> 32.55 | L32: 53.68 | M32: =ROUND(L32 * (1 + VAT), 2) -> 61.73 | N32: 0 | O32: =ROUND(N32 * (1 + VAT), 2) -> 0 | Q32: Karoo | S32: 0 | T32: 0 | U32: < 500V
A33: Genflex urban loads | B33: GU | C33: 0 | D33: 3 | E33: =B33&C33&D33&IF($A$2="Non-municipal","N",IF($A$2="Municiple","Y","error")) -> GU03N | H33: ≥ 66kV & ≤ 132kV | J33: 10.11 | K33: =ROUND(J33 * (1 + VAT), 2) -> 11.63 | L33: 18.71 | M33: =ROUND(L33 * (1 + VAT), 2) -> 21.52 | N33: 24.93 | O33: =ROUND(N33 * (1 + VAT), 2) -> 28.67 | Q33: Kwazulu-Natal | S33: 3.67 | T33: 4.22 | U33: ≥ 500V & < 66kV
A34: Genflex urban loads | B34: GU | C34: 0 | D34: 4 | E34: =B34&C34&D34&IF($A$2="Non-municipal","N",IF($A$2="Municiple","Y","error")) -> GU04N | H34: > 132kV / Transmission connected | J34: 0 | K34: =ROUND(J34 * (1 + VAT), 2) -> 0 | L34: 0 | M34: =ROUND(L34 * (1 + VAT), 2) -> 0 | N34: 24.93 | O34: =ROUND(N34 * (1 + VAT), 2) -> 28.67 | Q34: Vaal | S34: 12.21 | T34: 14.04 | U34: ≥ 66kV & ≤ 132kV | W34: 24.95 | X34: =ROUND(W34 * (1 + VAT), 2) -> 28.69
A35: Gen-DUoS urban | B35: NEGenDUoSU | C35: 0 | D35: 3 | E35: =B35&C35&D35&IF($A$2="Non-municipal","N",IF($A$2="Municiple","Y","error")) -> NEGenDUoSU03N | Q35: Waterberg | S35: 15.64 | T35: 17.99 | U35: * The Distribution network charge will be rebated by the Losses charge, but not beyond extintion
Q36: Mpumalanga | S36: 14.51 | T36: 16.69
H37: Customer categories | J37: Service charge [R/account/day] | L37: Administration charge [R/POD/day]
H38: [kVA or MVA = loads] | Q38: Ancillary service charge for loads and generators
A39: Tariff | B39: Tariff nameBillcode | C39: Tx zone | D39: Voltage | E39: Billcode | H39: [kW or MW = generators] | K39: VAT incl | M39: VAT incl
A40: Genflex urban loads | B40: GU | C40: 0 | D40: 1 | E40: =B40&C40&D40&IF($A$2="Non-municipal","N",IF($A$2="Municiple","Y","error")) -> GU01N | H40: ≤ 100 KVA/ kW | J40: 25.21 | K40: =ROUND(J40 * (1 + VAT), 2) -> 28.99 | L40: 5.54 | M40: =ROUND(L40 * (1 + VAT), 2) -> 6.37 | Q40: Voltage | S40: Ancillary service charge [c/kWh]
A41: Genflex urban loads | B41: GU | C41: 0 | D41: 1 | E41: =B41&C41&D41&IF($A$2="Non-municipal","N",IF($A$2="Municiple","Y","error")) -> GU01N | H41: > 100 kVA/ kW & ≤ 500 kVA/ kW | J41: 115.14 | K41: =ROUND(J41 * (1 + VAT), 2) -> 132.41 | L41: 32.3 | M41: =ROUND(L41 * (1 + VAT), 2) -> 37.15 | T41: VAT incl
A42: Genflex urban loads | B42: GU | C42: 0 | D42: 1 | E42: =B42&C42&D42&IF($A$2="Non-municipal","N",IF($A$2="Municiple","Y","error")) -> GU01N | H42: > 500 kVA/ kW & ≤ 1 MVA/MW | J42: 354.25 | K42: =ROUND(J42 * (1 + VAT), 2) -> 407.39 | L42: 64.12 | M42: =ROUND(L42 * (1 + VAT), 2) -> 73.74 | Q42: < 500V | S42: 0.71 | T42: =ROUND(S42 * (1 + VAT), 2) -> 0.82
A43: Genflex urban loads | B43: GU | C43: 0 | D43: 1 | E43: =B43&C43&D43&IF($A$2="Non-municipal","N",IF($A$2="Municiple","Y","error")) -> GU01N | H43: > 1 MVA/MW | J43: 354.25 | K43: =ROUND(J43 * (1 + VAT), 2) -> 407.39 | L43: 159.66 | M43: =ROUND(L43 * (1 + VAT), 2) -> 183.61 | Q43: ≥ 500V & < 66kV | S43: 0.7 | T43: =ROUND(S43 * (1 + VAT), 2) -> 0.81
A44: Genflex urban loads | B44: GU | C44: 0 | D44: 1 | E44: =B44&C44&D44&IF($A$2="Non-municipal","N",IF($A$2="Municiple","Y","error")) -> GU01N | H44: Key customers or Transmission connected generators | J44: 6942.01 | K44: =ROUND(J44 * (1 + VAT), 2) -> 7983.31 | L44: 221.7 | M44: =ROUND(L44 * (1 + VAT), 2) -> 254.96 | Q44: ≥ 66kV & ≤ 132kV | S44: 0.68 | T44: =ROUND(S44 * (1 + VAT), 2) -> 0.78
Q45: > 132kV | S45: 0.63 | T45: =ROUND(S45 * (1 + VAT), 2) -> 0.72 | Y45: ='Loss Factors'!R10 -> 0
H46: Applicable to loads | Q46: * 132 kV or Transmission connected
H47: Electrification and rural network subsidy charge [c/kWh] | J47: Affordability subsidy charge [c/kWh] Only payable by non-local authority tariffs
M48: Reactive energy charge [c/kVArh] (loads)
M49: High season | O49: Low season
A50: Tariff | B50: Tariff nameBillcode | C50: Tx zone | D50: Voltage | E50: Billcode | I50: VAT incl | K50: VAT incl | N50: VAT incl | P50: VAT incl
A51: Genflex urban loads | B51: GU | C51: 0 | D51: 1 | E51: =B51&C51&D51&IF($A$2="Non-municipal","N",IF($A$2="Municiple","Y","error")) -> GU01N | H51: 13.8 | I51: =ROUND(H51 * (1 + VAT), 2) -> 15.87 | J51: 7.37 | K51: =ROUND(J51 * (1 + VAT), 2) -> 8.48 | M51: 24.95 | N51: =ROUND(M51 * (1 + VAT), 2) -> 28.69 | O51: 0 | P51: =ROUND(O51 * (1 + VAT), 2) -> 0
H54: Losses charge for generators
H55: Distribution connected generators | M55: Transmission connected generators
H56: Formula | M56: Formula
H57: Distribution = - ((Energy produced x WEPS rate excluding losses) x (Distribution loss factor x Transmission loss factor-1)) in each TOU period | M57: Transmission = (Energy produced x WEPS rate excluding losses) x (Transmission loss factor-1/Transmission loss factor) in each TOU period
H58: Transmission loss factors for Distribution connected | K58: Distribution loss factors | M58: Generator loss factor
H59: Distance from Johannesburg | K59: ='Loss Factors'!N5 -> Voltage | M59: =' TUoS NLA'!I38 -> Cape | O59: =' TUoS NLA'!J38 -> 0.971
H60: ='Loss Factors'!R6 -> ≤ 300km | J60: ='Loss Factors'!T6 -> 1.0107 | K60: < 500V | L60: ='Loss Factors'!O6 -> 1.1111 | M60: =' TUoS NLA'!I39 -> Karoo | O60: =' TUoS NLA'!J39 -> 0.995
H61: ='Loss Factors'!R7 -> > 300km & ≤ 600km | J61: ='Loss Factors'!T7 -> 1.0208 | K61: ≥ 500V & < 66kV | L61: ='Loss Factors'!O7 -> 1.0957 | M61: =' TUoS NLA'!I40 -> Kwazulu-Natal | O61: =' TUoS NLA'!J40 -> 1.004
H62: ='Loss Factors'!R8 -> > 600km & ≤ 900km | J62: ='Loss Factors'!T8 -> 1.031 | K62: ≥ 66kV & ≤ 132kV | L62: ='Loss Factors'!O8 -> 1.0611 | M62: =' TUoS NLA'!I41 -> Vaal | O62: =' TUoS NLA'!J41 -> 1.02
H63: ='Loss Factors'!R9 -> > 900km | J63: ='Loss Factors'!T9 -> 1.0413 | K63: > 132kV* | L63: ='Loss Factors'!O9 -> 1 | M63: =' TUoS NLA'!I42 -> Waterberg | O63: =' TUoS NLA'!J42 -> 1.023
H64: * 132 kV or Transmission connected | M64: =' TUoS NLA'!I43 -> Mpumalanga | O64: =' TUoS NLA'!J43 -> 1.021

Sheet Miniflex NLA
G1: Back to menu
A2: Non-municipal | G2: Miniflex - Non-Local Authority
J4: Active energy charge [c/kWh] | V4: Network capacity charge [R/kVA/m]
H5: Transmission zone | J5: High demand season [Jun - Aug] | P5: Low demand season [Sep - May]
I6: Voltage | J6: Peak | L6: Standard | N6: Off Peak | P6: Peak | R6: Standard | T6: Off Peak
A7: Tariff | B7: Tariff nameBillcode | C7: Tx zone | D7: Voltage | E7: Billcode | K7: VAT incl | M7: VAT incl | O7: VAT incl | Q7: VAT incl | S7: VAT incl | U7: VAT incl | W7: VAT incl
A8: Miniflex | B8: Mi | C8: 0 | D8: 1 | E8: =B8&C8&D8&IF($A$2="Non-municipal","N",IF($A$2="Municiple","Y","error")) -> Mi01N | H8: ≤ 300km | I8: < 500V | J8: 542.79 | K8: =ROUND(J8 * (1 + VAT), 2) -> 624.21 | L8: 165.14 | M8: =ROUND(L8 * (1 + VAT), 2) -> 189.91 | N8: 90.17 | O8: =ROUND(N8 * (1 + VAT), 2) -> 103.7 | P8: 177.74 | Q8: =ROUND(P8 * (1 + VAT), 2) -> 204.4 | R8: 122.64 | S8: =ROUND(R8 * (1 + VAT), 2) -> 141.04 | T8: 78.19 | U8: =ROUND(T8 * (1 + VAT), 2) -> 89.92 | V8: 46.32 | W8: =ROUND(V8 * (1 + VAT), 2) -> 53.27
A9: Miniflex | B9: Mi | C9: 0 | D9: 2 | E9: =B9&C9&D9&IF($A$2="Non-municipal","N",IF($A$2="Municiple","Y","error")) -> Mi02N | I9: ≥ 500V & < 66kV | J9: 534.27 | K9: 614.41 | L9: 161.85 | M9: 186.13 | N9: 87.91 | O9: 101.1 | P9: 174.26 | Q9: 200.4 | R9: 119.96 | S9: 137.95 | T9: 76.1 | U9: 87.52 | V9: 42.46 | W9: 48.83
A10: Miniflex | B10: Mi | C10: 0 | D10: 3 | E10: Mi03N | I10: ≥ 66kV & ≤ 132kV | J10: 517.35 | K10: 594.95 | L10: 156.71 | M10: 180.22 | N10: 85.12 | O10: 97.89 | P10: 168.78 | Q10: 194.1 | R10: 116.13 | S10: 133.55 | T10: 73.72 | U10: 84.78 | V10: 23.85 | W10: 27.43
A11: Miniflex | B11: Mi | C11: 0 | D11: 4 | E11: Mi04N | I11: > 132kV* | J11: 487.58 | K11: 560.72 | L11: 147.68 | M11: 169.83 | N11: 80.22 | O11: 92.25 | P11: 159.1 | Q11: 182.97 | R11: 109.47 | S11: 125.89 | T11: 69.46 | U11: 79.88 | V11: 17.38 | W11: 19.99
A12: Miniflex | B12: Mi | C12: 1 | D12: 1 | E12: Mi11N | H12: > 300km and ≤ 600km | I12: < 500V | J12: 547.21 | K12: 629.29 | L12: 165.8 | M12: 190.67 | N12: 90.02 | O12: 103.52 | P12: 178.52 | Q12: 205.3 | R12: 122.91 | S12: 141.35 | T12: 77.98 | U12: 89.68 | V12: 46.44 | W12: 53.41
A13: Miniflex | B13: Mi | C13: 1 | D13: 2 | E13: Mi12N | I13: ≥ 500V & < 66kV | J13: 539.6 | K13: 620.54 | L13: 163.45 | M13: 187.97 | N13: 88.76 | O13: 102.07 | P13: 176.05 | Q13: 202.46 | R13: 121.14 | S13: 139.31 | T13: 76.85 | U13: 88.38 | V13: 42.6 | W13: 48.99
A14: Miniflex | B14: Mi | C14: 1 | D14: 3 | E14: Mi13N | I14: ≥ 66kV & ≤ 132kV | J14: 522.43 | K14: 600.79 | L14: 158.24 | M14: 181.98 | N14: 85.91 | O14: 98.8 | P14: 170.41 | Q14: 195.97 | R14: 117.29 | S14: 134.88 | T14: 74.42 | U14: 85.58 | V14: 23.94 | W14: 27.53
A15: Miniflex | B15: Mi | C15: 1 | D15: 4 | E15: Mi14N | I15: > 132kV* | J15: 492.47 | K15: 566.34 | L15: 149.21 | M15: 171.59 | N15: 80.97 | O15: 93.12 | P15: 160.63 | Q15: 184.72 | R15: 110.53 | S15: 127.11 | T15: 70.11 | U15: 80.63 | V15: 17.57 | W15: 20.21
A16: Miniflex | B16: Mi | C16: 2 | D16: 1 | E16: Mi21N | H16: > 600km and ≤ 900km | I16: < 500V | J16: 552.66 | K16: 635.56 | L16: 167.42 | M16: 192.53 | N16: 90.89 | O16: 104.52 | P16: 180.28 | Q16: 207.32 | R16: 124.1 | S16: 142.72 | T16: 78.7 | U16: 90.51 | V16: 46.67 | W16: 53.67
A17: Miniflex | B17: Mi | C17: 2 | D17: 2 | E17: Mi22N | I17: ≥ 500V & < 66kV | J17: 545.02 | K17: 626.77 | L17: 165.13 | M17: 189.9 | N17: 89.66 | O17: 103.11 | P17: 177.79 | Q17: 204.46 | R17: 122.38 | S17: 140.74 | T17: 77.63 | U17: 89.27 | V17: 42.73 | W17: 49.14
A18: Miniflex | B18: Mi | C18: 2 | D18: 3 | E18: Mi23N | I18: ≥ 66kV & ≤ 132kV | J18: 527.77 | K18: 606.94 | L18: 159.88 | M18: 183.86 | N18: 86.8 | O18: 99.82 | P18: 172.15 | Q18: 197.97 | R18: 118.51 | S18: 136.29 | T18: 75.19 | U18: 86.47 | V18: 24.09 | W18: 27.7
A19: Miniflex | B19: Mi | C19: 2 | D19: 4 | E19: Mi24N | I19: > 132kV* | J19: 497.43 | K19: 572.04 | L19: 150.66 | M19: 173.26 | N19: 81.87 | O19: 94.15 | P19: 162.25 | Q19: 186.59 | R19: 111.66 | S19: 128.41 | T19: 70.86 | U19: 81.49 | V19: 17.82 | W19: 20.49
A20: Miniflex | B20: Mi | C20: 3 | D20: 1 | E20: Mi31N | H20: > 900km | I20: < 500V | J20: 558.22 | K20: 641.95 | L20: 169.17 | M20: 194.55 | N20: 91.81 | O20: 105.58 | P20: 182.12 | Q20: 209.44 | R20: 125.32 | S20: 144.12 | T20: 79.53 | U20: 91.46 | V20: 46.7 | W20: 53.71
A21: Miniflex | B21: Mi | C21: 3 | D21: 2 | E21: Mi32N | I21: ≥ 500V & < 66kV | J21: 550.44 | K21: 633.01 | L21: 166.73 | M21: 191.74 | N21: 90.51 | O21: 104.09 | P21: 179.53 | Q21: 206.46 | R21: 123.54 | S21: 142.07 | T21: 78.39 | U21: 90.15 | V21: 42.87 | W21: 49.3
A22: Miniflex | B22: Mi | C22: 3 | D22: 3 | E22: Mi33N | I22: ≥ 66kV & ≤ 132kV | J22: 533.06 | K22: 613.02 | L22: 161.46 | M22: 185.68 | N22: 87.67 | O22: 100.82 | P22: 173.87 | Q22: 199.95 | R22: 119.67 | S22: 137.62 | T22: 75.92 | U22: 87.31 | V22: 24.18 | W22: 27.81
A23: Miniflex | B23: Mi | C23: 3 | D23: 4 | E23: Mi34N | I23: > 132kV* | J23: 502.27 | K23: 577.61 | L23: 152.22 | M23: 175.05 | N23: 82.7 | O23: 95.11 | P23: 163.94 | Q23: 188.53 | R23: 112.88 | S23: 129.81 | T23: 71.64 | U23: 82.39 | V23: 17.95 | W23: 20.64
I24: * 132 kV or Transmission connected
H26: Customer categories | J26: Service charge [R/account/day] | L26: Administration charge [R/POD/day]
A28: Tariff | B28: Tariff nameBillcode | C28: Tx zone | D28: Voltage | E28: Billcode | K28: VAT incl | M28: VAT incl | P28: Ancillary service charge [c/kWh] | R28: Network demand charge [c/kWh] [Peak & Standard] | U28: Urban low voltage subsidy charge [R/kVA/m]
A29: Miniflex | B29: Mi | C29: 0 | D29: 1 | E29: =B29&C29&D29&IF($A$2="Non-municipal","N",IF($A$2="Municiple","Y","error")) -> Mi01N | H29: ≤ 100 kVA | J29: 25.21 | K29: =ROUND(J29 * (1 + VAT), 2) -> 28.99 | L29: 5.54 | M29: =ROUND(L29 * (1 + VAT), 2) -> 6.37 | O29: Voltage | Q29: VAT incl | S29: VAT incl | W29: VAT incl
A30: Miniflex | B30: Mi | C30: 0 | D30: 1 | E30: =B30&C30&D30&IF($A$2="Non-municipal","N",IF($A$2="Municiple","Y","error")) -> Mi01N | H30: > 100 kVA & ≤ 500 kVA | J30: 115.14 | K30: =ROUND(J30 * (1 + VAT), 2) -> 132.41 | L30: 32.3 | M30: =ROUND(L30 * (1 + VAT), 2) -> 37.15 | O30: < 500V | P30: 0.71 | Q30: =ROUND(P30 * (1 + VAT), 2) -> 0.82 | R30: 28.68 | S30: =ROUND(R30 * (1 + VAT), 2) -> 32.98 | U30: < 500V | V30: 0 | W30: =ROUND(V30 * (1 + VAT), 2) -> 0
A31: Miniflex | B31: Mi | C31: 0 | D31: 1 | E31: =B31&C31&D31&IF($A$2="Non-municipal","N",IF($A$2="Municiple","Y","error")) -> Mi01N | H31: > 500 kVA & ≤ 1 MVA | J31: 354.25 | K31: =ROUND(J31 * (1 + VAT), 2) -> 407.39 | L31: 64.12 | M31: =ROUND(L31 * (1 + VAT), 2) -> 73.74 | O31: ≥ 500V & < 66kV | P31: 0.7 | Q31: =ROUND(P31 * (1 + VAT), 2) -> 0.81 | R31: 12.02 | S31: =ROUND(R31 * (1 + VAT), 2) -> 13.82 | U31: ≥ 500V & < 66kV | V31: 0 | W31: =ROUND(V31 * (1 + VAT), 2) -> 0
A32: Miniflex | B32: Mi | C32: 0 | D32: 1 | E32: =B32&C32&D32&IF($A$2="Non-municipal","N",IF($A$2="Municiple","Y","error")) -> Mi01N | H32: > 1 MVA | J32: 354.25 | K32: =ROUND(J32 * (1 + VAT), 2) -> 407.39 | L32: 159.66 | M32: =ROUND(L32 * (1 + VAT), 2) -> 183.61 | O32: ≥ 66kV & ≤ 132kV | P32: 0.68 | Q32: =ROUND(P32 * (1 + VAT), 2) -> 0.78 | R32: 4.19 | S32: =ROUND(R32 * (1 + VAT), 2) -> 4.82 | U32: ≥ 66kV & ≤ 132kV | V32: 24.93 | W32: =ROUND(V32 * (1 + VAT), 2) -> 28.67
A33: Miniflex | B33: Mi | C33: 0 | D33: 1 | E33: =B33&C33&D33&IF($A$2="Non-municipal","N",IF($A$2="Municiple","Y","error")) -> Mi01N | H33: Key customers | J33: 6942.01 | K33: =ROUND(J33 * (1 + VAT), 2) -> 7983.31 | L33: 221.7 | M33: =ROUND(L33 * (1 + VAT), 2) -> 254.96 | O33: > 132kV* | P33: 0.63 | Q33: =ROUND(P33 * (1 + VAT), 2) -> 0.72 | R33: 0 | S33: =ROUND(R33 * (1 + VAT), 2) -> 0 | U33: > 132kV* | V33: 24.93 | W33: =ROUND(V33 * (1 + VAT), 2) -> 28.67
O34: * 132 kV or Transmission connected | U34: * 132 kV or Transmission connected
H36: Electrification and rural network subsidy charge [c/kWh] | J36: Affordability subsidy charge [c/kWh] Only payable by non-local authority tariffs | O36: Reactive energy charge [c/kVArh]
O38: High season | Q38: Low season
A39: Tariff | B39: Tariff nameBillcode | C39: Tx zone | D39: Voltage | E39: Billcode | I39: VAT incl | K39: VAT incl | P39: VAT incl | R39: VAT incl
A40: Miniflex | B40: Mi | C40: 0 | D40: 1 | E40: =B40&C40&D40&IF($A$2="Non-municipal","N",IF($A$2="Municiple","Y","error")) -> Mi01N | H40: 13.8 | I40: =ROUND(H40 * (1 + VAT), 2) -> 15.87 | J40: 7.37 | K40: =ROUND(J40 * (1 + VAT), 2) -> 8.48 | O40: 10.87 | P40: =ROUND(O40 * (1 + VAT), 2) -> 12.5 | Q40: 0 | R40: =ROUND(Q40 * (1 + VAT), 2) -> 0
A42: Miniflex | B42: Mi | C42: 0 | D42: 1 | E42: =B42&C42&D42&IF($A$2="Non-municipal","N",IF($A$2="Municiple","Y","error")) -> Mi01N
A43: Miniflex | B43: Mi | C43: 1 | D43: 2 | E43: =B43&C43&D43&IF($A$2="Non-municipal","N",IF($A$2="Municiple","Y","error")) -> Mi12N
A44: Miniflex | B44: Mi | C44: 2 | D44: 3 | E44: =B44&C44&D44&IF($A$2="Non-municipal","N",IF($A$2="Municiple","Y","error")) -> Mi23N
A45: Miniflex | B45: Mi | C45: 3 | D45: 4 | E45: =B45&C45&D45&IF($A$2="Non-municipal","N",IF($A$2="Municiple","Y","error")) -> Mi34N

Sheet Miniflex Munic
G1: Back to menu
A2: Municiple | G2: Miniflex - Local Authority
J4: Active energy charge [c/kWh] | V4: Network capacity charge [R/kVA/m]
H5: Transmission zone | J5: High demand season [Jun - Aug] | P5: Low demand season [Sep - May]
I6: Voltage | J6: Peak | L6: Standard | N6: Off Peak | P6: Peak | R6: Standard | T6: Off Peak
A7: Tariff | B7: Tariff nameBillcode | C7: Tx zone | D7: Voltage | E7: Billcode | K7: VAT incl | M7: VAT incl | O7: VAT incl | Q7: VAT incl | S7: VAT incl | U7: VAT incl | W7: VAT incl
A8: Miniflex | B8: Mi | C8: 0 | D8: 1 | E8: Mi01Y | H8: ≤ 300km | I8: < 500V | J8: 562.5 | K8: =ROUND(J8 * (1 + VAT), 2) -> 646.88 | L8: 171.17 | M8: =ROUND(L8 * (1 + VAT), 2) -> 196.85 | N8: 93.4 | O8: =ROUND(N8 * (1 + VAT), 2) -> 107.41 | P8: 184.15 | Q8: =ROUND(P8 * (1 + VAT), 2) -> 211.77 | R8: 127.09 | S8: =ROUND(R8 * (1 + VAT), 2) -> 146.15 | T8: 81.01 | U8: =ROUND(T8 * (1 + VAT), 2) -> 93.16 | V8: 46.91 | W8: =ROUND(V8 * (1 + VAT), 2) -> 53.95
A9: Miniflex | B9: Mi | C9: 0 | D9: 2 | E9: Mi02Y | I9: ≥ 500V & < 66kV | J9: 553.63 | K9: 636.67 | L9: 167.74 | M9: 192.9 | N9: 91.11 | O9: 104.78 | P9: 180.6 | Q9: 207.69 | R9: 124.29 | S9: 142.93 | T9: 78.88 | U9: 90.71 | V9: 42.95 | W9: 49.39
A10: Miniflex | B10: Mi | C10: 0 | D10: 3 | E10: Mi03Y | I10: ≥ 66kV & ≤ 132kV | J10: 536.17 | K10: 616.6 | L10: 162.42 | M10: 186.78 | N10: 88.21 | O10: 101.44 | P10: 174.91 | Q10: 201.15 | R10: 120.41 | S10: 138.47 | T10: 76.37 | U10: 87.83 | V10: 24.12 | W10: 27.74
A11: Miniflex | B11: Mi | C11: 0 | D11: 4 | E11: Mi04Y | I11: > 132kV* | J11: 505.3 | K11: 581.1 | L11: 153.07 | M11: 176.03 | N11: 83.12 | O11: 95.59 | P11: 164.83 | Q11: 189.55 | R11: 113.44 | S11: 130.46 | T11: 71.96 | U11: 82.75 | V11: 17.62 | W11: 20.26
A12: Miniflex | B12: Mi | C12: 1 | D12: 1 | E12: Mi11Y | H12: > 300km and ≤ 600km | I12: < 500V | J12: 567.09 | K12: 652.15 | L12: 171.78 | M12: 197.55 | N12: 93.27 | O12: 107.26 | P12: 184.99 | Q12: 212.74 | R12: 127.35 | S12: 146.45 | T12: 80.8 | U12: 92.92 | V12: 46.99 | W12: 54.04
A13: Miniflex | B13: Mi | C13: 1 | D13: 2 | E13: Mi12Y | I13: ≥ 500V & < 66kV | J13: 559.17 | K13: 643.05 | L13: 169.39 | M13: 194.8 | N13: 91.98 | O13: 105.78 | P13: 182.44 | Q13: 209.81 | R13: 125.55 | S13: 144.38 | T13: 79.64 | U13: 91.59 | V13: 43.13 | W13: 49.6
A14: Miniflex | B14: Mi | C14: 1 | D14: 3 | E14: Mi13Y | I14: ≥ 66kV & ≤ 132kV | J14: 541.41 | K14: 622.62 | L14: 164 | M14: 188.6 | N14: 89.06 | O14: 102.42 | P14: 176.62 | Q14: 203.11 | R14: 121.54 | S14: 139.77 | T14: 77.09 | U14: 88.65 | V14: 24.25 | W14: 27.89
A15: Miniflex | B15: Mi | C15: 1 | D15: 4 | E15: Mi14Y | I15: > 132kV* | J15: 510.34 | K15: 586.89 | L15: 154.64 | M15: 177.84 | N15: 83.95 | O15: 96.54 | P15: 166.45 | Q15: 191.42 | R15: 114.6 | S15: 131.79 | T15: 72.67 | U15: 83.57 | V15: 17.79 | W15: 20.46
A16: Miniflex | B16: Mi | C16: 2 | D16: 1 | E16: Mi21Y | H16: > 600km and ≤ 900km | I16: < 500V | J16: 572.75 | K16: 658.66 | L16: 173.51 | M16: 199.54 | N16: 94.2 | O16: 108.33 | P16: 186.81 | Q16: 214.83 | R16: 128.61 | S16: 147.9 | T16: 81.59 | U16: 93.83 | V16: 47.24 | W16: 54.33
A17: Miniflex | B17: Mi | C17: 2 | D17: 2 | E17: Mi22Y | I17: ≥ 500V & < 66kV | J17: 564.81 | K17: 649.53 | L17: 171.08 | M17: 196.74 | N17: 92.92 | O17: 106.86 | P17: 184.28 | Q17: 211.92 | R17: 126.75 | S17: 145.76 | T17: 80.45 | U17: 92.52 | V17: 43.24 | W17: 49.73
A18: Miniflex | B18: Mi | C18: 2 | D18: 3 | E18: Mi23Y | I18: ≥ 66kV & ≤ 132kV | J18: 546.93 | K18: 628.97 | L18: 165.65 | M18: 190.5 | N18: 89.94 | O18: 103.43 | P18: 178.35 | Q18: 205.1 | R18: 122.75 | S18: 141.16 | T18: 77.85 | U18: 89.53 | V18: 24.37 | W18: 28.03
A19: Miniflex | B19: Mi | C19: 2 | D19: 4 | E19: Mi24Y | I19: > 132kV* | J19: 515.46 | K19: 592.78 | L19: 156.18 | M19: 179.61 | N19: 84.79 | O19: 97.51 | P19: 168.17 | Q19: 193.4 | R19: 115.73 | S19: 133.09 | T19: 73.41 | U19: 84.42 | V19: 18.03 | W19: 20.73
A20: Miniflex | B20: Mi | C20: 3 | D20: 1 | E20: Mi31Y | H20: > 900km | I20: < 500V | J20: 578.48 | K20: 665.25 | L20: 175.27 | M20: 201.56 | N20: 95.17 | O20: 109.45 | P20: 188.73 | Q20: 217.04 | R20: 129.87 | S20: 149.35 | T20: 82.41 | U20: 94.77 | V20: 47.26 | W20: 54.35
A21: Miniflex | B21: Mi | C21: 3 | D21: 2 | E21: Mi32Y | I21: ≥ 500V & < 66kV | J21: 570.45 | K21: 656.02 | L21: 172.79 | M21: 198.71 | N21: 93.85 | O21: 107.93 | P21: 186.06 | Q21: 213.97 | R21: 128.06 | S21: 147.27 | T21: 81.21 | U21: 93.39 | V21: 43.43 | W21: 49.94
A22: Miniflex | B22: Mi | C22: 3 | D22: 3 | E22: Mi33Y | I22: ≥ 66kV & ≤ 132kV | J22: 552.43 | K22: 635.29 | L22: 167.36 | M22: 192.46 | N22: 90.88 | O22: 104.51 | P22: 180.2 | Q22: 207.23 | R22: 124 | S22: 142.6 | T22: 78.66 | U22: 90.46 | V22: 24.46 | W22: 28.13
A23: Miniflex | B23: Mi | C23: 3 | D23: 4 | E23: Mi34Y | I23: > 132kV* | J23: 520.54 | K23: 598.62 | L23: 157.75 | M23: 181.41 | N23: 85.74 | O23: 98.6 | P23: 169.89 | Q23: 195.37 | R23: 116.94 | S23: 134.48 | T23: 74.22 | U23: 85.35 | V23: 18.14 | W23: 20.86
I24: * 132 kV or Transmission connected
H26: Customer categories | J26: Service charge [R/account/day] | L26: Administration charge [R/POD/day]
A28: Tariff | B28: Tariff nameBillcode | C28: Tx zone | D28: Voltage | E28: Billcode | K28: VAT incl | M28: VAT incl | P28: Ancillary service charge [c/kWh] | R28: Network demand charge [c/kWh] [Peak & Standard] | U28: Urban low voltage subsidy charge [R/kVA/m]
A29: Miniflex | B29: Mi | C29: 0 | D29: 1 | E29: Mi01Y | H29: ≤ 100 kVA | J29: 25.38 | K29: =ROUND(J29 * (1 + VAT), 2) -> 29.19 | L29: 5.56 | M29: =ROUND(L29 * (1 + VAT), 2) -> 6.39 | O29: Voltage | Q29: VAT incl | S29: VAT incl | W29: VAT incl
A30: Miniflex | B30: Mi | C30: 0 | D30: 1 | E30: Mi01Y | H30: > 100 kVA & ≤ 500 kVA | J30: 115.98 | K30: =ROUND(J30 * (1 + VAT), 2) -> 133.38 | L30: 32.48 | M30: =ROUND(L30 * (1 + VAT), 2) -> 37.35 | O30: < 500V | P30: 0.73 | Q30: =ROUND(P30 * (1 + VAT), 2) -> 0.84 | R30: 29.02 | S30: =ROUND(R30 * (1 + VAT), 2) -> 33.37 | U30: < 500V | V30: 0 | W30: =ROUND(V30 * (1 + VAT), 2) -> 0
A31: Miniflex | B31: Mi | C31: 0 | D31: 1 | E31: Mi01Y | H31: > 500 kVA & ≤ 1 MVA | J31: 356.92 | K31: =ROUND(J31 * (1 + VAT), 2) -> 410.46 | L31: 64.61 | M31: =ROUND(L31 * (1 + VAT), 2) -> 74.3 | O31: ≥ 500V & < 66kV | P31: 0.71 | Q31: =ROUND(P31 * (1 + VAT), 2) -> 0.82 | R31: 12.19 | S31: =ROUND(R31 * (1 + VAT), 2) -> 14.02 | U31: ≥ 500V & < 66kV | V31: 0 | W31: =ROUND(V31 * (1 + VAT), 2) -> 0
A32: Miniflex | B32: Mi | C32: 0 | D32: 1 | E32: Mi01Y | H32: > 1 MVA | J32: 356.92 | K32: =ROUND(J32 * (1 + VAT), 2) -> 410.46 | L32: 160.88 | M32: =ROUND(L32 * (1 + VAT), 2) -> 185.01 | O32: ≥ 66kV & ≤ 132kV | P32: 0.65 | Q32: =ROUND(P32 * (1 + VAT), 2) -> 0.75 | R32: 4.21 | S32: =ROUND(R32 * (1 + VAT), 2) -> 4.84 | U32: ≥ 66kV & ≤ 132kV | V32: 25.1 | W32: =ROUND(V32 * (1 + VAT), 2) -> 28.87
A33: Miniflex | B33: Mi | C33: 0 | D33: 1 | E33: Mi01Y | H33: Key customers | J33: 6994.19 | K33: =ROUND(J33 * (1 + VAT), 2) -> 8043.32 | L33: 223.36 | M33: =ROUND(L33 * (1 + VAT), 2) -> 256.86 | O33: > 132kV* | P33: 0.62 | Q33: =ROUND(P33 * (1 + VAT), 2) -> 0.71 | R33: 0 | S33: =ROUND(R33 * (1 + VAT), 2) -> 0 | U33: > 132kV* | V33: 25.1 | W33: =ROUND(V33 * (1 + VAT), 2) -> 28.87
O34: * 132 kV or Transmission connected | U34: * 132 kV or Transmission connected
H36: Electrification and rural network subsidy charge [c/kWh] | L36: Reactive energy charge [c/kVArh]
L38: High season | N38: Low season
A39: Tariff | B39: Tariff nameBillcode | C39: Tx zone | D39: Voltage | E39: Billcode | I39: VAT incl | M39: VAT incl | O39: VAT incl
A40: Miniflex | B40: Mi | C40: 0 | D40: 1 | E40: Mi01Y | H40: 13.9 | I40: =ROUND(H40 * (1 + VAT), 2) -> 15.99 | L40: 11.01 | M40: =ROUND(L40 * (1 + VAT), 2) -> 12.66 | N40: 0 | O40: =ROUND(N40 * (1 + VAT), 2) -> 0
A42: Miniflex | B42: Mi | C42: 0 | D42: 1 | E42: Mi01Y
A43: Miniflex | B43: Mi | C43: 1 | D43: 2 | E43: Mi12Y
A44: Miniflex | B44: Mi | C44: 2 | D44: 3 | E44: Mi23Y
A45: Miniflex | B45: Mi | C45: 3 | D45: 4 | E45: Mi34Y

Sheet Businessrate NLA
H1: Back to menu
A2: Non-municipal | G2: Businessrate - Non-local Authority
J4: Energy charge [c/kWh] | L4: Ancillary service charge [c/kWh] | N4: Network demand charge [c/kWh] | P4: Network capacity charge [R/POD/day] | R4: Service and administration charge [R/POD/day] | Z4: Electrification and rural network subsidy charge [c/kWh] | AB4: Affordability subsidy charge [c/kWh] payable by non-local authority tariffs
Z6: All seasons | AB6: All seasons
A7: Tariff | B7: Tariff nameBillcode | C7: Tx zone | D7: Voltage | E7: Billcode | K7: VAT incl | M7: VAT incl | O7: VAT incl | Q7: VAT incl | S7: VAT incl | AA7: VAT incl | AC7: VAT incl
A8: Businessrate 1 | B8: B1 | C8: 0 | D8: 1 | E8: =B8&C8&D8&IF($A$2="Non-municipal","N",IF($A$2="Municiple","Y","error")) -> B101N | H8: Businessrate 1 | J8: 185.83 | K8: =ROUND(J8 * (1 + VAT), 2) -> 213.7 | L8: 0.71 | M8: =ROUND(L8 * (1 + VAT), 2) -> 0.82 | N8: 26.23 | O8: =ROUND(N8 * (1 + VAT), 2) -> 30.16 | P8: 37.67 | Q8: =ROUND(P8 * (1 + VAT), 2) -> 43.32 | R8: 32.56 | S8: =ROUND(R8 * (1 + VAT), 2) -> 37.44 | Z8: 0 | AA8: =ROUND(Z8 * (1 + VAT), 2) -> 0 | AB8: 0 | AC8: =ROUND(AB8 * (1 + VAT), 2) -> 0
A9: Businessrate 2 | B9: B2 | C9: 0 | D9: 1 | E9: =B9&C9&D9&IF($A$2="Non-municipal","N",IF($A$2="Municiple","Y","error")) -> B201N | H9: Businessrate 2 | J9: 185.83 | K9: =ROUND(J9 * (1 + VAT), 2) -> 213.7 | L9: 0.71 | M9: =ROUND(L9 * (1 + VAT), 2) -> 0.82 | N9: 26.23 | O9: =ROUND(N9 * (1 + VAT), 2) -> 30.16 | P9: 63.48 | Q9: =ROUND(P9 * (1 + VAT), 2) -> 73 | R9: 32.56 | S9: =ROUND(R9 * (1 + VAT), 2) -> 37.44 | Z9: =Z8 -> 0 | AA9: =ROUND(Z9 * (1 + VAT), 2) -> 0 | AB9: =AB8 -> 0 | AC9: =ROUND(AB9 * (1 + VAT), 2) -> 0
A10: Businessrate 3 | B10: B3 | C10: 0 | D10: 1 | E10: =B10&C10&D10&IF($A$2="Non-municipal","N",IF($A$2="Municiple","Y","error")) -> B301N | H10: Businessrate 3 | J10: 185.83 | K10: =ROUND(J10 * (1 + VAT), 2) -> 213.7 | L10: 0.71 | M10: =ROUND(L10 * (1 + VAT), 2) -> 0.82 | N10: 26.23 | O10: =ROUND(N10 * (1 + VAT), 2) -> 30.16 | P10: 109.67 | Q10: =ROUND(P10 * (1 + VAT), 2) -> 126.12 | R10: 32.56 | S10: =ROUND(R10 * (1 + VAT), 2) -> 37.44 | Z10: =Z8 -> 0 | AA10: =ROUND(Z10 * (1 + VAT), 2) -> 0 | AB10: =AB8 -> 0 | AC10: =ROUND(AB10 * (1 + VAT), 2) -> 0
A11: Businessrate 4 | B11: B4 | C11: 0 | D11: 1 | E11: =B11&C11&D11&IF($A$2="Non-municipal","N",IF($A$2="Municiple","Y","error")) -> B401N | H11: Businessrate 4 | J11: 500.1 | K11: =ROUND(J11 * (1 + VAT), 2) -> 575.12 | L11: 0.71 | M11: =ROUND(L11 * (1 + VAT), 2) -> 0.82 | N11: 26.23 | O11: =ROUND(N11 * (1 + VAT), 2) -> 30.16 | Z11: =Z9 -> 0 | AA11: =ROUND(Z11 * (1 + VAT), 2) -> 0 | AB11: =AB9 -> 0 | AC11: =ROUND(AB11 * (1 + VAT), 2) -> 0

Sheet Businessrate Munic
H1: Back to menu
A2: Municiple | G2: Businessrate - Local Authority
J4: Energy charge [c/kWh] | L4: Ancillary service charge [c/kWh] | N4: Network demand charge [c/kWh] | P4: Network capacity charge [R/POD/day] | R4: Service and administration charge [R/POD/day] | Z4: Electrification and rural network subsidy charge [c/kWh] | AB4: Affordability subsidy charge [c/kWh] payable by non-local authority tariffs
Z6: All seasons | AB6: All seasons
A7: Tariff | B7: Tariff nameBillcode | C7: Tx zone | D7: Voltage | E7: Billcode | K7: VAT incl | M7: VAT incl | O7: VAT incl | Q7: VAT incl | S7: VAT incl | AA7: VAT incl | AC7: VAT incl
A8: Businessrate 1 | B8: B1 | C8: 0 | D8: 1 | E8: =B8&C8&D8&IF($A$2="Non-municipal","N",IF($A$2="Municiple","Y","error")) -> B101Y | H8: Businessrate 1 | J8: 192.58 | K8: =ROUND(J8 * (1 + VAT), 2) -> 221.47 | L8: 0.73 | M8: =ROUND(L8 * (1 + VAT), 2) -> 0.84 | N8: 26.7 | O8: =ROUND(N8 * (1 + VAT), 2) -> 30.71 | P8: 38.27 | Q8: =ROUND(P8 * (1 + VAT), 2) -> 44.01 | R8: 32.77 | S8: =ROUND(R8 * (1 + VAT), 2) -> 37.69 | Z8: 0 | AA8: =ROUND(Z8 * (1 + VAT), 2) -> 0 | AB8: 0 | AC8: =ROUND(AB8 * (1 + VAT), 2) -> 0
A9: Businessrate 2 | B9: B2 | C9: 0 | D9: 1 | E9: =B9&C9&D9&IF($A$2="Non-municipal","N",IF($A$2="Municiple","Y","error")) -> B201Y | H9: Businessrate 2 | J9: 192.58 | K9: =ROUND(J9 * (1 + VAT), 2) -> 221.47 | L9: 0.73 | M9: =ROUND(L9 * (1 + VAT), 2) -> 0.84 | N9: 26.7 | O9: =ROUND(N9 * (1 + VAT), 2) -> 30.71 | P9: 64.55 | Q9: =ROUND(P9 * (1 + VAT), 2) -> 74.23 | R9: 32.77 | S9: =ROUND(R9 * (1 + VAT), 2) -> 37.69 | Z9: =Z8 -> 0 | AA9: =ROUND(Z9 * (1 + VAT), 2) -> 0 | AB9: =AB8 -> 0 | AC9: =ROUND(AB9 * (1 + VAT), 2) -> 0
A10: Businessrate 3 | B10: B3 | C10: 0 | D10: 1 | E10: =B10&C10&D10&IF($A$2="Non-municipal","N",IF($A$2="Municiple","Y","error")) -> B301Y | H10: Businessrate 3 | J10: 192.58 | K10: =ROUND(J10 * (1 + VAT), 2) -> 221.47 | L10: 0.73 | M10: =ROUND(L10 * (1 + VAT), 2) -> 0.84 | N10: 26.7 | O10: =ROUND(N10 * (1 + VAT), 2) -> 30.71 | P10: 111.54 | Q10: =ROUND(P10 * (1 + VAT), 2) -> 128.27 | R10: 32.77 | S10: =ROUND(R10 * (1 + VAT), 2) -> 37.69 | T10: Total | Z10: =Z8 -> 0 | AA10: =ROUND(Z10 * (1 + VAT), 2) -> 0 | AB10: =AB8 -> 0 | AC10: =ROUND(AB10 * (1 + VAT), 2) -> 0
A11: Businessrate 4 | B11: B4 | C11: 0 | D11: 1 | E11: =B11&C11&D11&IF($A$2="Non-municipal","N",IF($A$2="Municiple","Y","error")) -> B401Y | H11: Businessrate 4 | J11: 518.25 | K11: =ROUND(J11 * (1 + VAT), 2) -> 595.99 | L11: 0.73 | M11: =ROUND(L11 * (1 + VAT), 2) -> 0.84 | N11: 26.7 | O11: =ROUND(N11 * (1 + VAT), 2) -> 30.71 | T11: =J11+L11+N11 -> 545.68 | U11: =ROUND(T11 * (1 + VAT), 2) -> 627.53 | Z11: =Z9 -> 0 | AA11: =ROUND(Z11 * (1 + VAT), 2) -> 0 | AB11: =AB9 -> 0 | AC11: =ROUND(AB11 * (1 + VAT), 2) -> 0

Sheet Public Lighting NLA
H1: Back to menu
A2: Non-municipal | G2: Public Lighting - Non-local Authority
K4: All Night | M4: 24 Hours
A5: Tariff | B5: Tariff nameBillcode | C5: Tx zone | D5: Voltage | E5: Billcode | L5: VAT incl | N5: VAT incl
A6: Public lighting 24 hours | B6: Pu | C6: 0 | D6: 1 | E6: =B6&C6&D6&IF($A$2="Non-municipal","N",IF($A$2="Municiple","Y","error")) -> Pu01N | H6: Public Lighting | I6: Energy charge [c/kWh] | K6: 147.89 | L6: =ROUND(K6 * (1 + VAT), 2) -> 170.07 | M6: 198.01 | N6: =ROUND(M6 * (1 + VAT), 2) -> 227.71
A7: Public lighting All Night | B7: Pa | C7: 0 | D7: 1 | E7: =B7&C7&D7&IF($A$2="Non-municipal","N",IF($A$2="Municiple","Y","error")) -> Pa01N | I7: Energy charge [R/100W/month] | K7: 46.27 | L7: =ROUND(K7 * (1 + VAT), 2) -> 53.21 | M7: 133.37 | N7: =ROUND(M7 * (1 + VAT), 2) -> 153.38
A9: Public lighting Urban fixed | B9: Pt | C9: 0 | D9: 1 | E9: =B9&C9&D9&IF($A$2="Non-municipal","N",IF($A$2="Municiple","Y","error")) -> Pt01N | H9: Public Lighting - Urban Fixed | I9: Fixed charge [R/POD/day] | K9: 9.72 | L9: =ROUND(K9 * (1 + VAT), 2) -> 11.18
H11: Maintenance charges | K11: R/month
L12: VAT incl
A13: Public Lighting - Maintenance charge - per lumanaire | B13: Plu | C13: 0 | D13: 1 | E13: =B13&C13&D13&IF($A$2="Non-municipal","N",IF($A$2="Municiple","Y","error")) -> Plu01N | J13: Per lumanaire | K13: 78.42 | L13: =ROUND(K13 * (1 + VAT), 2) -> 90.18
A14: Public Lighting - Maintenance charge - per high-mast lumanaire | B14: Plhm | C14: 0 | D14: 1 | E14: =B14&C14&D14&IF($A$2="Non-municipal","N",IF($A$2="Municiple","Y","error")) -> Plhm01N | J14: Per high-mast lumanaire | K14: 1825.53 | L14: =ROUND(K14 * (1 + VAT), 2) -> 2099.36

Sheet Public Lighting Munic
H1: Back to menu
A2: Municipal | G2: Public Lighting - Local Authority | AB2: =SUM(#REF!) ->  | AC2: check value
K4: All Night | M4: 24 Hours
A5: Tariff | B5: Tariff nameBillcode | C5: Tx zone | D5: Voltage | E5: Billcode | L5: VAT incl | N5: VAT incl
A6: Public lighting 24 hours | B6: Pu | C6: 0 | D6: 1 | E6: =B6&C6&D6&IF($A$2="Non-municipal","N",IF($A$2="Municipal","Y","error")) -> Pu01Y | H6: Public Lighting | I6: Energy charge [c/kWh] | K6: 155.46 | L6: =ROUND(K6 * (1 + VAT), 2) -> 178.78 | M6: 208.16 | N6: =ROUND(M6 * (1 + VAT), 2) -> 239.38
A7: Public lighting All Night | B7: Pa | C7: 0 | D7: 1 | E7: =B7&C7&D7&IF($A$2="Non-municipal","N",IF($A$2="Municipal","Y","error")) -> Pa01Y | I7: Energy charge [R/100W/month] | K7: 47.48 | L7: =ROUND(K7 * (1 + VAT), 2) -> 54.6 | M7: 136.85 | N7: =ROUND(M7 * (1 + VAT), 2) -> 157.38
A9: Public lighting Urban fixed | B9: Pt | C9: 0 | D9: 1 | E9: =B9&C9&D9&IF($A$2="Non-municipal","N",IF($A$2="Municipal","Y","error")) -> Pt01Y | H9: Public Lighting - Urban Fixed | I9: Fixed charge [R/POD/day] | K9: 10.22 | L9: =ROUND(K9 * (1 + VAT), 2) -> 11.75
H11: Maintenance charges | K11: R/month
L12: VAT incl
A13: Public Lighting - Maintenance charge - per lumanaire | B13: Plu | C13: 0 | D13: 1 | E13: =B13&C13&D13&IF($A$2="Non-municipal","N",IF($A$2="Municipal","Y","error")) -> Plu01Y | J13: Per lumanaire | K13: 82.03 | L13: =ROUND(K13 * (1 + VAT), 2) -> 94.33
A14: Public Lighting - Maintenance charge - per high-mast lumanaire | B14: Plhm | C14: 0 | D14: 1 | E14: =B14&C14&D14&IF($A$2="Non-municipal","N",IF($A$2="Municipal","Y","error")) -> Plhm01Y | J14: Per high-mast lumanaire | K14: 1915.73 | L14: =ROUND(K14 * (1 + VAT), 2) -> 2203.09

Sheet Homepower NLA
H1: Back to menu
A2: Non-municipal | G2: Homepower - Non-local Authority
J5: Energy charge [c/kWh] | N5: Network capacity charge [R/POD/day]
A6: Tariff | B6: Tariff nameBillcode | C6: Tx zone | D6: Voltage | E6: Billcode | J6: Block 1 [>0 - 600 kWh] | K6: VAT incl | L6: Block 2 [>600 kWh] | M6: VAT incl | O6: VAT incl
A7: Homepower 1 | B7: H1 | C7: 0 | D7: 1 | E7: =B7&C7&D7&IF($A$2="Non-municipal","N",IF($A$2="Municiple","Y","error")) -> H101N | H7: Homepower 1 | J7: 217.79 | K7: =ROUND(J7 * (1 + VAT), 2) -> 250.46 | L7: 343.91 | M7: =ROUND(L7 * (1 + VAT), 2) -> 395.5 | N7: 9.33 | O7: =ROUND(N7 * (1 + VAT), 2) -> 10.73
A8: Homepower 2 | B8: H2 | C8: 0 | D8: 1 | E8: =B8&C8&D8&IF($A$2="Non-municipal","N",IF($A$2="Municiple","Y","error")) -> H201N | H8: Homepower 2 | J8: 217.79 | K8: =ROUND(J8 * (1 + VAT), 2) -> 250.46 | L8: 335.33 | M8: =ROUND(L8 * (1 + VAT), 2) -> 385.63 | N8: 17.48 | O8: =ROUND(N8 * (1 + VAT), 2) -> 20.1
A9: Homepower 3 | B9: H3 | C9: 0 | D9: 1 | E9: =B9&C9&D9&IF($A$2="Non-municipal","N",IF($A$2="Municiple","Y","error")) -> H301N | H9: Homepower 3 | J9: 217.79 | K9: =ROUND(J9 * (1 + VAT), 2) -> 250.46 | L9: 335.33 | M9: =ROUND(L9 * (1 + VAT), 2) -> 385.63 | N9: 36.09 | O9: =ROUND(N9 * (1 + VAT), 2) -> 41.5
A10: Homepower 4 | B10: H4 | C10: 0 | D10: 1 | E10: =B10&C10&D10&IF($A$2="Non-municipal","N",IF($A$2="Municiple","Y","error")) -> H401N | H10: Homepower 4 | J10: 217.79 | K10: =ROUND(J10 * (1 + VAT), 2) -> 250.46 | L10: 350.24 | M10: =ROUND(L10 * (1 + VAT), 2) -> 402.78 | N10: 5.7 | O10: =ROUND(N10 * (1 + VAT), 2) -> 6.56
J12: Energy charge [c/kWh] | L12: Network capacity charge [R/kVA]
K13: VAT incl | M13: VAT incl
A14: Homepower Bulk < 500V | B14: HB | C14: 0 | D14: 1 | E14: =B14&C14&D14&IF($A$2="Non-municipal","N",IF($A$2="Municiple","Y","error")) -> HB01N | H14: Homepower Bulk | J14: 285.96 | K14: =ROUND(J14 * (1 + VAT), 2) -> 328.85 | L14: 59.18 | M14: =ROUND(L14 * (1 + VAT), 2) -> 68.06
H15: * The Network capacity charge is based on the NMD or on the maximum demand if measured.

Sheet Homepower Munic
H1: Back to menu
A2: Municiple | G2: Homepower - Local Authority
J4: Energy charge [c/kWh] | L4: Energy charge [c/kWh] | N4: Network capacity charge [R/POD/day]
A5: Tariff | B5: Tariff nameBillcode | C5: Tx zone | D5: Voltage | E5: Billcode | J5: Block 1 [>0 - 600 kWh] | K5: VAT incl | L5: Block 2 [>600 kWh] | M5: VAT incl | O5: VAT incl
A6: Homepower 1 | B6: H1 | C6: 0 | D6: 1 | E6: =B6&C6&D6&IF($A$2="Non-municipal","N",IF($A$2="Municiple","Y","error")) -> H101Y | H6: Homepower 1 | J6: 220.47 | K6: =ROUND(J6 * (1 + VAT), 2) -> 253.54 | L6: 348.11 | M6: =ROUND(L6 * (1 + VAT), 2) -> 400.33 | N6: 9.43 | O6: =ROUND(N6 * (1 + VAT), 2) -> 10.84
A7: Homepower 2 | B7: H2 | C7: 0 | D7: 1 | E7: =B7&C7&D7&IF($A$2="Non-municipal","N",IF($A$2="Municiple","Y","error")) -> H201Y | H7: Homepower 2 | J7: 220.47 | K7: =ROUND(J7 * (1 + VAT), 2) -> 253.54 | L7: 339.38 | M7: =ROUND(L7 * (1 + VAT), 2) -> 390.29 | N7: 17.69 | O7: =ROUND(N7 * (1 + VAT), 2) -> 20.34
A8: Homepower 3 | B8: H3 | C8: 0 | D8: 1 | E8: =B8&C8&D8&IF($A$2="Non-municipal","N",IF($A$2="Municiple","Y","error")) -> H301Y | H8: Homepower 3 | J8: 220.47 | K8: =ROUND(J8 * (1 + VAT), 2) -> 253.54 | L8: 339.38 | M8: =ROUND(L8 * (1 + VAT), 2) -> 390.29 | N8: 36.55 | O8: =ROUND(N8 * (1 + VAT), 2) -> 42.03
A9: Homepower 4 | B9: H4 | C9: 0 | D9: 1 | E9: =B9&C9&D9&IF($A$2="Non-municipal","N",IF($A$2="Municiple","Y","error")) -> H401Y | H9: Homepower 4 | J9: 220.47 | K9: =ROUND(J9 * (1 + VAT), 2) -> 253.54 | L9: 354.52 | M9: =ROUND(L9 * (1 + VAT), 2) -> 407.7 | N9: 5.78 | O9: =ROUND(N9 * (1 + VAT), 2) -> 6.65

Sheet Homeflex NLA
C1: Back to menu
E4: Homeflex - Non-local Authority
E7: Active energy charge [c/kWh] | Q7: Ancillary service charge [c/kWh] | S7: Network demand charge, ancillary service charge and retail charge [c/kWh]
E8: High demand season [Jun - Aug] | K8: Low demand season [Sep - May]
E9: Peak | G9: Standard | I9: Off Peak | K9: Peak | M9: Standard | O9: Off Peak
F10: VAT incl | H10: VAT incl | J10: VAT incl | L10: VAT incl | N10: VAT incl | P10: VAT incl | R10: VAT incl | T10: VAT incl
E11: 542.79 | F11: =ROUND(E11 * (1 + VAT), 2) -> 624.21 | G11: 165.14 | H11: =ROUND(G11 * (1 + VAT), 2) -> 189.91 | I11: 90.17 | J11: =ROUND(I11 * (1 + VAT), 2) -> 103.7 | K11: 177.74 | L11: =ROUND(K11 * (1 + VAT), 2) -> 204.4 | M11: 122.64 | N11: =ROUND(M11 * (1 + VAT), 2) -> 141.04 | O11: 78.19 | P11: =ROUND(O11 * (1 + VAT), 2) -> 89.92 | Q11: 0 | R11: =ROUND(Q11 * (1 + VAT), 2) -> 0 | S11: 112.11 | T11: =ROUND(S11 * (1 + VAT), 2) -> 128.93
E12: Refer to Gen-offset tables for the credit rate for energy exported
G15: Network capacity charge [R/POD/day]*
H17: VAT incl
E18: Homeflex 1 | G18: 9.33 | H18: =ROUND(G18 * (1 + VAT), 2) -> 10.73
E19: Homeflex 2 | G19: 17.48 | H19: =ROUND(G19 * (1 + VAT), 2) -> 20.1
E20: Homeflex 3 | G20: 36.09 | H20: =ROUND(G20 * (1 + VAT), 2) -> 41.5
E21: Homeflex 4 | G21: 5.7 | H21: =ROUND(G21 * (1 + VAT), 2) -> 6.56
E22: *The network capacity charge is based on the Notified Maximum Demand (NMD).

Sheet Homelight NLA
H1: Back to menu
A2: Non-municipal | G2: Homelight - Non-local Authority
H4: Homelight 60A | J4: Energy charge [c/kWh]
A5: Tariff | B5: Tariff nameBillcode | C5: Tx zone | D5: Voltage | E5: Billcode | K5: VAT incl
A6: Homelight 1 60A | B6: HL16 | C6: 0 | D6: 1 | E6: =B6&C6&D6&IF($A$2="Non-municipal","N",IF($A$2="Municiple","Y","error")) -> HL1601N | H6: Block 1 [> 0 - 600 kWh] | J6: 206.06 | K6: =ROUND(J6 * (1 + VAT), 2) -> 236.97
A7: Homelight 2 60A | B7: HL26 | C7: 0 | D7: 1 | E7: =B7&C7&D7&IF($A$2="Non-municipal","N",IF($A$2="Municiple","Y","error")) -> HL2601N | H7: Block 2 [>600 kWh] | J7: 350.24 | K7: =ROUND(J7 * (1 + VAT), 2) -> 402.78
H10: Homelight 20A | J10: Energy charge [c/kWh]
K11: VAT incl
A12: Homelight 1 20A | B12: HL12 | C12: 0 | D12: 1 | E12: =B12&C12&D12&IF($A$2="Non-municipal","N",IF($A$2="Municiple","Y","error")) -> HL1201N | H12: Block 1 [> 0 - 350 kWh] | J12: 168.78 | K12: =ROUND(J12 * (1 + VAT), 2) -> 194.1
A13: Homelight 2 20A | B13: HL22 | C13: 0 | D13: 1 | E13: =B13&C13&D13&IF($A$2="Non-municipal","N",IF($A$2="Municiple","Y","error")) -> HL2201N | H13: Block 2 [>350 kWh] | J13: 191.25 | K13: =ROUND(J13 * (1 + VAT), 2) -> 219.94

Sheet Nightsave Rural NLA
G1: Back to menu
A2: Non-municipal | G2: Nightsave Rural - Non-local Authority | AF2: =SUM(#REF!,#REF!,#REF!,#REF!,#REF!,#REF!,#REF!,#REF!,#REF!,#REF!,#REF!,#REF!,#REF!,#REF!,#REF!) ->  | AG2: check value
J4: Active energy charge [c/kWh] | N4: Energy demand charges [R/kVA/m] | R4: Network capacity charges [R/kVA/m]
H5: Transmission zone | J5: High demand season [Jun - Aug] | L5: Low demand season [Sep - May] | N5: High demand season [Jun - Aug] | P5: Low demand season [Sep - May]
I6: Voltage
A7: Tariff | B7: Tariff nameBillcode | C7: Tx zone | D7: Voltage | E7: Billcode | K7: VAT incl | M7: VAT incl | O7: VAT incl | Q7: VAT incl | S7: VAT incl
A8: Nightsave Rural | B8: NR | C8: 0 | D8: 1 | E8: =B8&C8&D8&IF($A$2="Non-municipal","N",IF($A$2="Municiple","Y","error")) -> NR01N | H8: ≤ 300km | I8: < 500V | J8: 137.09 | K8: =ROUND(J8 * (1 + VAT), 2) -> 157.65 | L8: 106.51 | M8: =ROUND(L8 * (1 + VAT), 2) -> 122.49 | N8: 459.32 | O8: =ROUND(N8 * (1 + VAT), 2) -> 528.22 | P8: 243.08 | Q8: =ROUND(P8 * (1 + VAT), 2) -> 279.54 | R8: 23.23 | S8: =ROUND(R8 * (1 + VAT), 2) -> 26.71
A9: Nightsave Rural | B9: NR | C9: 0 | D9: 2 | E9: =B9&C9&D9&IF($A$2="Non-municipal","N",IF($A$2="Municiple","Y","error")) -> NR02N | I9: ≥ 500V & ≤ 22kV | J9: 135.46 | K9: 155.78 | L9: 105.31 | M9: 121.11 | N9: 445.08 | O9: 511.84 | P9: 234.48 | Q9: 269.65 | R9: 21.35 | S9: 24.55
A10: Nightsave Rural | B10: NR | E10: NRN | J10: 0 | L10: 0 | N10: 0 | O10: 0 | P10: 0 | Q10: 0 | R10: 0
A11: Nightsave Rural | B11: NR | E11: NRN | J11: 0 | L11: 0 | N11: 0 | O11: 0 | P11: 0 | Q11: 0 | R11: 0
A12: Nightsave Rural | B12: NR | C12: 1 | D12: 1 | E12: NR11N | H12: > 300km and ≤ 600km | I12: < 500V | J12: 138.43 | K12: 159.19 | L12: 107.59 | M12: 123.73 | N12: 464.85 | O12: 534.58 | P12: 246.48 | Q12: 283.45 | R12: 23.27 | S12: 26.76
A13: Nightsave Rural | B13: NR | C13: 1 | D13: 2 | E13: NR12N | I13: ≥ 500V & ≤ 22kV | J13: 136.85 | K13: 157.38 | L13: 106.38 | M13: 122.34 | N13: 450.51 | O13: 518.09 | P13: 237.74 | Q13: 273.4 | R13: 21.42 | S13: 24.63
A14: Nightsave Rural | B14: NR | E14: NRN | J14: 0 | L14: 0 | N14: 0 | O14: 0 | P14: 0 | Q14: 0 | R14: 0
A15: Nightsave Rural | B15: NR | E15: NRN | J15: 0 | L15: 0 | N15: 0 | O15: 0 | P15: 0 | Q15: 0 | R15: 0
A16: Nightsave Rural | B16: NR | C16: 2 | D16: 1 | E16: NR21N | H16: > 600km and ≤ 900km | I16: < 500V | J16: 139.82 | K16: 160.79 | L16: 108.64 | M16: 124.94 | N16: 470.44 | O16: 541.01 | P16: 249.81 | Q16: 287.28 | R16: 23.49 | S16: 27.01
A17: Nightsave Rural | B17: NR | C17: 2 | D17: 2 | E17: NR22N | I17: ≥ 500V & ≤ 22kV | J17: 138.2 | K17: 158.93 | L17: 107.44 | M17: 123.56 | N17: 455.91 | O17: 524.3 | P17: 241.01 | Q17: 277.16 | R17: 21.56 | S17: 24.79
A18: Nightsave Rural | B18: NR | E18: NRN | J18: 0 | L18: 0 | N18: 0 | O18: 0 | P18: 0 | Q18: 0 | R18: 0
A19: Nightsave Rural | B19: NR | E19: NRN | J19: 0 | L19: 0 | N19: 0 | O19: 0 | P19: 0 | Q19: 0 | R19: 0
A20: Nightsave Rural | B20: NR | C20: 3 | D20: 1 | E20: NR31N | H20: > 900km | I20: < 500V | J20: 141.21 | K20: 162.39 | L20: 109.73 | M20: 126.19 | N20: 476.14 | O20: =ROUND(N20 * (1 + VAT), 2) -> 547.56 | P20: 253.23 | Q20: =ROUND(P20 * (1 + VAT), 2) -> 291.21 | R20: 23.55 | S20: 27.08
A21: Nightsave Rural | B21: NR | C21: 3 | D21: 2 | E21: NR32N | I21: ≥ 500V & ≤ 22kV | J21: 139.53 | K21: 160.46 | L21: 108.49 | M21: 124.76 | N21: 461.49 | O21: =ROUND(N21 * (1 + VAT), 2) -> 530.71 | P21: 244.37 | Q21: =ROUND(P21 * (1 + VAT), 2) -> 281.03 | R21: 21.61 | S21: 24.85
H26: Customer categories | J26: Service charge [R/account/day] | L26: Administration charge [R/POD/day]
A28: Tariff | B28: Tariff nameBillcode | C28: Tx zone | D28: Voltage | E28: Billcode | K28: VAT incl | M28: VAT incl
A29: Nightsave Rural | B29: NR | C29: 0 | D29: 1 | E29: =B29&C29&D29&IF($A$2="Non-municipal","N",IF($A$2="Municiple","Y","error")) -> NR01N | H29: ≤ 100 kVA | J29: 31.93 | K29: =ROUND(J29 * (1 + VAT), 2) -> 36.72 | L29: 9.06 | M29: =ROUND(L29 * (1 + VAT), 2) -> 10.42
A30: Nightsave Rural | B30: NR | C30: 0 | D30: 1 | E30: NR01N | H30: > 100 kVA & ≤ 500 kVA | J30: 108.89 | K30: =ROUND(J30 * (1 + VAT), 2) -> 125.22 | L30: 50.49 | M30: =ROUND(L30 * (1 + VAT), 2) -> 58.06 | P30: Ancillary service charge [c/kWh] | R30: Network demand charge [c/kWh] in all time-of-use periods
A31: Nightsave Rural | B31: NR | C31: 0 | D31: 1 | E31: NR01N | H31: > 500 kVA & ≤ 1 MVA | J31: 334.96 | K31: =ROUND(J31 * (1 + VAT), 2) -> 385.2 | L31: 77.49 | M31: =ROUND(L31 * (1 + VAT), 2) -> 89.11 | O31: Voltage | Q31: VAT incl | S31: VAT incl
A32: Nightsave Rural | B32: NR | C32: 0 | D32: 1 | E32: NR01N | H32: > 1 MVA | J32: 334.96 | K32: =ROUND(J32 * (1 + VAT), 2) -> 385.2 | L32: 143.77 | M32: =ROUND(L32 * (1 + VAT), 2) -> 165.34 | O32: < 500V | P32: 0.71 | Q32: =ROUND(P32 * (1 + VAT), 2) -> 0.82 | R32: 46.2 | S32: =ROUND(R32 * (1 + VAT), 2) -> 53.13
A33: Nightsave Rural | B33: NR | C33: 0 | D33: 1 | E33: NR01N | H33: Key customers | J33: 6565 | K33: =ROUND(J33 * (1 + VAT), 2) -> 7549.75 | L33: 143.77 | M33: =ROUND(L33 * (1 + VAT), 2) -> 165.34 | O33: ≥ 500V & ≤ 22kV | P33: 0.71 | Q33: =ROUND(P33 * (1 + VAT), 2) -> 0.82 | R33: 40.51 | S33: =ROUND(R33 * (1 + VAT), 2) -> 46.59
A34: Nightsave Rural | B34: NR | C34: 0 | D34: 2 | E34: NR02N

Sheet Nightsave Rural Munic
G1: Back to menu
A2: Municiple | G2: Nightsave Rural - Local Authority | AF2: =SUM(#REF!,#REF!,#REF!,#REF!,#REF!,#REF!,#REF!,#REF!,#REF!,#REF!,#REF!,#REF!,#REF!,#REF!,#REF!) ->  | AG2: check value
J4: Active energy charge [c/kWh] | N4: Energy demand charges [R/kVA/m] | R4: Network capacity charges [R/kVA/m]
H5: Transmission zone | J5: High demand season [Jun - Aug] | L5: Low demand season [Sep - May] | N5: High demand season [Jun - Aug] | P5: Low demand season [Sep - May]
I6: Voltage
A7: Tariff | B7: Tariff nameBillcode | C7: Tx zone | D7: Voltage | E7: Billcode | K7: VAT incl | M7: VAT incl | O7: VAT incl | Q7: VAT incl | S7: VAT incl
A8: Nightsave Rural | B8: NR | C8: 0 | D8: 1 | E8: =B8&C8&D8&IF($A$2="Non-municipal","N",IF($A$2="Municiple","Y","error")) -> NR01Y | H8: ≤ 300km | I8: < 500V | J8: 142.05 | K8: =ROUND(J8 * (1 + VAT), 2) -> 163.36 | L8: 110.4 | M8: =ROUND(L8 * (1 + VAT), 2) -> 126.96 | N8: 464.89 | O8: =ROUND(N8 * (1 + VAT), 2) -> 534.62 | P8: 246.06 | Q8: =ROUND(P8 * (1 + VAT), 2) -> 282.97 | R8: 23.74 | S8: =ROUND(R8 * (1 + VAT), 2) -> 27.3
A9: Nightsave Rural | B9: NR | C9: 0 | D9: 2 | E9: =B9&C9&D9&IF($A$2="Non-municipal","N",IF($A$2="Municiple","Y","error")) -> NR02Y | I9: ≥ 500V & ≤ 22kV | J9: 140.38 | K9: 161.44 | L9: 109.15 | M9: 125.52 | N9: 450.5 | O9: 518.08 | P9: 237.28 | Q9: 272.87 | R9: 21.8 | S9: 25.07
A10: Nightsave Rural | B10: NR | E10: NRY | J10: 0 | L10: 0 | N10: 0 | O10: 0 | P10: 0 | Q10: 0 | R10: 0
A11: Nightsave Rural | B11: NR | E11: NRY | J11: 0 | L11: 0 | N11: 0 | O11: 0 | P11: 0 | Q11: 0 | R11: 0
A12: Nightsave Rural | B12: NR | C12: 1 | D12: 1 | E12: NR11Y | H12: > 300km and ≤ 600km | I12: < 500V | J12: 143.49 | K12: 165.01 | L12: 111.51 | M12: 128.24 | N12: 470.54 | O12: 541.12 | P12: 249.46 | Q12: 286.88 | R12: 23.78 | S12: 27.35
A13: Nightsave Rural | B13: NR | C13: 1 | D13: 2 | E13: NR12Y | I13: ≥ 500V & ≤ 22kV | J13: 141.79 | K13: 163.06 | L13: 110.22 | M13: 126.75 | N13: 456.01 | O13: 524.41 | P13: 240.6 | Q13: 276.69 | R13: 21.88 | S13: 25.16
A14: Nightsave Rural | B14: NR | E14: NRY | J14: 0 | L14: 0 | N14: 0 | O14: 0 | P14: 0 | Q14: 0 | R14: 0
A15: Nightsave Rural | B15: NR | E15: NRY | J15: 0 | L15: 0 | N15: 0 | O15: 0 | P15: 0 | Q15: 0 | R15: 0
A16: Nightsave Rural | B16: NR | C16: 2 | D16: 1 | E16: NR21Y | H16: > 600km and ≤ 900km | I16: < 500V | J16: 144.86 | K16: 166.59 | L16: 112.58 | M16: 129.47 | N16: 476.17 | O16: 547.6 | P16: 252.83 | Q16: 290.75 | R16: 24.02 | S16: 27.62
A17: Nightsave Rural | B17: NR | C17: 2 | D17: 2 | E17: NR22Y | I17: ≥ 500V & ≤ 22kV | J17: 143.18 | K17: 164.66 | L17: 111.33 | M17: 128.03 | N17: 461.5 | O17: 530.73 | P17: 243.94 | Q17: 280.53 | R17: 22.03 | S17: 25.33
A18: Nightsave Rural | B18: NR | E18: NRY | J18: 0 | L18: 0 | N18: 0 | O18: 0 | P18: 0 | Q18: 0 | R18: 0
A19: Nightsave Rural | B19: NR | E19: NRY | J19: 0 | L19: 0 | N19: 0 | O19: 0 | P19: 0 | Q19: 0 | R19: 0
A20: Nightsave Rural | B20: NR | C20: 3 | D20: 1 | E20: NR31Y | H20: > 900km | I20: < 500V | J20: 146.33 | K20: 168.28 | L20: 113.69 | M20: 130.74 | N20: 481.94 | O20: 554.23 | P20: 256.3 | Q20: 294.75 | R20: 24.05 | S20: 27.66
A21: Nightsave Rural | B21: NR | C21: 3 | D21: 2 | E21: NR32Y | I21: ≥ 500V & ≤ 22kV | J21: 144.59 | K21: 166.28 | L21: 112.4 | M21: 129.26 | N21: 467.11 | O21: 537.18 | P21: 247.34 | Q21: 284.44 | R21: 22.04 | S21: 25.35
H26: Customer categories | J26: Service charge [R/account/day] | L26: Administration charge [R/POD/day]
A28: Tariff | B28: Tariff nameBillcode | C28: Tx zone | D28: Voltage | E28: Billcode | K28: VAT incl | M28: VAT incl
A29: Nightsave Rural | B29: NR | C29: 0 | D29: 1 | E29: =B29&C29&D29&IF($A$2="Non-municipal","N",IF($A$2="Municiple","Y","error")) -> NR01Y | H29: ≤ 100 kVA | J29: 32.17 | K29: =ROUND(J29 * (1 + VAT), 2) -> 37 | L29: 9.12 | M29: =ROUND(L29 * (1 + VAT), 2) -> 10.49
A30: Nightsave Rural | B30: NR | C30: 0 | D30: 1 | E30: =B30&C30&D30&IF($A$2="Non-municipal","N",IF($A$2="Municiple","Y","error")) -> NR01Y | H30: > 100 kVA & ≤ 500 kVA | J30: 109.71 | K30: =ROUND(J30 * (1 + VAT), 2) -> 126.17 | L30: 50.85 | M30: =ROUND(L30 * (1 + VAT), 2) -> 58.48 | P30: Ancillary service charge [c/kWh] | R30: Network demand charge [c/kWh] in all time-of-use periods
A31: Nightsave Rural | B31: NR | C31: 0 | D31: 1 | E31: =B31&C31&D31&IF($A$2="Non-municipal","N",IF($A$2="Municiple","Y","error")) -> NR01Y | H31: > 500 kVA & ≤ 1 MVA | J31: 337.51 | K31: =ROUND(J31 * (1 + VAT), 2) -> 388.14 | L31: 78.04 | M31: =ROUND(L31 * (1 + VAT), 2) -> 89.75 | O31: Voltage | Q31: VAT incl | S31: VAT incl
A32: Nightsave Rural | B32: NR | C32: 0 | D32: 1 | E32: =B32&C32&D32&IF($A$2="Non-municipal","N",IF($A$2="Municiple","Y","error")) -> NR01Y | H32: > 1 MVA | J32: 337.51 | K32: =ROUND(J32 * (1 + VAT), 2) -> 388.14 | L32: 144.85 | M32: =ROUND(L32 * (1 + VAT), 2) -> 166.58 | O32: < 500V | P32: 0.73 | Q32: =ROUND(P32 * (1 + VAT), 2) -> 0.84 | R32: 47.24 | S32: =ROUND(R32 * (1 + VAT), 2) -> 54.33
A33: Nightsave Rural | B33: NR | C33: 0 | D33: 1 | E33: =B33&C33&D33&IF($A$2="Non-municipal","N",IF($A$2="Municiple","Y","error")) -> NR01Y | H33: Key customers | J33: 6614.31 | K33: =ROUND(J33 * (1 + VAT), 2) -> 7606.46 | L33: 144.85 | M33: =ROUND(L33 * (1 + VAT), 2) -> 166.58 | O33: ≥ 500V & ≤ 22kV | P33: 0.73 | Q33: =ROUND(P33 * (1 + VAT), 2) -> 0.84 | R33: 41.34 | S33: =ROUND(R33 * (1 + VAT), 2) -> 47.54

Sheet Ruraflex NLA
G1: Back to menu
A2: Non-municipal | G2: Ruraflex - Non-local Authority | AF2: =SUM(#REF!,#REF!,#REF!,#REF!,#REF!,#REF!,#REF!,#REF!,#REF!,#REF!,#REF!,#REF!) ->  | AG2: check value
J4: Active energy charge [c/kWh] | V4: Network capacity charges [R/kVA/m]
H5: Transmission zone | J5: High demand season [Jun - Aug] | P5: Low demand season [Sep - May]
I6: Voltage | J6: Peak | L6: Standard | N6: Off Peak | P6: Peak | R6: Standard | T6: Off Peak
A7: Tariff | B7: Tariff nameBillcode | C7: Tx zone | D7: Voltage | E7: Billcode | K7: VAT incl | M7: VAT incl | O7: VAT incl | Q7: VAT incl | S7: VAT incl | U7: VAT incl | W7: VAT incl
A8: Ruraflex | B8: Ru | C8: 0 | D8: 1 | E8: =B8&C8&D8&IF($A$2="Non-municipal","N",IF($A$2="Municiple","Y","error")) -> Ru01N | H8: ≤ 300km | I8: < 500V | J8: 562.01 | K8: =ROUND(J8 * (1 + VAT), 2) -> 646.31 | L8: 170.26 | M8: =ROUND(L8 * (1 + VAT), 2) -> 195.8 | N8: 92.48 | O8: =ROUND(N8 * (1 + VAT), 2) -> 106.35 | P8: 183.34 | Q8: =ROUND(P8 * (1 + VAT), 2) -> 210.84 | R8: 126.16 | S8: =ROUND(R8 * (1 + VAT), 2) -> 145.08 | T8: 80.04 | U8: =ROUND(T8 * (1 + VAT), 2) -> 92.05 | V8: 32.46 | W8: =ROUND(V8 * (1 + VAT), 2) -> 37.33
A9: Ruraflex | B9: Ru | C9: 0 | D9: 2 | E9: =B9&C9&D9&IF($A$2="Non-municipal","N",IF($A$2="Municiple","Y","error")) -> Ru02N | I9: ≥ 500V & ≤ 22kV | J9: 556.46 | K9: 639.93 | L9: 168.59 | M9: 193.88 | N9: 91.53 | O9: 105.26 | P9: 181.53 | Q9: 208.76 | R9: 124.91 | S9: 143.65 | T9: 79.21 | U9: 91.09 | V9: 29.75 | W9: 34.21
A10: Ruraflex | B10: Ru | E10: RuN | J10: 0 | L10: 0 | N10: 0 | P10: 0 | R10: 0 | T10: 0 | V10: 0
A11: Ruraflex | B11: Ru | E11: RuN | J11: 0 | L11: 0 | N11: 0 | P11: 0 | R11: 0 | T11: 0 | V11: 0
A12: Ruraflex | B12: Ru | C12: 1 | D12: 1 | E12: Ru11N | H12: > 300km and ≤ 600km | I12: < 500V | J12: 567.66 | K12: 652.81 | L12: 171.97 | M12: 197.77 | N12: 93.39 | O12: 107.4 | P12: 185.17 | Q12: 212.95 | R12: 127.45 | S12: 146.57 | T12: 80.87 | U12: 93 | V12: 32.56 | W12: 37.44
A13: Ruraflex | B13: Ru | C13: 1 | D13: 2 | E13: Ru12N | I13: ≥ 500V & ≤ 22kV | J13: 562 | K13: 646.3 | L13: 170.24 | M13: 195.78 | N13: 92.48 | O13: 106.35 | P13: 183.34 | Q13: 210.84 | R13: 126.15 | S13: 145.07 | T13: 80.04 | U13: 92.05 | V13: 29.92 | W13: 34.41
A14: Ruraflex | B14: Ru | E14: RuN | J14: 0 | L14: 0 | N14: 0 | P14: 0 | R14: 0 | T14: 0 | V14: 0
A15: Ruraflex | B15: Ru | E15: RuN | J15: 0 | L15: 0 | N15: 0 | P15: 0 | R15: 0 | T15: 0 | V15: 0
A16: Ruraflex | B16: Ru | C16: 2 | D16: 1 | E16: Ru21N | H16: > 600km and ≤ 900km | I16: < 500V | J16: 573.34 | K16: 659.34 | L16: 173.7 | M16: 199.76 | N16: 94.31 | O16: 108.46 | P16: 187.03 | Q16: 215.08 | R16: 128.7 | S16: 148.01 | T16: 81.68 | U16: 93.93 | V16: 32.72 | W16: 37.63
A17: Ruraflex | B17: Ru | C17: 2 | D17: 2 | E17: Ru22N | I17: ≥ 500V & ≤ 22kV | J17: 567.62 | K17: 652.76 | L17: 171.92 | M17: 197.71 | N17: 93.39 | O17: 107.4 | P17: 185.17 | Q17: 212.95 | R17: 127.45 | S17: 146.57 | T17: 80.87 | U17: 93 | V17: 30.07 | W17: 34.58
A18: Ruraflex | B18: Ru | E18: RuN | J18: 0 | L18: 0 | N18: 0 | P18: 0 | R18: 0 | T18: 0 | V18: 0
A19: Ruraflex | B19: Ru | E19: RuN | J19: 0 | L19: 0 | N19: 0 | P19: 0 | R19: 0 | T19: 0 | V19: 0
A20: Ruraflex | B20: Ru | C20: 3 | D20: 1 | E20: Ru31N | H20: > 900km | I20: < 500V | J20: 579.06 | K20: 665.92 | L20: 175.41 | M20: 201.72 | N20: 95.25 | O20: 109.54 | P20: 188.82 | Q20: 217.14 | R20: 129.99 | S20: 149.49 | T20: 82.47 | U20: 94.84 | V20: 32.87 | W20: 37.8
A21: Ruraflex | B21: Ru | C21: 3 | D21: 2 | E21: Ru32N | I21: ≥ 500V & ≤ 22kV | J21: 573.32 | K21: 659.32 | L21: 173.7 | M21: 199.76 | N21: 94.31 | O21: 108.46 | P21: 187.03 | Q21: 215.08 | R21: 128.7 | S21: 148.01 | T21: 81.68 | U21: 93.93 | V21: 30.08 | W21: 34.59
N22: 0
N23: 0
H26: Customer categories | J26: Service charge [R/account/day] | L26: Administration charge [R/POD/day] | Q26: Ancillary service charge [c/kWh] | S26: Network demand charge [c/kWh] in all time-of-use periods
O27: Voltage | R27: VAT incl | T27: VAT incl
A28: Tariff | B28: Tariff nameBillcode | C28: Tx zone | D28: Voltage | E28: Billcode | K28: VAT incl | M28: VAT incl | O28: < 500V | Q28: 0.71 | R28: =ROUND(Q28 * (1 + VAT), 2) -> 0.82 | S28: 46.2 | T28: =ROUND(S28 * (1 + VAT), 2) -> 53.13
A29: Ruraflex | B29: Ru | C29: 0 | D29: 1 | E29: =B29&C29&D29&IF($A$2="Non-municipal","N",IF($A$2="Municiple","Y","error")) -> Ru01N | H29: ≤ 100 kVA | J29: 31.93 | K29: =ROUND(J29 * (1 + VAT), 2) -> 36.72 | L29: 9.06 | M29: =ROUND(L29 * (1 + VAT), 2) -> 10.42 | O29: ≥ 500V & < 22kV | Q29: 0.71 | R29: =ROUND(Q29 * (1 + VAT), 2) -> 0.82 | S29: 40.51 | T29: =ROUND(S29 * (1 + VAT), 2) -> 46.59
A30: Ruraflex | B30: Ru | C30: 0 | D30: 1 | E30: =B30&C30&D30&IF($A$2="Non-municipal","N",IF($A$2="Municiple","Y","error")) -> Ru01N | H30: > 100 kVA & ≤ 500 kVA | J30: 108.89 | K30: =ROUND(J30 * (1 + VAT), 2) -> 125.22 | L30: 50.49 | M30: =ROUND(L30 * (1 + VAT), 2) -> 58.06
A31: Ruraflex | B31: Ru | C31: 0 | D31: 1 | E31: =B31&C31&D31&IF($A$2="Non-municipal","N",IF($A$2="Municiple","Y","error")) -> Ru01N | H31: > 500 kVA & ≤ 1 MVA | J31: 334.96 | K31: =ROUND(J31 * (1 + VAT), 2) -> 385.2 | L31: 77.49 | M31: =ROUND(L31 * (1 + VAT), 2) -> 89.11 | O31: Reactive energy charge [c/kVArh]
A32: Ruraflex | B32: Ru | C32: 0 | D32: 1 | E32: =B32&C32&D32&IF($A$2="Non-municipal","N",IF($A$2="Municiple","Y","error")) -> Ru01N | H32: > 1 MVA | J32: 334.96 | K32: =ROUND(J32 * (1 + VAT), 2) -> 385.2 | L32: 143.77 | M32: =ROUND(L32 * (1 + VAT), 2) -> 165.34 | O32: High season | Q32: Low season
A33: Ruraflex | B33: Ru | C33: 0 | D33: 1 | E33: =B33&C33&D33&IF($A$2="Non-municipal","N",IF($A$2="Municiple","Y","error")) -> Ru01N | H33: Key customers | J33: 6565 | K33: =ROUND(J33 * (1 + VAT), 2) -> 7549.75 | L33: 143.77 | M33: =ROUND(L33 * (1 + VAT), 2) -> 165.34 | P33: VAT incl | R33: VAT incl
O34: 15.6 | P34: =ROUND(O34 * (1 + VAT), 2) -> 17.94 | Q34: 0 | R34: =ROUND(Q34 * (1 + VAT), 2) -> 0

Sheet Ruraflex Munic
G1: Back to menu
A2: Municiple | G2: Ruraflex - Local Authority | AF2: =SUM(#REF!,#REF!,#REF!,#REF!,#REF!,#REF!,#REF!,#REF!,#REF!,#REF!,#REF!,#REF!) ->  | AG2: check value
J4: Active energy charge [c/kWh] | V4: Network capacity charges [R/kVA/m]
H5: Transmission zone | J5: High demand season [Jun - Aug] | P5: Low demand season [Sep - May]
I6: Voltage | J6: Peak | L6: Standard | N6: Off Peak | P6: Peak | R6: Standard | T6: Off Peak
A7: Tariff | B7: Tariff nameBillcode | C7: Tx zone | D7: Voltage | E7: Billcode | K7: VAT incl | M7: VAT incl | O7: VAT incl | Q7: VAT incl | S7: VAT incl | U7: VAT incl | W7: VAT incl
A8: Ruraflex | B8: Ru | C8: 0 | D8: 1 | E8: =B8&C8&D8&IF($A$2="Non-municipal","N",IF($A$2="Municiple","Y","error")) -> Ru01Y | H8: ≤ 300km | I8: < 500V | J8: 582.45 | K8: =ROUND(J8 * (1 + VAT), 2) -> 669.82 | L8: 176.43 | M8: =ROUND(L8 * (1 + VAT), 2) -> 202.89 | N8: 95.82 | O8: =ROUND(N8 * (1 + VAT), 2) -> 110.19 | P8: 190.01 | Q8: =ROUND(P8 * (1 + VAT), 2) -> 218.51 | R8: 130.76 | S8: =ROUND(R8 * (1 + VAT), 2) -> 150.37 | T8: 82.95 | U8: =ROUND(T8 * (1 + VAT), 2) -> 95.39 | V8: 33.13 | W8: =ROUND(V8 * (1 + VAT), 2) -> 38.1
A9: Ruraflex | B9: Ru | C9: 0 | D9: 2 | E9: =B9&C9&D9&IF($A$2="Non-municipal","N",IF($A$2="Municiple","Y","error")) -> Ru02Y | I9: ≥ 500V & ≤ 22kV | J9: 576.66 | K9: 663.16 | L9: 174.7 | M9: 200.91 | N9: 94.86 | O9: 109.09 | P9: 188.15 | Q9: 216.37 | R9: 129.44 | S9: 148.86 | T9: 82.11 | U9: 94.43 | V9: 30.39 | W9: 34.95
A10: Ruraflex | B10: Ru | E10: RuY | J10: 0 | L10: 0 | N10: 0 | P10: 0 | R10: 0 | T10: 0 | V10: 0
A11: Ruraflex | B11: Ru | E11: RuY | J11: 0 | L11: 0 | N11: 0 | P11: 0 | R11: 0 | T11: 0 | V11: 0
A12: Ruraflex | B12: Ru | C12: 1 | D12: 1 | E12: Ru11Y | H12: > 300km and ≤ 600km | I12: < 500V | J12: 588.24 | K12: 676.48 | L12: 178.23 | M12: 204.96 | N12: 96.73 | O12: 111.24 | P12: 191.87 | Q12: 220.65 | R12: 132.08 | S12: 151.89 | T12: 83.81 | U12: 96.38 | V12: 33.27 | W12: 38.26
A13: Ruraflex | B13: Ru | C13: 1 | D13: 2 | E13: Ru12Y | I13: ≥ 500V & ≤ 22kV | J13: 582.44 | K13: 669.81 | L13: 176.39 | M13: 202.85 | N13: 95.82 | O13: 110.19 | P13: 190.01 | Q13: 218.51 | R13: 130.74 | S13: 150.35 | T13: 82.95 | U13: 95.39 | V13: 30.56 | W13: 35.14
A14: Ruraflex | B14: Ru | E14: RuY | J14: 0 | L14: 0 | N14: 0 | P14: 0 | R14: 0 | T14: 0 | V14: 0
A15: Ruraflex | B15: Ru | E15: RuY | J15: 0 | L15: 0 | N15: 0 | P15: 0 | R15: 0 | T15: 0 | V15: 0
A16: Ruraflex | B16: Ru | C16: 2 | D16: 1 | E16: Ru21Y | H16: > 600km and ≤ 900km | I16: < 500V | J16: 594.14 | K16: 683.26 | L16: 179.96 | M16: 206.95 | N16: 97.74 | O16: 112.4 | P16: 193.77 | Q16: 222.84 | R16: 133.35 | S16: 153.35 | T16: 84.64 | U16: 97.34 | V16: 33.45 | W16: 38.47
A17: Ruraflex | B17: Ru | C17: 2 | D17: 2 | E17: Ru22Y | I17: ≥ 500V & ≤ 22kV | J17: 588.21 | K17: 676.44 | L17: 178.19 | M17: 204.92 | N17: 96.73 | O17: 111.24 | P17: 191.87 | Q17: 220.65 | R17: 132.08 | S17: 151.89 | T17: 83.81 | U17: 96.38 | V17: 30.72 | W17: 35.33
A18: Ruraflex | B18: Ru | E18: RuY | J18: 0 | L18: 0 | N18: 0 | P18: 0 | R18: 0 | T18: 0 | V18: 0
A19: Ruraflex | B19: Ru | E19: RuY | J19: 0 | L19: 0 | N19: 0 | P19: 0 | R19: 0 | T19: 0 | V19: 0
A20: Ruraflex | B20: Ru | C20: 3 | D20: 1 | E20: Ru31Y | H20: > 900km | I20: < 500V | J20: 600.08 | K20: 690.09 | L20: 181.83 | M20: 209.1 | N20: 98.65 | O20: 113.45 | P20: 195.69 | Q20: 225.04 | R20: 134.73 | S20: 154.94 | T20: 85.48 | U20: 98.3 | V20: 33.54 | W20: 38.57
A21: Ruraflex | B21: Ru | C21: 3 | D21: 2 | E21: Ru32Y | I21: ≥ 500V & ≤ 22kV | J21: 594.13 | K21: 683.25 | L21: 179.96 | M21: 206.95 | N21: 97.74 | O21: 112.4 | P21: 193.77 | Q21: 222.84 | R21: 133.35 | S21: 153.35 | T21: 84.64 | U21: 97.34 | V21: 30.74 | W21: 35.35
N22: 0
N23: 0
H26: Customer categories | J26: Service charge [R/account/day] | L26: Administration charge [R/POD/day] | Q26: Ancillary service charge [c/kWh] | S26: Network demand charge [c/kWh] in all time-of-use periods
O27: Voltage | R27: VAT incl | T27: VAT incl
A28: Tariff | B28: Tariff nameBillcode | C28: Tx zone | D28: Voltage | E28: Billcode | K28: VAT incl | M28: VAT incl | O28: < 500V | Q28: 0.73 | R28: =ROUND(Q28 * (1 + VAT), 2) -> 0.84 | S28: 47.24 | T28: =ROUND(S28 * (1 + VAT), 2) -> 54.33
A29: Ruraflex | B29: Ru | C29: 0 | D29: 1 | E29: =B29&C29&D29&IF($A$2="Non-municipal","N",IF($A$2="Municiple","Y","error")) -> Ru01Y | H29: ≤ 100 kVA | J29: 32.17 | K29: =ROUND(J29 * (1 + VAT), 2) -> 37 | L29: 9.12 | M29: =ROUND(L29 * (1 + VAT), 2) -> 10.49 | O29: ≥ 500V & < 22kV | Q29: 0.73 | R29: =ROUND(Q29 * (1 + VAT), 2) -> 0.84 | S29: 41.34 | T29: =ROUND(S29 * (1 + VAT), 2) -> 47.54
A30: Ruraflex | B30: Ru | C30: 0 | D30: 1 | E30: =B30&C30&D30&IF($A$2="Non-municipal","N",IF($A$2="Municiple","Y","error")) -> Ru01Y | H30: > 100 kVA & ≤ 500 kVA | J30: 109.71 | K30: =ROUND(J30 * (1 + VAT), 2) -> 126.17 | L30: 50.85 | M30: =ROUND(L30 * (1 + VAT), 2) -> 58.48
A31: Ruraflex | B31: Ru | C31: 0 | D31: 1 | E31: =B31&C31&D31&IF($A$2="Non-municipal","N",IF($A$2="Municiple","Y","error")) -> Ru01Y | H31: > 500 kVA & ≤ 1 MVA | J31: 337.51 | K31: =ROUND(J31 * (1 + VAT), 2) -> 388.14 | L31: 78.04 | M31: =ROUND(L31 * (1 + VAT), 2) -> 89.75 | O31: Reactive energy charge [c/kVArh]
A32: Ruraflex | B32: Ru | C32: 0 | D32: 1 | E32: =B32&C32&D32&IF($A$2="Non-municipal","N",IF($A$2="Municiple","Y","error")) -> Ru01Y | H32: > 1 MVA | J32: 337.51 | K32: =ROUND(J32 * (1 + VAT), 2) -> 388.14 | L32: 144.85 | M32: =ROUND(L32 * (1 + VAT), 2) -> 166.58 | O32: High season | Q32: Low season
A33: Ruraflex | B33: Ru | C33: 0 | D33: 1 | E33: =B33&C33&D33&IF($A$2="Non-municipal","N",IF($A$2="Municiple","Y","error")) -> Ru01Y | H33: Key customers | J33: 6614.31 | K33: =ROUND(J33 * (1 + VAT), 2) -> 7606.46 | L33: 144.85 | M33: =ROUND(L33 * (1 + VAT), 2) -> 166.58 | P33: VAT incl | R33: VAT incl
O34: 15.7 | P34: =ROUND(O34 * (1 + VAT), 2) -> 18.06 | Q34: 0 | R34: =ROUND(Q34 * (1 + VAT), 2) -> 0

Sheet Ruraflex Gen NLA
G1: Back to menu
A2: Non-municipal | G2: Ruraflex Gen - Non-Local Authority | AF2: =SUM(#REF!,#REF!,#REF!,#REF!,#REF!,#REF!,#REF!,#REF!,#REF!,#REF!,#REF!,#REF!) ->  | AG2: check value
J4: Active energy charge for loads [c/kWh] | V4: Network capacity charges [R/kVA/m]
H5: Transmission zone | J5: High demand season [Jun - Aug] | P5: Low demand season [Sep - May]
I6: Voltage | J6: Peak | L6: Standard | N6: Off Peak | P6: Peak | R6: Standard | T6: Off Peak
A7: Tariff | B7: Tariff nameBillcode | C7: Tx zone | D7: Voltage | E7: Billcode | K7: VAT incl | M7: VAT incl | O7: VAT incl | Q7: VAT incl | S7: VAT incl | U7: VAT incl | W7: VAT incl
A8: Genflex rural | B8: GR | C8: 0 | D8: 1 | E8: =B8&C8&D8&IF($A$2="Non-municipal","N",IF($A$2="Municiple","Y","error")) -> GR01N | H8: ≤ 300km | I8: < 500V | J8: 562.01 | K8: =ROUND(J8 * (1 + VAT), 2) -> 646.31 | L8: 170.26 | M8: =ROUND(L8 * (1 + VAT), 2) -> 195.8 | N8: 92.48 | O8: =ROUND(N8 * (1 + VAT), 2) -> 106.35 | P8: 183.34 | Q8: =ROUND(P8 * (1 + VAT), 2) -> 210.84 | R8: 126.16 | S8: =ROUND(R8 * (1 + VAT), 2) -> 145.08 | T8: 80.04 | U8: =ROUND(T8 * (1 + VAT), 2) -> 92.05 | V8: 32.46 | W8: =ROUND(V8 * (1 + VAT), 2) -> 37.33
A9: Genflex rural | B9: GR | C9: 0 | D9: 2 | E9: =B9&C9&D9&IF($A$2="Non-municipal","N",IF($A$2="Municiple","Y","error")) -> GR02N | I9: ≥ 500V & ≤ 22kV | J9: 556.46 | K9: 639.93 | L9: 168.59 | M9: 193.88 | N9: 91.53 | O9: 105.26 | P9: 181.53 | Q9: 208.76 | R9: 124.91 | S9: 143.65 | T9: 79.21 | U9: 91.09 | V9: 29.75 | W9: 34.21
A10: Genflex rural | B10: GR | E10: GRN | J10: 0 | L10: 0 | N10: 0 | P10: 0 | R10: 0 | T10: 0 | V10: 0
A11: Genflex rural | B11: GR | E11: GRN | J11: 0 | L11: 0 | N11: 0 | P11: 0 | R11: 0 | T11: 0 | V11: 0
A12: Genflex rural | B12: GR | C12: 1 | D12: 1 | E12: GR11N | H12: > 300km and ≤ 600km | I12: < 500V | J12: 567.66 | K12: 652.81 | L12: 171.97 | M12: 197.77 | N12: 93.39 | O12: 107.4 | P12: 185.17 | Q12: 212.95 | R12: 127.45 | S12: 146.57 | T12: 80.87 | U12: 93 | V12: 32.56 | W12: 37.44
A13: Genflex rural | B13: GR | C13: 1 | D13: 2 | E13: GR12N | I13: ≥ 500V & ≤ 22kV | J13: 562 | K13: 646.3 | L13: 170.24 | M13: 195.78 | N13: 92.48 | O13: 106.35 | P13: 183.34 | Q13: 210.84 | R13: 126.15 | S13: 145.07 | T13: 80.04 | U13: 92.05 | V13: 29.92 | W13: 34.41
A14: Genflex rural | B14: GR | E14: GRN | J14: 0 | L14: 0 | N14: 0 | P14: 0 | R14: 0 | T14: 0 | V14: 0
A15: Genflex rural | B15: GR | E15: GRN | J15: 0 | L15: 0 | N15: 0 | P15: 0 | R15: 0 | T15: 0 | V15: 0
A16: Genflex rural | B16: GR | C16: 2 | D16: 1 | E16: GR21N | H16: > 600km and ≤ 900km | I16: < 500V | J16: 573.34 | K16: 659.34 | L16: 173.7 | M16: 199.76 | N16: 94.31 | O16: 108.46 | P16: 187.03 | Q16: 215.08 | R16: 128.7 | S16: 148.01 | T16: 81.68 | U16: 93.93 | V16: 32.72 | W16: 37.63
A17: Genflex rural | B17: GR | C17: 2 | D17: 2 | E17: GR22N | I17: ≥ 500V & ≤ 22kV | J17: 567.62 | K17: 652.76 | L17: 171.92 | M17: 197.71 | N17: 93.39 | O17: 107.4 | P17: 185.17 | Q17: 212.95 | R17: 127.45 | S17: 146.57 | T17: 80.87 | U17: 93 | V17: 30.07 | W17: 34.58
A18: Genflex rural | B18: GR | E18: GRN | J18: 0 | L18: 0 | N18: 0 | P18: 0 | R18: 0 | T18: 0 | V18: 0
A19: Genflex rural | B19: GR | E19: GRN | J19: 0 | L19: 0 | N19: 0 | P19: 0 | R19: 0 | T19: 0 | V19: 0
A20: Genflex rural | B20: GR | C20: 3 | D20: 1 | E20: GR31N | H20: > 900km | I20: < 500V | J20: 579.06 | K20: 665.92 | L20: 175.41 | M20: 201.72 | N20: 95.25 | O20: 109.54 | P20: 188.82 | Q20: 217.14 | R20: 129.99 | S20: 149.49 | T20: 82.47 | U20: 94.84 | V20: 32.87 | W20: 37.8
A21: Genflex rural | B21: GR | C21: 3 | D21: 2 | E21: GR32N | I21: ≥ 500V & ≤ 22kV | J21: 573.32 | K21: 659.32 | L21: 173.7 | M21: 199.76 | N21: 94.31 | O21: 108.46 | P21: 187.03 | Q21: 215.08 | R21: 128.7 | S21: 148.01 | T21: 81.68 | U21: 93.93 | V21: 30.08 | W21: 34.59
N22: 0
N23: 0
A24: Gen-purchase | B24: NLPurchADJ | C24: 0 | D24: 4 | E24: =B24&C24&D24&IF($A$2="Non-municipal","N",IF($A$2="Municiple","Y","error")) -> NLPurchADJ04N
H28: Customer categories | J28: Service charge [R/account/day] | L28: Administration charge [R/POD/day] | O28: Voltage | Q28: Ancillary service charge for loads and generators [c/kWh] | S28: Network demand charge [c/kWh] for loads in all time-of-use periods
H29: [kVA or MVA = loads] | R29: VAT incl | T29: VAT incl
A30: Tariff | B30: Tariff nameBillcode | C30: Tx zone | D30: Voltage | E30: Billcode | H30: [kW or MW = generators] | K30: VAT incl | M30: VAT incl | O30: < 500V | Q30: 0.71 | R30: =ROUND(Q30 * (1 + VAT), 2) -> 0.82 | S30: 46.2 | T30: =ROUND(S30 * (1 + VAT), 2) -> 53.13
A31: Genflex rural | B31: GR | C31: 0 | D31: 1 | E31: =B31&C31&D31&IF($A$2="Non-municipal","N",IF($A$2="Municiple","Y","error")) -> GR01N | H31: ≤ 100 kVA/kW | J31: 31.93 | K31: =ROUND(J31 * (1 + VAT), 2) -> 36.72 | L31: 9.06 | M31: =ROUND(L31 * (1 + VAT), 2) -> 10.42 | O31: ≥ 500V & < 22kV | Q31: 0.71 | R31: =ROUND(Q31 * (1 + VAT), 2) -> 0.82 | S31: 40.51 | T31: =ROUND(S31 * (1 + VAT), 2) -> 46.59
A32: Genflex rural | B32: GR | C32: 0 | D32: 1 | E32: =B32&C32&D32&IF($A$2="Non-municipal","N",IF($A$2="Municiple","Y","error")) -> GR01N | H32: > 100 KVA/kW & ≤ 500 kVA/kW | J32: 108.89 | K32: =ROUND(J32 * (1 + VAT), 2) -> 125.22 | L32: 50.49 | M32: =ROUND(L32 * (1 + VAT), 2) -> 58.06
A33: Genflex rural | B33: GR | C33: 0 | D33: 1 | E33: =B33&C33&D33&IF($A$2="Non-municipal","N",IF($A$2="Municiple","Y","error")) -> GR01N | H33: > 500 kVA/kW & ≤ 1 MVA/MW | J33: 334.96 | K33: =ROUND(J33 * (1 + VAT), 2) -> 385.2 | L33: 77.49 | M33: =ROUND(L33 * (1 + VAT), 2) -> 89.11 | O33: Reactive energy charge [c/kVArh]
A34: Genflex rural | B34: GR | C34: 0 | D34: 1 | E34: =B34&C34&D34&IF($A$2="Non-municipal","N",IF($A$2="Municiple","Y","error")) -> GR01N | H34: > 1 MVA/MW | J34: 334.96 | K34: =ROUND(J34 * (1 + VAT), 2) -> 385.2 | L34: 143.77 | M34: =ROUND(L34 * (1 + VAT), 2) -> 165.34 | O34: High season | Q34: Low season
A35: Genflex rural | B35: GR | C35: 0 | D35: 1 | E35: =B35&C35&D35&IF($A$2="Non-municipal","N",IF($A$2="Municiple","Y","error")) -> GR01N | H35: Key customers | J35: 6565 | K35: =ROUND(J35 * (1 + VAT), 2) -> 7549.75 | L35: 143.77 | M35: =ROUND(L35 * (1 + VAT), 2) -> 165.34 | P35: VAT incl | R35: VAT incl
O36: 15.6 | P36: =ROUND(O36 * (1 + VAT), 2) -> 17.94 | Q36: 0 | R36: =ROUND(Q36 * (1 + VAT), 2) -> 0

Sheet Landrate NLA
H1: Back to menu
A2: Non-municipal | G2: Landrate - Non-local Authority
J4: Energy charge [c/kWh] | L4: Ancillary service charge [c/kWh] | N4: Network demand charge [c/kWh] | P4: Network capacity charge [R/POD/day] | R4: Service charge [R/POD/day]
A5: Tariff | B5: Tariff nameBillcode | C5: Tx zone | D5: Voltage | E5: Billcode | K5: VAT incl | M5: VAT incl | O5: VAT incl | Q5: VAT incl | S5: VAT incl
A6: Landrate 1 | B6: L1 | C6: 0 | D6: 1 | E6: =B6&C6&D6&IF($A$2="Non-municipal","N",IF($A$2="Municiple","Y","error")) -> L101N | H6: Landrate 1 | J6: 184.92 | K6: =ROUND(J6 * (1 + VAT), 2) -> 212.66 | L6: 0.71 | M6: =ROUND(L6 * (1 + VAT), 2) -> 0.82 | N6: 46.2 | O6: =ROUND(N6 * (1 + VAT), 2) -> 53.13 | P6: 49.39 | Q6: =ROUND(P6 * (1 + VAT), 2) -> 56.8 | R6: 41.02 | S6: =ROUND(R6 * (1 + VAT), 2) -> 47.17
A7: Landrate 2 | B7: L2 | C7: 0 | D7: 1 | E7: =B7&C7&D7&IF($A$2="Non-municipal","N",IF($A$2="Municiple","Y","error")) -> L201N | H7: Landrate 2 | J7: 184.92 | K7: 212.66 | L7: 0.71 | M7: =ROUND(L7 * (1 + VAT), 2) -> 0.82 | N7: 46.2 | O7: =ROUND(N7 * (1 + VAT), 2) -> 53.13 | P7: 75.92 | Q7: =ROUND(P7 * (1 + VAT), 2) -> 87.31 | R7: 41.02 | S7: =ROUND(R7 * (1 + VAT), 2) -> 47.17
A8: Landrate 3 | B8: L3 | C8: 0 | D8: 1 | E8: L301N | H8: Landrate 3 | J8: 184.92 | K8: 212.66 | L8: 0.71 | M8: =ROUND(L8 * (1 + VAT), 2) -> 0.82 | N8: 46.2 | O8: =ROUND(N8 * (1 + VAT), 2) -> 53.13 | P8: 121.38 | Q8: =ROUND(P8 * (1 + VAT), 2) -> 139.59 | R8: 41.02 | S8: =ROUND(R8 * (1 + VAT), 2) -> 47.17
A9: Landrate 4 | B9: L4 | C9: 0 | D9: 1 | E9: L401N | H9: Landrate 4 | J9: 399.41 | K9: 459.32 | L9: 0.71 | M9: =ROUND(L9 * (1 + VAT), 2) -> 0.82 | N9: 46.2 | O9: =ROUND(N9 * (1 + VAT), 2) -> 53.13 | P9: 39.33 | Q9: =ROUND(P9 * (1 + VAT), 2) -> 45.23 | R9: 0 | S9: =ROUND(R9 * (1 + VAT), 2) -> 0
A10: Landlight | B10: Lt | C10: 0 | D10: 1 | E10: =B10&C10&D10&IF($A$2="Non-municipal","N",IF($A$2="Municiple","Y","error")) -> Lt01N | H10: Landlight 20A | J10: 531.74 | K10: 611.5
B11: Lt60 | C11: 0 | D11: 1 | E11: =B11&C11&D11&IF($A$2="Non-municipal","N",IF($A$2="Municiple","Y","error")) -> Lt6001N | H11: Landlight 60A | J11: 685.48 | K11: 788.3
A12: Landrate Dx | B12: Ld | C12: 0 | D12: 1 | E12: Ld01N | H12: Landrate Dx* | R12: 87.97 | S12: =ROUND(R12 * (1 + VAT), 2) -> 101.17
H13: *R/day fixed charge inclusive of the following charges; energy, ancillary service, network demand, network capacity and service charge.

Sheet Landrate Munic
H1: Back to menu
A2: Municiple | G2: Landrate - Local Authority
J4: Energy charge [c/kWh] | L4: Ancillary service charge [c/kWh] | N4: Network demand charge [c/kWh] | P4: Network capacity charge [R/POD/day] | R4: Service charge [R/POD/day]
A5: Tariff | B5: Tariff nameBillcode | C5: Tx zone | D5: Voltage | E5: Billcode | K5: VAT incl | M5: VAT incl | O5: VAT incl | Q5: VAT incl | S5: VAT incl
A6: Landrate 1 | B6: L1 | C6: 0 | D6: 1 | E6: =B6&C6&D6&IF($A$2="Non-municipal","N",IF($A$2="Municiple","Y","error")) -> L101Y | H6: Landrate 1 | J6: 191.63 | K6: =ROUND(J6 * (1 + VAT), 2) -> 220.37 | L6: 0.73 | M6: =ROUND(L6 * (1 + VAT), 2) -> 0.84 | N6: 47.24 | O6: =ROUND(N6 * (1 + VAT), 2) -> 54.33 | P6: 50.45 | Q6: =ROUND(P6 * (1 + VAT), 2) -> 58.02 | R6: 41.29 | S6: =ROUND(R6 * (1 + VAT), 2) -> 47.48
A7: Landrate 2 | B7: L2 | C7: 0 | D7: 1 | E7: =B7&C7&D7&IF($A$2="Non-municipal","N",IF($A$2="Municiple","Y","error")) -> L201Y | H7: Landrate 2 | J7: 191.63 | K7: =ROUND(J7 * (1 + VAT), 2) -> 220.37 | L7: 0.73 | M7: =ROUND(L7 * (1 + VAT), 2) -> 0.84 | N7: 47.24 | O7: =ROUND(N7 * (1 + VAT), 2) -> 54.33 | P7: 77.54 | Q7: =ROUND(P7 * (1 + VAT), 2) -> 89.17 | R7: 41.29 | S7: =ROUND(R7 * (1 + VAT), 2) -> 47.48
A8: Landrate 3 | B8: L3 | C8: 0 | D8: 1 | E8: =B8&C8&D8&IF($A$2="Non-municipal","N",IF($A$2="Municiple","Y","error")) -> L301Y | H8: Landrate 3 | J8: 191.63 | K8: =ROUND(J8 * (1 + VAT), 2) -> 220.37 | L8: 0.73 | M8: =ROUND(L8 * (1 + VAT), 2) -> 0.84 | N8: 47.24 | O8: =ROUND(N8 * (1 + VAT), 2) -> 54.33 | P8: 124 | Q8: =ROUND(P8 * (1 + VAT), 2) -> 142.6 | R8: 41.29 | S8: =ROUND(R8 * (1 + VAT), 2) -> 47.48
A9: Landrate 4 | B9: L4 | C9: 0 | D9: 1 | E9: =B9&C9&D9&IF($A$2="Non-municipal","N",IF($A$2="Municiple","Y","error")) -> L401Y | H9: Landrate 4 | J9: 413.9 | K9: =ROUND(J9 * (1 + VAT), 2) -> 475.99 | L9: 0.73 | M9: =ROUND(L9 * (1 + VAT), 2) -> 0.84 | N9: 47.24 | O9: =ROUND(N9 * (1 + VAT), 2) -> 54.33 | P9: 40.18 | Q9: =ROUND(P9 * (1 + VAT), 2) -> 46.21
A10: Landrate Dx | B10: Ld | C10: 0 | D10: 1 | E10: =B10&C10&D10&IF($A$2="Non-municipal","N",IF($A$2="Municiple","Y","error")) -> Ld01Y | H10: Landrate Dx* | R10: 89.35 | S10: =ROUND(R10 * (1 + VAT), 2) -> 102.75
H11: *R/day fixed charge inclusive of the following charges; energy, ancillary service, network demand, network capacity and service charge.

Sheet TUoS NLA
H1: Back to menu
A2: Non-municipal
H3: TUoS (Transmission use of system) charges (> 132 KV or direct Transmission connected) network charge for loads
H6: Electrification and rural network subsidy charge [c/kWh]
J7: Electrification and rural network subsidy charge [c/kWh]
A9: Tariff | B9: Tariff nameBillcode | C9: Tx zone | D9: Voltage | E9: Billcode | H9: Tariff | K9: VAT incl
H10: Megaflex, Miniflex, Nightsave Urban Large, Nightsave Urban Small, Transflex
A11: Megaflex | B11: Me | C11: 0 | D11: 1 | E11: =B11&C11&D11&IF($A$2="Non-municipal","N",IF($A$2="Municiple","Y","error")) -> Me01N | J11: ='Megaflex NLA'!H46 -> 13.8 | K11: =ROUND(J11 * (1 + VAT), 2) -> 15.87
H15: Service and admin charges
H16: Utilised capacity/maximum export capacity | J16: Service charge [R/account/day] | L16: Administration charge [R/POD/day]
H19: [kVA/MVA = loads]
A20: Tariff | B20: Tariff nameBillcode | C20: Tx zone | D20: Voltage | E20: Billcode | H20: [kW/MW = generators] | K20: VAT incl | M20: VAT incl
A21: Miniflex | B21: Mi | C21: 0 | D21: 1 | E21: =B21&C21&D21&IF($B$28="Non-municipal","N",IF($B$28="Municiple","Y","error")) -> Mi01N | H21: ≤ 100 kVA/kW | J21: 25.21 | K21: =ROUND(J21 * (1+ VAT), 2) -> 28.99 | L21: 5.54 | M21: =ROUND(L21 * (1+ VAT), 2) -> 6.37
A22: Miniflex | B22: Mi | C22: 0 | D22: 1 | E22: =B22&C22&D22&IF($B$28="Non-municipal","N",IF($B$28="Municiple","Y","error")) -> Mi01N | H22: > 100 kVA/kW & ≤ 500 kVA/kW | J22: 115.14 | K22: =ROUND(J22 * (1+ VAT), 2) -> 132.41 | L22: 32.3 | M22: =ROUND(L22 * (1+ VAT), 2) -> 37.15
A23: Miniflex | B23: Mi | C23: 0 | D23: 1 | E23: =B23&C23&D23&IF($B$28="Non-municipal","N",IF($B$28="Municiple","Y","error")) -> Mi01N | H23: > 500 kVA/kW & ≤ 1 MVA/MW | J23: 354.25 | K23: =ROUND(J23 * (1+ VAT), 2) -> 407.39 | L23: 64.12 | M23: =ROUND(L23 * (1+ VAT), 2) -> 73.74
A24: Miniflex | B24: Mi | C24: 0 | D24: 1 | E24: =B24&C24&D24&IF($B$28="Non-municipal","N",IF($B$28="Municiple","Y","error")) -> Mi01N | H24: > 1 MVA/MW | J24: 354.25 | K24: =ROUND(J24 * (1+ VAT), 2) -> 407.39 | L24: 159.66 | M24: =ROUND(L24 * (1+ VAT), 2) -> 183.61
A25: Miniflex | B25: Mi | C25: 0 | D25: 1 | E25: =B25&C25&D25&IF($B$28="Non-municipal","N",IF($B$28="Municiple","Y","error")) -> Mi01N | H25: Key customers or Transmission connected generators | J25: 6942.01 | K25: =ROUND(J25 * (1+ VAT), 2) -> 7983.31 | L25: 221.7 | M25: =ROUND(L25 * (1+ VAT), 2) -> 254.96
B28: Non-municipal | H28: Transmission loss factors for loads
A29: Tariff | B29: Tariff nameBillcode | C29: Tx zone | D29: Voltage | E29: Billcode | H29: Distance from Johannesburg | I29: Zone | J29: Loss factor
A30: Transmission loss factor | B30: TxLoss | C30: 0 | D30: 4 | E30: =B30&C30&D30&IF($B$28="Non-municipal","N",IF($B$28="Municiple","Y","error")) -> TxLoss04N | H30: ≤ 300km | I30: 0 | J30: 1.0107
A31: Transmission loss factor | B31: TxLoss | C31: 1 | D31: 4 | E31: =B31&C31&D31&IF($B$28="Non-municipal","N",IF($B$28="Municiple","Y","error")) -> TxLoss14N | H31: > 300km & ≤ 600km | I31: 1 | J31: 1.0208
A32: Transmission loss factor | B32: TxLoss | C32: 2 | D32: 4 | E32: =B32&C32&D32&IF($B$28="Non-municipal","N",IF($B$28="Municiple","Y","error")) -> TxLoss24N | H32: > 600km & ≤ 900km | I32: 2 | J32: 1.031
A33: Transmission loss factor | B33: TxLoss | C33: 3 | D33: 4 | E33: =B33&C33&D33&IF($B$28="Non-municipal","N",IF($B$28="Municiple","Y","error")) -> TxLoss34N | H33: > 900km | I33: 3 | J33: 1.0413
H36: Loss factors for Transmission connected generators | J36: Loss factor
A37: Tariff | B37: Tariff nameBillcode | C37: Tx zone | D37: Voltage | E37: Billcode
A38: TUoS network charges for Transmission connected generators | B38: GenTUOS | C38: Cape | D38: 4 | E38: =B38&C38&D38&IF($A$2="Non-municipal","N",IF($A$2="Municiple","Y","error")) -> GenTUOSCape4N | I38: Cape | J38: ='Loss Factors'!P14 -> 0.971
A39: TUoS network charges for Transmission connected generators | B39: GenTUOS | C39: Karoo | D39: 4 | E39: GenTUOSKaroo4N | I39: Karoo | J39: ='Loss Factors'!P15 -> 0.995
A40: TUoS network charges for Transmission connected generators | B40: GenTUOS | C40: Kwazulu-Natal | D40: 4 | E40: GenTUOSKwazulu-Natal4N | I40: Kwazulu-Natal | J40: ='Loss Factors'!P16 -> 1.004
A41: TUoS network charges for Transmission connected generators | B41: GenTUOS | C41: Vaal | D41: 4 | E41: GenTUOSVaal4N | I41: Vaal | J41: ='Loss Factors'!P17 -> 1.02
A42: TUoS network charges for Transmission connected generators | B42: GenTUOS | C42: Waterburg | D42: 4 | E42: GenTUOSWaterburg4N | I42: Waterberg | J42: ='Loss Factors'!P18 -> 1.023
A43: TUoS network charges for Transmission connected generators | B43: GenTUOS | C43: Mpumalanga | D43: 4 | E43: GenTUOSMpumalanga4N | I43: Mpumalanga | J43: ='Loss Factors'!P19 -> 1.021
H46: TUoS network charge for Transmission connected loads | J46: Network capacity charge [R/kVA]
A47: Tariff | B47: Tariff nameBillcode | C47: Tx zone | D47: Voltage | E47: Billcode | K47: VAT incl
A48: WEPS | B48: We | C48: 0 | D48: 1 | E48: =B48&C48&D48&IF($A$2="Non-municipal","N",IF($A$2="Municiple","Y","error")) -> We01N | I48: ≤ 300km | J48: ='WEPS NLA'!V11 -> 17.47 | K48: =ROUND(J48 * (1+ VAT), 2) -> 20.09
A49: WEPS | B49: We | C49: 0 | D49: 2 | E49: =B49&C49&D49&IF($A$2="Non-municipal","N",IF($A$2="Municiple","Y","error")) -> We02N | I49: > 300km & ≤ 600km | J49: ='WEPS NLA'!V15 -> 17.62 | K49: =ROUND(J49 * (1+ VAT), 2) -> 20.26
A50: WEPS | B50: We | C50: 0 | D50: 3 | E50: =B50&C50&D50&IF($A$2="Non-municipal","N",IF($A$2="Municiple","Y","error")) -> We03N | I50: > 600km & ≤ 900km | J50: ='WEPS NLA'!V19 -> 17.88 | K50: =ROUND(J50 * (1+ VAT), 2) -> 20.56
A51: WEPS | B51: We | C51: 0 | D51: 4 | E51: =B51&C51&D51&IF($A$2="Non-municipal","N",IF($A$2="Municiple","Y","error")) -> We04N | I51: > 900km | J51: ='WEPS NLA'!V23 -> 18.01 | K51: =ROUND(J51 * (1+ VAT), 2) -> 20.71
H54: TUoS network charges for Transmission connected generators | J54: Network charge [R/kW]
A55: Tariff | B55: Tariff nameBillcode | C55: Tx zone | D55: Voltage | E55: Billcode | K55: VAT incl
A56: TUoS network charges for Transmission connected generators | B56: GenTUOS | C56: Cape | D56: 4 | E56: =B56&C56&D56&IF($A$2="Non-municipal","N",IF($A$2="Municiple","Y","error")) -> GenTUOSCape4N | I56: Cape | J56: 0 | K56: =ROUND(J56 * (1+ VAT), 2) -> 0
A57: TUoS network charges for Transmission connected generators | B57: GenTUOS | C57: Karoo | D57: 4 | E57: GenTUOSKaroo4N | I57: Karoo | J57: 0 | K57: 0
A58: TUoS network charges for Transmission connected generators | B58: GenTUOS | C58: Kwazulu-Natal | D58: 4 | E58: GenTUOSKwazulu-Natal4N | I58: Kwazulu-Natal | J58: 3.67 | K58: 4.22
A59: TUoS network charges for Transmission connected generators | B59: GenTUOS | C59: Vaal | D59: 4 | E59: GenTUOSVaal4N | I59: Vaal | J59: 12.21 | K59: 14.04
A60: TUoS network charges for Transmission connected generators | B60: GenTUOS | C60: Waterburg | D60: 4 | E60: GenTUOSWaterburg4N | I60: Waterberg | J60: 15.64 | K60: 17.99
A61: TUoS network charges for Transmission connected generators | B61: GenTUOS | C61: Mpumalanga | D61: 4 | E61: GenTUOSMpumalanga4N | I61: Mpumalanga | J61: 14.51 | K61: 16.69
H64: TUoS ancillary service charge for Transmission connected loads and generators | J64: Ancillary service charge [c/kWh]
A66: Tariff | B66: Tariff nameBillcode | C66: Tx zone | D66: Voltage | E66: Billcode | K66: VAT incl
A67: TUoS network charges for Transmission connected generators | B67: GenTUOS | C67: Cape | D67: 4 | E67: =B67&C67&D67&IF($A$2="Non-municipal","N",IF($A$2="Municiple","Y","error")) -> GenTUOSCape4N | H67: Generators | J67: 0.63 | K67: =ROUND(J67 * (1+ VAT), 2) -> 0.72
A68: TUoS network charges for Transmission connected generators | B68: GenTUOS | C68: Cape | D68: 4 | E68: =B68&C68&D68&IF($A$2="Non-municipal","N",IF($A$2="Municiple","Y","error")) -> GenTUOSCape4N | H68: Loads | J68: 0.63 | K68: =ROUND(J68 * (1+ VAT), 2) -> 0.72

Sheet DUoS NLA
A2: Non-Municipal | H2: Back to menu
H4: DUoS (Distribution use of system) charges
H7: DUoS ancillary service charge Urbanp | J7: Charge [c/kWh]
A8: Tariff | B8: Tariff nameBillcode | C8: Tx zone | D8: Voltage | E8: Billcode | K8: VAT incl
A9: Gen-DUoS urban | B9: NEGenDUoSU | C9: 0 | D9: 1 | E9: =B9&C9&D9&IF($A$2="Non-municipal","N",IF($A$2="Municiple","Y","error")) -> NEGenDUoSU01N | H9: < 500V | J9: 0.71 | K9: =ROUND(J9 * (1 + VAT), 2) -> 0.82
A10: Gen-DUoS urban | B10: NEGenDUoSU | C10: 0 | D10: 2 | E10: =B10&C10&D10&IF($A$2="Non-municipal","N",IF($A$2="Municiple","Y","error")) -> NEGenDUoSU02N | H10: ≥ 500V & < 66kV | J10: 0.7 | K10: =ROUND(J10 * (1 + VAT), 2) -> 0.81
A11: Gen-DUoS urban | B11: NEGenDUoSU | C11: 0 | D11: 3 | E11: =B11&C11&D11&IF($A$2="Non-municipal","N",IF($A$2="Municiple","Y","error")) -> NEGenDUoSU03N | H11: ≥ 66kV & ≤ 132kV | J11: 0.68 | K11: =ROUND(J11 * (1 + VAT), 2) -> 0.78
H15: DUoS ancillary service charge Ruralp | J15: Charge [c/kWh]
A16: Tariff | B16: Tariff nameBillcode | C16: Tx zone | D16: Voltage | E16: Billcode | K16: VAT incl
A17: Gen-DUoS rural | B17: NEGenDUoSR | C17: 0 | D17: 1 | E17: =B17&C17&D17&IF($A$2="Non-municipal","N",IF($A$2="Municiple","Y","error")) -> NEGenDUoSR01N | H17: < 500V | J17: 0.71 | K17: =ROUND(J17 * (1 + VAT), 2) -> 0.82
A18: Gen-DUoS rural | B18: NEGenDUoSR | C18: 0 | D18: 2 | E18: =B18&C18&D18&IF($A$2="Non-municipal","N",IF($A$2="Municiple","Y","error")) -> NEGenDUoSR02N | H18: ≥ 500V & ≤ 22kV | J18: 0.71 | K18: =ROUND(J18 * (1 + VAT), 2) -> 0.82
I21: Transmission zone | J21: Voltage | K21: [R/kVA]
A22: Tariff | B22: Tariff nameBillcode | C22: Tx zone | D22: Voltage | E22: Billcode | L22: VAT incl
H23: ETUoS urban | I23: ≤ 300km | J23: < 500V | K23: ='Megaflex NLA'!V8 -> 15.53 | L23: =ROUND(K23 * (1 + VAT), 2) -> 17.86
J24: ≥ 500V & < 66kV | K24: ='Megaflex NLA'!V9 -> 14.19 | L24: 16.32
J25: ≥ 66kV & ≤ 132kV | K25: ='Megaflex NLA'!V10 -> 13.81 | L25: 15.88
I26: > 300km & ≤ 600km | J26: < 500V | K26: ='Megaflex NLA'!V12 -> 15.64 | L26: 17.99
J27: ≥ 500V & < 66kV | K27: ='Megaflex NLA'!V13 -> 14.32 | L27: 16.47
J28: ≥ 66kV & ≤ 132kV | K28: ='Megaflex NLA'!V14 -> 13.92 | L28: 16.01
I29: > 600km & ≤ 900km | J29: < 500V | K29: ='Megaflex NLA'!V16 -> 15.82 | L29: 18.19
J30: ≥ 500V & < 66kV | K30: ='Megaflex NLA'!V17 -> 14.45 | L30: 16.62
J31: ≥ 66kV & ≤ 132kV | K31: ='Megaflex NLA'!V18 -> 14 | L31: 16.1
I32: > 900km | J32: < 500V | K32: ='Megaflex NLA'!V20 -> 15.92 | L32: 18.31
J33: ≥ 500V & < 66kV | K33: ='Megaflex NLA'!V21 -> 14.62 | L33: 16.81
J34: ≥ 66kV & ≤ 132kV | K34: ='Megaflex NLA'!V22 -> 14.13 | L34: 16.25
I37: Transmission zone | J37: Voltage | K37: [R/kVA]
A38: Tariff | B38: Tariff nameBillcode | C38: Tx zone | D38: Voltage | E38: Billcode | L38: VAT incl
H39: ETUoS rural | I39: ≤ 300km | J39: < 500V | K39: ='Ruraflex NLA'!V8 -> 32.46 | L39: =ROUND(K39 * (1 + VAT), 2) -> 37.33
J40: ≥ 500V & < 66kV | K40: ='Ruraflex NLA'!V9 -> 29.75 | L40: 34.21
I41: > 300km & ≤ 600km | J41: < 500V | K41: ='Ruraflex NLA'!V12 -> 32.56 | L41: 37.44
J42: ≥ 500V & < 66kV | K42: ='Ruraflex NLA'!V13 -> 29.92 | L42: 34.41
I43: > 600km & ≤ 900km | J43: < 500V | K43: ='Ruraflex NLA'!V16 -> 32.72 | L43: 37.63
J44: ≥ 500V & < 66kV | K44: ='Ruraflex NLA'!V17 -> 30.07 | L44: 34.58
I45: > 900km | J45: < 500V | K45: ='Ruraflex NLA'!V20 -> 32.87 | L45: 37.8
J46: ≥ 500V & < 66kV | K46: ='Ruraflex NLA'!V21 -> 30.08 | L46: 34.59
H49: DUoS network charges for urbanp loads
J50: Network capacity charge [R/kVA/m] | L50: Network demand charge [R/kVA/m] | N50: Urban low voltage subsidy charge [R/kVA/m]
A52: Tariff | B52: Tariff nameBillcode | C52: Tx zone | D52: Voltage | E52: Billcode | H52: Voltage | K52: VAT incl | M52: VAT incl | O52: VAT incl
A53: Gen-DUoS urban | B53: NEGenDUoSU | C53: 0 | D53: 1 | E53: =B53&C53&D53&IF($A$2="Non-municipal","N",IF($A$2="Municiple","Y","error")) -> NEGenDUoSU01N | H53: < 500V | J53: ='Megaflex NLA'!J30 -> 30.86 | K53: =ROUND(J53 * (1 + VAT), 2) -> 35.49 | L53: ='Megaflex NLA'!L30 -> 58.51 | M53: =ROUND(L53 * (1 + VAT), 2) -> 67.29 | N53: ='Megaflex NLA'!N30 -> 0 | O53: =ROUND(N53 * (1 + VAT), 2) -> 0
A54: Gen-DUoS urban | B54: NEGenDUoSU | C54: 0 | D54: 2 | E54: =B54&C54&D54&IF($A$2="Non-municipal","N",IF($A$2="Municiple","Y","error")) -> NEGenDUoSU02N | H54: ≥ 500V & < 66kV | J54: ='Megaflex NLA'!J31 -> 28.3 | K54: =ROUND(J54 * (1 + VAT), 2) -> 32.55 | L54: ='Megaflex NLA'!L31 -> 53.68 | M54: =ROUND(L54 * (1 + VAT), 2) -> 61.73 | N54: ='Megaflex NLA'!N31 -> 0 | O54: =ROUND(N54 * (1 + VAT), 2) -> 0
A55: Gen-DUoS urban | B55: NEGenDUoSU | C55: 0 | D55: 3 | E55: =B55&C55&D55&IF($A$2="Non-municipal","N",IF($A$2="Municiple","Y","error")) -> NEGenDUoSU03N | H55: ≥ 66kV & ≤ 132kV | J55: ='Megaflex NLA'!J32 -> 10.11 | K55: =ROUND(J55 * (1 + VAT), 2) -> 11.63 | L55: ='Megaflex NLA'!L32 -> 18.71 | M55: =ROUND(L55 * (1 + VAT), 2) -> 21.52 | N55: ='Megaflex NLA'!N32 -> 24.93 | O55: =ROUND(N55 * (1 + VAT), 2) -> 28.67
A56: Gen-DUoS urban | B56: NEGenDUoSU | C56: 0 | D56: 4 | E56: =B56&C56&D56&IF($A$2="Non-municipal","N",IF($A$2="Municiple","Y","error")) -> NEGenDUoSU04N | H56: > 132kV | J56: ='Megaflex NLA'!J33 -> 0 | K56: =ROUND(J56 * (1 + VAT), 2) -> 0 | L56: ='Megaflex NLA'!L33 -> 0 | M56: =ROUND(L56 * (1 + VAT), 2) -> 0 | N56: ='Megaflex NLA'!N33 -> 24.93 | O56: =ROUND(N56 * (1 + VAT), 2) -> 28.67
H59: DUoS network charges ruralp loads
J60: Network capacity charge [R/kVA/m] | L60: Network demand charge [c/kWh]
A62: Tariff | B62: Tariff nameBillcode | C62: Tx zone | D62: Voltage | E62: Billcode | H62: Voltage | K62: VAT incl | M62: VAT incl
A63: Gen-DUoS rural | B63: NEGenDUoSR | C63: 0 | D63: 1 | E63: =B63&C63&D63&IF($A$2="Non-municipal","N",IF($A$2="Municiple","Y","error")) -> NEGenDUoSR01N | H63: < 500V | J63: ='Ruraflex NLA'!V8 -> 32.46 | K63: =ROUND(J63 * (1 + VAT), 2) -> 37.33 | L63: ='Ruraflex NLA'!S28 -> 46.2 | M63: =ROUND(L63 * (1 + VAT), 2) -> 53.13
A64: Gen-DUoS rural | B64: NEGenDUoSR | C64: 0 | D64: 2 | E64: =B64&C64&D64&IF($A$2="Non-municipal","N",IF($A$2="Municiple","Y","error")) -> NEGenDUoSR02N | H64: ≥ 500V & ≤ 22kV | J64: ='Ruraflex NLA'!V9 -> 29.75 | K64: =ROUND(J64 * (1 + VAT), 2) -> 34.21 | L64: ='Ruraflex NLA'!S29 -> 40.51 | M64: =ROUND(L64 * (1 + VAT), 2) -> 46.59
H67: DUoS network charges for generators
J68: Network capacity charge [R/kW/m]
A70: Tariff | B70: Tariff nameBillcode | C70: Tx zone | D70: Voltage | E70: Billcode | H70: Voltage | K70: VAT incl
A71: Gen-DUoS urban | B71: NEGenDUoSU | C71: 0 | D71: 1 | E71: =B71&C71&D71&IF($A$2="Non-municipal","N",IF($A$2="Municiple","Y","error")) -> NEGenDUoSU01N | H71: < 500V
A72: Gen-DUoS urban | B72: NEGenDUoSU | C72: 0 | D72: 2 | E72: =B72&C72&D72&IF($A$2="Non-municipal","N",IF($A$2="Municiple","Y","error")) -> NEGenDUoSU02N | H72: ≥ 500V & < 66kV
A73: Gen-DUoS urban | B73: NEGenDUoSU | C73: 0 | D73: 3 | E73: =B73&C73&D73&IF($A$2="Non-municipal","N",IF($A$2="Municiple","Y","error")) -> NEGenDUoSU03N | H73: ≥ 66kV & ≤ 132kV | J73: 24.95 | K73: =ROUND(J73 * (1 + VAT), 2) -> 28.69
H75: DUoS electrification and rural network subsidy charge [c/kWh] | R75: DUoS electrification and rural network subsidy charge [c/kWh]
J77: Rural network subsidy charge [c/kWh] | L77: Electrification networks subsidy charge [c/kWh] | N77: Total electrification and rural network subsidy charge [c/kWh] | R77: Tariff | T77: Electrification and rural network subsidy charge [c/kWh]
A79: Tariff | B79: Tariff nameBillcode | C79: Tx zone | D79: Voltage | E79: Billcode | H79: Tariff | K79: VAT incl | M79: VAT incl | O79: VAT incl | U79: VAT incl
H80: Megaflex, Miniflex, Nightsave Urban Large, Nightsave Urban Small, Transflex | R80: Megaflex, Miniflex, Nightsave Urban Large, Nightsave Urban Small, Transflex
A81: Megaflex | B81: Me | C81: 0 | D81: 1 | E81: =B81&C81&D81&IF($A$2="Non-municipal","N",IF($A$2="Municiple","Y","error")) -> Me01N | J81: 9.16 | K81: =ROUND(J81 * (1 + VAT), 2) -> 10.53 | L81: 4.64 | M81: =ROUND(L81 * (1 + VAT), 2) -> 5.34 | N81: =SUM(J81, L81) -> 13.8 | O81: =ROUND(N81 * (1 + VAT), 2) -> 15.87 | T81: 13.8 | U81: =ROUND(T81 * (1 + VAT), 2) -> 15.87
A82: 0.6637010676
A83: 0.3362989324
H86: DUoS service and administration charges (urbanp )
H87: Customer categories utilised capacity / maximum export capacity | J87: Service charge [R/account/day] | L87: Administration charge [R/POD/day]
H90: [kVA or MVA = loads]
A91: Tariff | B91: Tariff nameBillcode | C91: Tx zone | D91: Voltage | E91: Billcode | H91: [kW or MW = generators] | K91: VAT incl | M91: VAT incl
A92: Miniflex | B92: Mi | C92: 0 | D92: 1 | E92: =B92&C92&D92&IF($A$2="Non-municipal","N",IF($A$2="Municiple","Y","error")) -> Mi01N | H92: ≤ 100 kVA/kW | J92: 25.21 | K92: =ROUND(J92 * (1 + VAT), 2) -> 28.99 | L92: 5.54 | M92: =ROUND(L92 * (1 + VAT), 2) -> 6.37
A93: Miniflex | B93: Mi | C93: 0 | D93: 1 | E93: =B93&C93&D93&IF($A$2="Non-municipal","N",IF($A$2="Municiple","Y","error")) -> Mi01N | H93: > 100 kVA/kW & ≤ 500 kVA/kW | J93: 115.14 | K93: =ROUND(J93 * (1 + VAT), 2) -> 132.41 | L93: 32.3 | M93: =ROUND(L93 * (1 + VAT), 2) -> 37.15
A94: Miniflex | B94: Mi | C94: 0 | D94: 1 | E94: =B94&C94&D94&IF($A$2="Non-municipal","N",IF($A$2="Municiple","Y","error")) -> Mi01N | H94: > 500 kVA/kW & ≤ 1 MVA/MW | J94: 354.25 | K94: =ROUND(J94 * (1 + VAT), 2) -> 407.39 | L94: 64.12 | M94: =ROUND(L94 * (1 + VAT), 2) -> 73.74
A95: Miniflex | B95: Mi | C95: 0 | D95: 1 | E95: =B95&C95&D95&IF($A$2="Non-municipal","N",IF($A$2="Municiple","Y","error")) -> Mi01N | H95: > 1 MVA/MW | J95: 354.25 | K95: =ROUND(J95 * (1 + VAT), 2) -> 407.39 | L95: 159.66 | M95: =ROUND(L95 * (1 + VAT), 2) -> 183.61
A96: Miniflex | B96: Mi | C96: 0 | D96: 1 | E96: =B96&C96&D96&IF($A$2="Non-municipal","N",IF($A$2="Municiple","Y","error")) -> Mi01N | H96: Key customers or Transmission connected | J96: 6942.01 | K96: =ROUND(J96 * (1 + VAT), 2) -> 7983.31 | L96: 221.7 | M96: =ROUND(L96 * (1 + VAT), 2) -> 254.96
H99: DUoS service and administration charges (ruralp)
H100: Customer categories utilised capacity / maximum export capacity | J100: Service charge [R/account/day] | L100: Administration charge [R/POD/day]
H103: [kVA or MVA = loads]
A104: Tariff | B104: Tariff nameBillcode | C104: Tx zone | D104: Voltage | E104: Billcode | H104: [kW or MW = generators] | K104: VAT incl | M104: VAT incl
A105: Ruraflex | B105: Ru | C105: 0 | D105: 1 | E105: =B105&C105&D105&IF($A$2="Non-municipal","N",IF($A$2="Municiple","Y","error")) -> Ru01N | H105: ≤ 100 kVA/kW | J105: 31.93 | K105: =ROUND(J105 * (1 + VAT), 2) -> 36.72 | L105: 9.06 | M105: =ROUND(L105 * (1 + VAT), 2) -> 10.42
A106: Ruraflex | B106: Ru | C106: 0 | D106: 1 | E106: =B106&C106&D106&IF($A$2="Non-municipal","N",IF($A$2="Municiple","Y","error")) -> Ru01N | H106: > 100 kVA/kW & ≤ 500 kVA/kW | J106: 108.89 | K106: =ROUND(J106 * (1 + VAT), 2) -> 125.22 | L106: 50.49 | M106: =ROUND(L106 * (1 + VAT), 2) -> 58.06
A107: Ruraflex | B107: Ru | C107: 0 | D107: 1 | E107: =B107&C107&D107&IF($A$2="Non-municipal","N",IF($A$2="Municiple","Y","error")) -> Ru01N | H107: > 500 kVA/kW & ≤ 1 MVA/MW | J107: 334.96 | K107: =ROUND(J107 * (1 + VAT), 2) -> 385.2 | L107: 77.49 | M107: =ROUND(L107 * (1 + VAT), 2) -> 89.11
A108: Ruraflex | B108: Ru | C108: 0 | D108: 1 | E108: =B108&C108&D108&IF($A$2="Non-municipal","N",IF($A$2="Municiple","Y","error")) -> Ru01N | H108: > 1 MVA/MW | J108: 334.96 | K108: =ROUND(J108 * (1 + VAT), 2) -> 385.2 | L108: 143.77 | M108: =ROUND(L108 * (1 + VAT), 2) -> 165.34
A109: Ruraflex | B109: Ru | C109: 0 | D109: 1 | E109: =B109&C109&D109&IF($A$2="Non-municipal","N",IF($A$2="Municiple","Y","error")) -> Ru01N | H109: Key customers | J109: 6565 | K109: =ROUND(J109 * (1 + VAT), 2) -> 7549.75 | L109: 143.77 | M109: =ROUND(L109 * (1 + VAT), 2) -> 165.34
H111: Distribution loss factors | L111: Transmission loss factors for loads
A112: Tariff | B112: Tariff nameBillcode | C112: Tx zone | D112: Voltage | E112: Billcode | H112: Voltage | I112: Urbanp loss factor | J112: Ruralp loss factor | L112: Distance from Johannesburg | M112: Zone | N112: Loss factor
A113: Distribution loss factor - Urban | B113: DxLossUrb | C113: 0 | D113: 1 | E113: =B113&C113&D113&IF($A$2="Non-municipal","N",IF($A$2="Municiple","Y","error")) -> DxLossUrb01N | H113: < 500V | I113: 1.1111 | J113: 1.1527 | L113: ≤ 300km | M113: 0 | N113: 1.0107
A114: Distribution loss factor - Urban | B114: DxLossUrb | C114: 0 | D114: 2 | E114: =B114&C114&D114&IF($A$2="Non-municipal","N",IF($A$2="Municiple","Y","error")) -> DxLossUrb02N | H114: ≥ 500V & < 66kV | I114: 1.0957 | J114: 1.1412 | L114: > 300km & ≤ 600km | M114: 1 | N114: 1.0208
A115: Distribution loss factor - Urban | B115: DxLossUrb | C115: 0 | D115: 3 | E115: =B115&C115&D115&IF($A$2="Non-municipal","N",IF($A$2="Municiple","Y","error")) -> DxLossUrb03N | H115: ≥ 66kV & ≤ 132kV | I115: 1.0611 | L115: > 600km & ≤ 900km | M115: 2 | N115: 1.031
A116: Distribution loss factor - Urban | B116: DxLossUrb | C116: 0 | D116: 4 | E116: =B116&C116&D116&IF($A$2="Non-municipal","N",IF($A$2="Municiple","Y","error")) -> DxLossUrb04N | H116: > 132kV | I116: 1 | L116: > 900km | M116: 3 | N116: 1.0413
A118: Distribution loss factor - Rural | B118: DxLossRur | C118: 0 | D118: 1 | E118: =B118&C118&D118&IF($A$2="Non-municipal","N",IF($A$2="Municiple","Y","error")) -> DxLossRur01N
A119: Distribution loss factor - Rural | B119: DxLossRur | C119: 0 | D119: 2 | E119: =B119&C119&D119&IF($A$2="Non-municipal","N",IF($A$2="Municiple","Y","error")) -> DxLossRur02N
A122: Transmission loss factor | B122: TxLoss | C122: 0 | D122: 4 | E122: =B122&C122&D122&IF($A$2="Non-municipal","N",IF($A$2="Municiple","Y","error")) -> TxLoss04N
A123: Transmission loss factor | B123: TxLoss | C123: 1 | D123: 4 | E123: =B123&C123&D123&IF($A$2="Non-municipal","N",IF($A$2="Municiple","Y","error")) -> TxLoss14N
A124: Transmission loss factor | B124: TxLoss | C124: 2 | D124: 4 | E124: =B124&C124&D124&IF($A$2="Non-municipal","N",IF($A$2="Municiple","Y","error")) -> TxLoss24N
A125: Transmission loss factor | B125: TxLoss | C125: 3 | D125: 4 | E125: =B125&C125&D125&IF($A$2="Non-municipal","N",IF($A$2="Municiple","Y","error")) -> TxLoss34N

Sheet Loss Factors
N1: Back to menu | AL1: 0.15
N2: Loss factors
A3: Non-municipal
N4: Distribution loss factors | R4: Transmission loss factors for loads
A5: Tariff | B5: Tariff nameBillcode | C5: Tx zone | D5: Voltage | E5: Billcode | G5: Tariff | H5: Tariff nameBillcode | I5: Tx zone | J5: Voltage | K5: Billcode | N5: Voltage | O5: Urban loss factor | P5: Rural loss factor | R5: Distance from Johannesburg | S5: Zone | T5: Loss factor
A6: Distribution loss factor - Urban | B6: DxLossUrb | C6: 0 | D6: 1 | E6: =B6&C6&D6&IF($A$3="Non-municipal","N",IF($A$3="Municiple","Y","error")) -> DxLossUrb01N | G6: Transmission loss factor | H6: TxLoss | I6: 0 | J6: 4 | K6: =H6&I6&J6&IF($A$3="Non-municipal","N",IF($A$3="Municiple","Y","error")) -> TxLoss04N | N6: < 500V | O6: 1.1111 | P6: 1.1527 | R6: ≤ 300km | S6: 0 | T6: 1.0107
A7: Distribution loss factor - Urban | B7: DxLossUrb | C7: 0 | D7: 2 | E7: =B7&C7&D7&IF($A$3="Non-municipal","N",IF($A$3="Municiple","Y","error")) -> DxLossUrb02N | G7: Transmission loss factor | H7: TxLoss | I7: 1 | J7: 4 | K7: =H7&I7&J7&IF($A$3="Non-municipal","N",IF($A$3="Municiple","Y","error")) -> TxLoss14N | N7: ≥ 500V & < 66kV | O7: 1.0957 | P7: 1.1412 | R7: > 300km & ≤ 600km | S7: 1 | T7: 1.0208
A8: Distribution loss factor - Urban | B8: DxLossUrb | C8: 0 | D8: 3 | E8: =B8&C8&D8&IF($A$3="Non-municipal","N",IF($A$3="Municiple","Y","error")) -> DxLossUrb03N | G8: Transmission loss factor | H8: TxLoss | I8: 2 | J8: 4 | K8: =H8&I8&J8&IF($A$3="Non-municipal","N",IF($A$3="Municiple","Y","error")) -> TxLoss24N | N8: ≥ 66kV & ≤ 132kV | O8: 1.0611 | R8: > 600km & ≤ 900km | S8: 2 | T8: 1.031
A9: Distribution loss factor - Urban | B9: DxLossUrb | C9: 0 | D9: 4 | E9: =B9&C9&D9&IF($A$3="Non-municipal","N",IF($A$3="Municiple","Y","error")) -> DxLossUrb04N | G9: Transmission loss factor | H9: TxLoss | I9: 3 | J9: 4 | K9: =H9&I9&J9&IF($A$3="Non-municipal","N",IF($A$3="Municiple","Y","error")) -> TxLoss34N | N9: > 132kV/Transmission connected | O9: 1 | R9: > 900km | S9: 3 | T9: 1.0413
A11: Distribution loss factor - Rural | B11: DxLossRur | C11: 0 | D11: 1 | E11: =B11&C11&D11&IF($A$3="Non-municipal","N",IF($A$3="Municiple","Y","error")) -> DxLossRur01N
A12: Distribution loss factor - Rural | B12: DxLossRur | C12: 0 | D12: 2 | E12: =B12&C12&D12&IF($A$3="Non-municipal","N",IF($A$3="Municiple","Y","error")) -> DxLossRur02N | N12: Loss factors for Transmission connected generators | P12: Loss factor
A13: Tariff | B13: Tariff nameBillcode | C13: Tx zone | D13: Voltage | E13: Billcode
A14: TUoS network charges for Transmission connected generators | B14: GenTUOS | C14: Cape | D14: 4 | E14: =B14&C14&D14&IF($A$3="Non-municipal","N",IF($A$3="Municiple","Y","error")) -> GenTUOSCape4N | O14: Cape | P14: 0.971
A15: TUoS network charges for Transmission connected generators | B15: GenTUOS | C15: Karoo | D15: 4 | E15: GenTUOSKaroo4N | O15: Karoo | P15: 0.995
A16: TUoS network charges for Transmission connected generators | B16: GenTUOS | C16: Kwazulu-Natal | D16: 4 | E16: GenTUOSKwazulu-Natal4N | O16: Kwazulu-Natal | P16: 1.004
A17: TUoS network charges for Transmission connected generators | B17: GenTUOS | C17: Vaal | D17: 4 | E17: GenTUOSVaal4N | O17: Vaal | P17: 1.02
A18: TUoS network charges for Transmission connected generators | B18: GenTUOS | C18: Waterburg | D18: 4 | E18: GenTUOSWaterburg4N | O18: Waterburg | P18: 1.023
A19: TUoS network charges for Transmission connected generators | B19: GenTUOS | C19: Mpumalanga | D19: 4 | E19: GenTUOSMpumalanga4N | O19: Mpumalanga | P19: 1.021

Sheet Excess NCC NLA
S1: Back to menu
R2: Excess network capacity charges (NCC) - Non-Local Authority
A4: Non-municipal | S4: Urban - Excess NCC Megaflex/Megaflex Gen [non local authorities] | X4: Urban - Excess NCC Nightsave Urban Large [non local authorities] | AD4: Urban - Excess NCC Miniflex [non local authorities] | AK4: Urban - Excess NCC WEPS [non local authorities]
U6: Excess NCC[R/kVA/m] | AA6: Excess NCC[R/kVA/m] | AG6: Excess NCC[R/kVA/m] | AM6: Excess NCC[R/kVA/m]
S7: Transmission zone | Y7: Transmission zone | AE7: Transmission zone | AK7: Transmission zone
T8: Voltage | Z8: Voltage | AF8: Voltage | AL8: Voltage
A9: Tariff | B9: Tariff nameBillcode | C9: Tx zone | D9: Voltage | E9: Billcode | G9: Tariff | H9: Tariff nameBillcode | I9: Tx zone | J9: Voltage | K9: Billcode | M9: Tariff | N9: Tariff nameBillcode | O9: Tx zone | P9: Voltage | Q9: Billcode | V9: VAT incl | AB9: VAT incl | AH9: VAT incl | AN9: VAT incl
A10: Excess NAC Megaflex | B10: ExNACMe | C10: 0 | D10: 1 | E10: =B10&C10&D10&IF($A$4="Non-municipal","N",IF($A$4="Municiple","Y","error")) -> ExNACMe01N | G10: Excess NAC Nightsave Large | H10: ExNACNL | I10: 0 | J10: 1 | K10: =H10&I10&J10&IF($A$4="Non-municipal","N",IF($A$4="Municiple","Y","error")) -> ExNACNL01N | M10: Excess NAC Miniflex | N10: ExNACMi | O10: 0 | P10: 1 | Q10: =N10&O10&P10&IF($A$4="Non-municipal","N",IF($A$4="Municiple","Y","error")) -> ExNACMi01N | S10: ≤ 300km | T10: < 500V | U10: 46.39 | V10: =ROUND(U10 * (1 + VAT), 2) -> 53.35 | Y10: ≤ 300km | Z10: < 500V | AA10: 46.39 | AB10: =ROUND(AA10 * (1 + VAT), 2) -> 53.35 | AE10: ≤ 300km | AF10: < 500V | AG10: 46.32 | AH10: =ROUND(AG10 * (1 + VAT), 2) -> 53.27 | AK10: ≤ 300km | AL10: < 500V | AM10: 46.39 | AN10: =ROUND(AM10 * (1 + VAT), 2) -> 53.35
A11: Excess NAC Megaflex | B11: ExNACMe | C11: 0 | D11: 2 | E11: =B11&C11&D11&IF($A$4="Non-municipal","N",IF($A$4="Municiple","Y","error")) -> ExNACMe02N | G11: Excess NAC Nightsave Large | H11: ExNACNL | I11: 0 | J11: 2 | K11: =H11&I11&J11&IF($A$4="Non-municipal","N",IF($A$4="Municiple","Y","error")) -> ExNACNL02N | M11: Excess NAC Miniflex | N11: ExNACMi | O11: 0 | P11: 2 | Q11: =N11&O11&P11&IF($A$4="Non-municipal","N",IF($A$4="Municiple","Y","error")) -> ExNACMi02N | T11: ≥ 500V & < 66kV | U11: 42.49 | V11: 48.86 | Z11: ≥ 500V & < 66kV | AA11: 42.49 | AB11: 48.86 | AF11: ≥ 500V & < 66kV | AG11: 42.46 | AH11: 48.83 | AL11: ≥ 500V & < 66kV | AM11: 42.49 | AN11: 48.86
A12: Excess NAC Megaflex | B12: ExNACMe | C12: 0 | D12: 3 | E12: ExNACMe03N | G12: Excess NAC Nightsave Large | H12: ExNACNL | I12: 0 | J12: 3 | K12: ExNACNL03N | M12: Excess NAC Miniflex | N12: ExNACMi | O12: 0 | P12: 3 | Q12: ExNACMi03N | T12: ≥ 66kV & ≤ 132kV | U12: 48.85 | V12: 56.18 | Z12: ≥ 66kV & ≤ 132kV | AA12: 48.85 | AB12: 56.18 | AF12: ≥ 66kV & ≤ 132kV | AG12: 48.78 | AH12: 56.1 | AL12: ≥ 66kV & ≤ 132kV | AM12: 48.85 | AN12: 56.18
A13: Excess NAC Megaflex | B13: ExNACMe | C13: 0 | D13: 4 | E13: ExNACMe04N | G13: Excess NAC Nightsave Large | H13: ExNACNL | I13: 0 | J13: 4 | K13: ExNACNL04N | M13: Excess NAC Miniflex | N13: ExNACMi | O13: 0 | P13: 4 | Q13: ExNACMi04N | T13: > 132kV* | U13: 42.4 | V13: 48.76 | Z13: > 132kV* | AA13: 42.4 | AB13: 48.76 | AF13: > 132kV* | AG13: 42.31 | AH13: 48.66 | AL13: > 132kV* | AM13: 42.4 | AN13: 48.76
A14: Excess NAC Megaflex | B14: ExNACMe | C14: 1 | D14: 1 | E14: ExNACMe11N | G14: Excess NAC Nightsave Large | H14: ExNACNL | I14: 1 | J14: 1 | K14: ExNACNL11N | M14: Excess NAC Miniflex | N14: ExNACMi | O14: 1 | P14: 1 | Q14: ExNACMi11N | S14: > 300km and ≤ 600km | T14: < 500V | U14: 46.5 | V14: 53.48 | Y14: > 300km and ≤ 600km | Z14: < 500V | AA14: 46.5 | AB14: 53.48 | AE14: > 300km and ≤ 600km | AF14: < 500V | AG14: 46.44 | AH14: 53.41 | AK14: > 300km and ≤ 600km | AL14: < 500V | AM14: 46.5 | AN14: 53.48
A15: Excess NAC Megaflex | B15: ExNACMe | C15: 1 | D15: 2 | E15: ExNACMe12N | G15: Excess NAC Nightsave Large | H15: ExNACNL | I15: 1 | J15: 2 | K15: ExNACNL12N | M15: Excess NAC Miniflex | N15: ExNACMi | O15: 1 | P15: 2 | Q15: ExNACMi12N | T15: ≥ 500V & < 66kV | U15: 42.62 | V15: 49.01 | Z15: ≥ 500V & < 66kV | AA15: 42.62 | AB15: 49.01 | AF15: ≥ 500V & < 66kV | AG15: 42.6 | AH15: 48.99 | AL15: ≥ 500V & < 66kV | AM15: 42.62 | AN15: 49.01
A16: Excess NAC Megaflex | B16: ExNACMe | C16: 1 | D16: 3 | E16: ExNACMe13N | G16: Excess NAC Nightsave Large | H16: ExNACNL | I16: 1 | J16: 3 | K16: ExNACNL13N | M16: Excess NAC Miniflex | N16: ExNACMi | O16: 1 | P16: 3 | Q16: ExNACMi13N | T16: ≥ 66kV & ≤ 132kV | U16: 48.96 | V16: 56.3 | Z16: ≥ 66kV & ≤ 132kV | AA16: 48.96 | AB16: 56.3 | AF16: ≥ 66kV & ≤ 132kV | AG16: 48.87 | AH16: 56.2 | AL16: ≥ 66kV & ≤ 132kV | AM16: 48.96 | AN16: 56.3
A17: Excess NAC Megaflex | B17: ExNACMe | C17: 1 | D17: 4 | E17: ExNACMe14N | G17: Excess NAC Nightsave Large | H17: ExNACNL | I17: 1 | J17: 4 | K17: ExNACNL14N | M17: Excess NAC Miniflex | N17: ExNACMi | O17: 1 | P17: 4 | Q17: ExNACMi14N | T17: > 132kV* | U17: 42.55 | V17: 48.93 | Z17: > 132kV* | AA17: 42.55 | AB17: 48.93 | AF17: > 132kV* | AG17: 42.5 | AH17: 48.88 | AL17: > 132kV* | AM17: 42.55 | AN17: 48.93
A18: Excess NAC Megaflex | B18: ExNACMe | C18: 2 | D18: 1 | E18: ExNACMe21N | G18: Excess NAC Nightsave Large | H18: ExNACNL | I18: 2 | J18: 1 | K18: ExNACNL21N | M18: Excess NAC Miniflex | N18: ExNACMi | O18: 2 | P18: 1 | Q18: ExNACMi21N | S18: > 600km and ≤ 900km | T18: < 500V | U18: 46.68 | V18: 53.68 | Y18: > 600km and ≤ 900km | Z18: < 500V | AA18: 46.68 | AB18: 53.68 | AE18: > 600km and ≤ 900km | AF18: < 500V | AG18: 46.67 | AH18: 53.67 | AK18: > 600km and ≤ 900km | AL18: < 500V | AM18: 46.68 | AN18: 53.68
A19: Excess NAC Megaflex | B19: ExNACMe | C19: 2 | D19: 2 | E19: ExNACMe22N | G19: Excess NAC Nightsave Large | H19: ExNACNL | I19: 2 | J19: 2 | K19: ExNACNL22N | M19: Excess NAC Miniflex | N19: ExNACMi | O19: 2 | P19: 2 | Q19: ExNACMi22N | T19: ≥ 500V & < 66kV | U19: 42.75 | V19: 49.16 | Z19: ≥ 500V & < 66kV | AA19: 42.75 | AB19: 49.16 | AF19: ≥ 500V & < 66kV | AG19: 42.73 | AH19: 49.14 | AL19: ≥ 500V & < 66kV | AM19: 42.75 | AN19: 49.16
A20: Excess NAC Megaflex | B20: ExNACMe | C20: 2 | D20: 3 | E20: ExNACMe23N | G20: Excess NAC Nightsave Large | H20: ExNACNL | I20: 2 | J20: 3 | K20: ExNACNL23N | M20: Excess NAC Miniflex | N20: ExNACMi | O20: 2 | P20: 3 | Q20: ExNACMi23N | T20: ≥ 66kV & ≤ 132kV | U20: 49.04 | V20: 56.4 | Z20: ≥ 66kV & ≤ 132kV | AA20: 49.04 | AB20: 56.4 | AF20: ≥ 66kV & ≤ 132kV | AG20: 49.02 | AH20: 56.37 | AL20: ≥ 66kV & ≤ 132kV | AM20: 49.04 | AN20: 56.4
A21: Excess NAC Megaflex | B21: ExNACMe | C21: 2 | D21: 4 | E21: ExNACMe24N | G21: Excess NAC Nightsave Large | H21: ExNACNL | I21: 2 | J21: 4 | K21: ExNACNL24N | M21: Excess NAC Miniflex | N21: ExNACMi | O21: 2 | P21: 4 | Q21: ExNACMi24N | T21: > 132kV* | U21: 42.81 | V21: 49.23 | Z21: > 132kV* | AA21: 42.81 | AB21: 49.23 | AF21: > 132kV* | AG21: 42.75 | AH21: 49.16 | AL21: > 132kV* | AM21: 42.81 | AN21: 49.23
A22: Excess NAC Megaflex | B22: ExNACMe | C22: 3 | D22: 1 | E22: ExNACMe31N | G22: Excess NAC Nightsave Large | H22: ExNACNL | I22: 3 | J22: 1 | K22: ExNACNL31N | M22: Excess NAC Miniflex | N22: ExNACMi | O22: 3 | P22: 1 | Q22: ExNACMi31N | S22: > 900km | T22: < 500V | U22: 46.78 | V22: 53.8 | Y22: > 900km | Z22: < 500V | AA22: 46.78 | AB22: 53.8 | AE22: > 900km | AF22: < 500V | AG22: 46.7 | AH22: 53.71 | AK22: > 900km | AL22: < 500V | AM22: 46.78 | AN22: 53.8
A23: Excess NAC Megaflex | B23: ExNACMe | C23: 3 | D23: 2 | E23: ExNACMe32N | G23: Excess NAC Nightsave Large | H23: ExNACNL | I23: 3 | J23: 2 | K23: ExNACNL32N | M23: Excess NAC Miniflex | N23: ExNACMi | O23: 3 | P23: 2 | Q23: ExNACMi32N | T23: ≥ 500V & < 66kV | U23: 42.92 | V23: 49.36 | Z23: ≥ 500V & < 66kV | AA23: 42.92 | AB23: 49.36 | AF23: ≥ 500V & < 66kV | AG23: 42.87 | AH23: 49.3 | AL23: ≥ 500V & < 66kV | AM23: 42.92 | AN23: 49.36
A24: Excess NAC Megaflex | B24: ExNACMe | C24: 3 | D24: 3 | E24: ExNACMe33N | G24: Excess NAC Nightsave Large | H24: ExNACNL | I24: 3 | J24: 3 | K24: ExNACNL33N | M24: Excess NAC Miniflex | N24: ExNACMi | O24: 3 | P24: 3 | Q24: ExNACMi33N | T24: ≥ 66kV & ≤ 132kV | U24: 49.17 | V24: 56.55 | Z24: ≥ 66kV & ≤ 132kV | AA24: 49.17 | AB24: 56.55 | AF24: ≥ 66kV & ≤ 132kV | AG24: 49.11 | AH24: 56.48 | AL24: ≥ 66kV & ≤ 132kV | AM24: 49.17 | AN24: 56.55
A25: Excess NAC Megaflex | B25: ExNACMe | C25: 3 | D25: 4 | E25: ExNACMe34N | G25: Excess NAC Nightsave Large | H25: ExNACNL | I25: 3 | J25: 4 | K25: ExNACNL34N | M25: Excess NAC Miniflex | N25: ExNACMi | O25: 3 | P25: 4 | Q25: ExNACMi34N | T25: > 132kV* | U25: 42.94 | V25: 49.38 | Z25: > 132kV* | AA25: 42.94 | AB25: 49.38 | AF25: > 132kV* | AG25: 42.88 | AH25: 49.31 | AL25: > 132kV* | AM25: 42.94 | AN25: 49.38
T26: * 132 kV or Transmission connected | Z26: * 132 kV or Transmission connected | AF26: * 132 kV or Transmission connected | AL26: * 132 kV or Transmission connected
S28: Urban - Excess NCC Nightsave Urban Small [non local authorities] | X28: Rural - Excess NCC Nightsave Rural [non local authorities] | AD28: Rural - Excess NCC Ruraflex/Ruraflex Gen [non local authorities]
U30: Excess NCC[R/kVA/m] | AA30: Excess NCC[R/kVA/m] | AG30: Excess NCC[R/kVA/m]
S31: Transmission zone | Y31: Transmission zone | AE31: Transmission zone
T32: Voltage | Z32: Voltage | AF32: Voltage
A33: Tariff | B33: Tariff nameBillcode | C33: Tx zone | D33: Voltage | E33: Billcode | G33: Tariff | H33: Tariff nameBillcode | I33: Tx zone | J33: Voltage | K33: Billcode | M33: Tariff | N33: Tariff nameBillcode | O33: Tx zone | P33: Voltage | Q33: Billcode | V33: VAT incl | AB33: VAT incl | AH33: VAT incl
A34: Excess NAC Nightsave Small | B34: ExNACNS | C34: 0 | D34: 1 | E34: =B34&C34&D34&IF($A$4="Non-municipal","N",IF($A$4="Municiple","Y","error")) -> ExNACNS01N | G34: Excess NAC Nightsave Rural | H34: ExNACNR | I34: 0 | J34: 1 | K34: =H34&I34&J34&IF($A$4="Non-municipal","N",IF($A$4="Municiple","Y","error")) -> ExNACNR01N | M34: Excess NAC Ruraflex | N34: ExNACRu | O34: 0 | P34: 1 | Q34: =N34&O34&P34&IF($A$4="Non-municipal","N",IF($A$4="Municiple","Y","error")) -> ExNACRu01N | S34: ≤ 300km | T34: < 500V | U34: 46.39 | V34: =ROUND(U34 * (1 + VAT), 2) -> 53.35 | Y34: ≤ 300km | Z34: < 500V | AA34: 23.23 | AB34: =ROUND(AA34 * (1 + VAT), 2) -> 26.71 | AE34: ≤ 300km | AF34: < 500V | AG34: 32.46 | AH34: =ROUND(AG34 * (1 + VAT), 2) -> 37.33
A35: Excess NAC Nightsave Small | B35: ExNACNS | C35: 0 | D35: 2 | E35: =B35&C35&D35&IF($A$4="Non-municipal","N",IF($A$4="Municiple","Y","error")) -> ExNACNS02N | G35: Excess NAC Nightsave Rural | H35: ExNACNR | I35: 0 | J35: 2 | K35: =H35&I35&J35&IF($A$4="Non-municipal","N",IF($A$4="Municiple","Y","error")) -> ExNACNR02N | M35: Excess NAC Ruraflex | N35: ExNACRu | O35: 0 | P35: 2 | Q35: =N35&O35&P35&IF($A$4="Non-municipal","N",IF($A$4="Municiple","Y","error")) -> ExNACRu02N | T35: ≥ 500V & < 66kV | U35: 42.49 | V35: 48.86 | Z35: ≥ 500V & ≤ 22kV | AA35: 21.35 | AB35: =ROUND(AA35 * (1 + VAT), 2) -> 24.55 | AF35: ≥ 500V & ≤ 22kV | AG35: 29.75 | AH35: =ROUND(AG35 * (1 + VAT), 2) -> 34.21
A36: Excess NAC Nightsave Small | B36: ExNACNS | C36: 0 | D36: 3 | E36: ExNACNS03N | G36: Excess NAC Nightsave Rural | H36: ExNACNR | I36: 0 | J36: 3 | K36: ExNACNR03N | M36: Excess NAC Ruraflex | N36: ExNACRu | O36: 0 | P36: 3 | Q36: ExNACRu03N | T36: ≥ 66kV & ≤ 132kV | U36: 48.85 | V36: 56.18
A37: Excess NAC Nightsave Small | B37: ExNACNS | C37: 0 | D37: 4 | E37: ExNACNS04N | G37: Excess NAC Nightsave Rural | H37: ExNACNR | I37: 0 | J37: 4 | K37: ExNACNR04N | M37: Excess NAC Ruraflex | N37: ExNACRu | O37: 0 | P37: 4 | Q37: ExNACRu04N | T37: > 132kV* | U37: 42.4 | V37: 48.76
A38: Excess NAC Nightsave Small | B38: ExNACNS | C38: 1 | D38: 1 | E38: ExNACNS11N | G38: Excess NAC Nightsave Rural | H38: ExNACNR | I38: 1 | J38: 1 | K38: ExNACNR11N | M38: Excess NAC Ruraflex | N38: ExNACRu | O38: 1 | P38: 1 | Q38: ExNACRu11N | S38: > 300km and ≤ 600km | T38: < 500V | U38: 46.5 | V38: 53.48 | Y38: > 300km and ≤ 600km | Z38: < 500V | AA38: 23.27 | AB38: =ROUND(AA38 * (1 + VAT), 2) -> 26.76 | AE38: > 300km and ≤ 600km | AF38: < 500V | AG38: 32.56 | AH38: =ROUND(AG38 * (1 + VAT), 2) -> 37.44
A39: Excess NAC Nightsave Small | B39: ExNACNS | C39: 1 | D39: 2 | E39: ExNACNS12N | G39: Excess NAC Nightsave Rural | H39: ExNACNR | I39: 1 | J39: 2 | K39: ExNACNR12N | M39: Excess NAC Ruraflex | N39: ExNACRu | O39: 1 | P39: 2 | Q39: ExNACRu12N | T39: ≥ 500V & < 66kV | U39: 42.62 | V39: 49.01 | Z39: ≥ 500V & ≤ 22kV | AA39: 21.42 | AB39: =ROUND(AA39 * (1 + VAT), 2) -> 24.63 | AF39: ≥ 500V & ≤ 22kV | AG39: 29.92 | AH39: =ROUND(AG39 * (1 + VAT), 2) -> 34.41
A40: Excess NAC Nightsave Small | B40: ExNACNS | C40: 1 | D40: 3 | E40: ExNACNS13N | G40: Excess NAC Nightsave Rural | H40: ExNACNR | I40: 1 | J40: 3 | K40: ExNACNR13N | M40: Excess NAC Ruraflex | N40: ExNACRu | O40: 1 | P40: 3 | Q40: ExNACRu13N | T40: ≥ 66kV & ≤ 132kV | U40: 48.96 | V40: 56.3
A41: Excess NAC Nightsave Small | B41: ExNACNS | C41: 1 | D41: 4 | E41: ExNACNS14N | G41: Excess NAC Nightsave Rural | H41: ExNACNR | I41: 1 | J41: 4 | K41: ExNACNR14N | M41: Excess NAC Ruraflex | N41: ExNACRu | O41: 1 | P41: 4 | Q41: ExNACRu14N | T41: > 132kV* | U41: 42.55 | V41: 48.93
A42: Excess NAC Nightsave Small | B42: ExNACNS | C42: 2 | D42: 1 | E42: ExNACNS21N | G42: Excess NAC Nightsave Rural | H42: ExNACNR | I42: 2 | J42: 1 | K42: ExNACNR21N | M42: Excess NAC Ruraflex | N42: ExNACRu | O42: 2 | P42: 1 | Q42: ExNACRu21N | S42: > 600km and ≤ 900km | T42: < 500V | U42: 46.68 | V42: 53.68 | Y42: > 600km and ≤ 900km | Z42: < 500V | AA42: 23.49 | AB42: =ROUND(AA42 * (1 + VAT), 2) -> 27.01 | AE42: > 600km and ≤ 900km | AF42: < 500V | AG42: 32.72 | AH42: =ROUND(AG42 * (1 + VAT), 2) -> 37.63
A43: Excess NAC Nightsave Small | B43: ExNACNS | C43: 2 | D43: 2 | E43: ExNACNS22N | G43: Excess NAC Nightsave Rural | H43: ExNACNR | I43: 2 | J43: 2 | K43: ExNACNR22N | M43: Excess NAC Ruraflex | N43: ExNACRu | O43: 2 | P43: 2 | Q43: ExNACRu22N | T43: ≥ 500V & < 66kV | U43: 42.75 | V43: 49.16 | Z43: ≥ 500V & ≤ 22kV | AA43: 21.56 | AB43: =ROUND(AA43 * (1 + VAT), 2) -> 24.79 | AF43: ≥ 500V & ≤ 22kV | AG43: 30.07 | AH43: =ROUND(AG43 * (1 + VAT), 2) -> 34.58
A44: Excess NAC Nightsave Small | B44: ExNACNS | C44: 2 | D44: 3 | E44: ExNACNS23N | G44: Excess NAC Nightsave Rural | H44: ExNACNR | I44: 2 | J44: 3 | K44: ExNACNR23N | M44: Excess NAC Ruraflex | N44: ExNACRu | O44: 2 | P44: 3 | Q44: ExNACRu23N | T44: ≥ 66kV & ≤ 132kV | U44: 49.04 | V44: 56.4
A45: Excess NAC Nightsave Small | B45: ExNACNS | C45: 2 | D45: 4 | E45: ExNACNS24N | G45: Excess NAC Nightsave Rural | H45: ExNACNR | I45: 2 | J45: 4 | K45: ExNACNR24N | M45: Excess NAC Ruraflex | N45: ExNACRu | O45: 2 | P45: 4 | Q45: ExNACRu24N | T45: > 132kV* | U45: 42.81 | V45: 49.23
A46: Excess NAC Nightsave Small | B46: ExNACNS | C46: 3 | D46: 1 | E46: ExNACNS31N | G46: Excess NAC Nightsave Rural | H46: ExNACNR | I46: 3 | J46: 1 | K46: ExNACNR31N | M46: Excess NAC Ruraflex | N46: ExNACRu | O46: 3 | P46: 1 | Q46: ExNACRu31N | S46: > 900km | T46: < 500V | U46: 46.78 | V46: 53.8 | Y46: > 900km | Z46: < 500V | AA46: 23.55 | AB46: =ROUND(AA46 * (1 + VAT), 2) -> 27.08 | AE46: > 900km | AF46: < 500V | AG46: 32.87 | AH46: =ROUND(AG46 * (1 + VAT), 2) -> 37.8
A47: Excess NAC Nightsave Small | B47: ExNACNS | C47: 3 | D47: 2 | E47: ExNACNS32N | G47: Excess NAC Nightsave Rural | H47: ExNACNR | I47: 3 | J47: 2 | K47: ExNACNR32N | M47: Excess NAC Ruraflex | N47: ExNACRu | O47: 3 | P47: 2 | Q47: ExNACRu32N | T47: ≥ 500V & < 66kV | U47: 42.92 | V47: 49.36 | Z47: ≥ 500V & ≤ 22kV | AA47: 21.61 | AB47: =ROUND(AA47 * (1 + VAT), 2) -> 24.85 | AF47: ≥ 500V & ≤ 22kV | AG47: 30.08 | AH47: =ROUND(AG47 * (1 + VAT), 2) -> 34.59
A48: Excess NAC Nightsave Small | B48: ExNACNS | C48: 3 | D48: 3 | E48: ExNACNS33N | G48: Excess NAC Nightsave Rural | H48: ExNACNR | I48: 3 | J48: 3 | K48: ExNACNR33N | M48: Excess NAC Ruraflex | N48: ExNACRu | O48: 3 | P48: 3 | Q48: ExNACRu33N | T48: ≥ 66kV & ≤ 132kV | U48: 49.17 | V48: 56.55
A49: Excess NAC Nightsave Small | B49: ExNACNS | C49: 3 | D49: 4 | E49: ExNACNS34N | G49: Excess NAC Nightsave Rural | H49: ExNACNR | I49: 3 | J49: 4 | K49: ExNACNR34N | M49: Excess NAC Ruraflex | N49: ExNACRu | O49: 3 | P49: 4 | Q49: ExNACRu34N | T49: > 132kV* | U49: 42.94 | V49: 49.38
T50: * 132 kV or Transmission connected
S53: Excess MEC- Transmission connected generators | Y53: Excess MEC- Distribution connected Generators
T55: Excess Network capacity charge[R/kW/m] | Z55: Excess Network capacity charge[R/kW/m]
U56: VAT incl | AA56: VAT incl
S57: Cape | T57: =T58 -> 3.67 | U57: =ROUND(T57 * (1 + VAT), 2) -> 4.22 | Y57: Voltage
S58: Karoo | T58: =T59 -> 3.67 | U58: 4.22 | Y58: < 500V | Z58: 0 | AA58: =ROUND(Z58 * (1 + VAT), 2) -> 0
S59: Kwazulu-Natal | T59: =' TUoS NLA'!J58 -> 3.67 | U59: 4.22 | Y59: ≥ 500V & < 66kV | Z59: =Z60 -> 24.95 | AA59: =ROUND(Z59 * (1 + VAT), 2) -> 28.69
S60: Vaal | T60: =' TUoS NLA'!J59 -> 12.21 | U60: 14.04 | Y60: ≥ 66kV & ≤ 132kV | Z60: ='DUoS NLA'!J73 -> 24.95 | AA60: =ROUND(Z60 * (1 + VAT), 2) -> 28.69
S61: Waterberg | T61: =' TUoS NLA'!J60 -> 15.64 | U61: 17.99
S62: Mpumalanga | T62: =' TUoS NLA'!J61 -> 14.51 | U62: 16.69

Sheet Excess NCC Munic
S1: Back to menu
R2: Excess network capacity charges (NCC) - Non-Local Authority
A4: Municiple | S4: Urban - Excess NCC Megaflex [Local authorities] | X4: Urban - Excess NCC Nightsave Urban Large [Local authorities] | AD4: Urban - Excess NCC Miniflex [Local authorities] | AK4: Urban - Excess NCC WEPS [Local authorities]
U6: Excess NCC[R/kVA/m] | AA6: Excess NCC[R/kVA/m] | AG6: Excess NCC[R/kVA/m] | AM6: Excess NCC[R/kVA/m]
S7: Transmission zone | Y7: Transmission zone | AE7: Transmission zone | AK7: Transmission zone
T8: Voltage | Z8: Voltage | AF8: Voltage | AL8: Voltage
A9: Tariff | B9: Tariff nameBillcode | C9: Tx zone | D9: Voltage | E9: Billcode | G9: Tariff | H9: Tariff nameBillcode | I9: Tx zone | J9: Voltage | K9: Billcode | M9: Tariff | N9: Tariff nameBillcode | O9: Tx zone | P9: Voltage | Q9: Billcode | V9: VAT incl | AB9: VAT incl | AH9: VAT incl | AN9: VAT incl
A10: Excess NAC Megaflex | B10: ExNACMe | C10: 0 | D10: 1 | E10: =B10&C10&D10&IF($A$4="Non-municipal","N",IF($A$4="Municiple","Y","error")) -> ExNACMe01Y | G10: Excess NAC Nightsave Large | H10: ExNACNL | I10: 0 | J10: 1 | K10: =H10&I10&J10&IF($A$4="Non-municipal","N",IF($A$4="Municiple","Y","error")) -> ExNACNL01Y | M10: Excess NAC Miniflex | N10: ExNACMi | O10: 0 | P10: 1 | Q10: =N10&O10&P10&IF($A$4="Non-municipal","N",IF($A$4="Municiple","Y","error")) -> ExNACMi01Y | S10: ≤ 300km | T10: < 500V | U10: 46.94 | V10: =ROUND(U10 * (1 + VAT), 2) -> 53.98 | Y10: ≤ 300km | Z10: < 500V | AA10: 46.94 | AB10: =ROUND(AA10 * (1 + VAT), 2) -> 53.98 | AE10: ≤ 300km | AF10: < 500V | AG10: 46.91 | AH10: =ROUND(AG10 * (1 + VAT), 2) -> 53.95 | AK10: ≤ 300km | AL10: < 500V | AM10: 46.94 | AN10: =ROUND(AM10 * (1 + VAT), 2) -> 53.98
A11: Excess NAC Megaflex | B11: ExNACMe | C11: 0 | D11: 2 | E11: =B11&C11&D11&IF($A$4="Non-municipal","N",IF($A$4="Municiple","Y","error")) -> ExNACMe02Y | G11: Excess NAC Nightsave Large | H11: ExNACNL | I11: 0 | J11: 2 | K11: =H11&I11&J11&IF($A$4="Non-municipal","N",IF($A$4="Municiple","Y","error")) -> ExNACNL02Y | M11: Excess NAC Miniflex | N11: ExNACMi | O11: 0 | P11: 2 | Q11: =N11&O11&P11&IF($A$4="Non-municipal","N",IF($A$4="Municiple","Y","error")) -> ExNACMi02Y | T11: ≥ 500V & < 66kV | U11: 42.95 | V11: 49.39 | Z11: ≥ 500V & < 66kV | AA11: 42.95 | AB11: 49.39 | AF11: ≥ 500V & < 66kV | AG11: 42.95 | AH11: 49.39 | AL11: ≥ 500V & < 66kV | AM11: 42.95 | AN11: 49.39
A12: Excess NAC Megaflex | B12: ExNACMe | C12: 0 | D12: 3 | E12: ExNACMe03Y | G12: Excess NAC Nightsave Large | H12: ExNACNL | I12: 0 | J12: 3 | K12: ExNACNL03Y | M12: Excess NAC Miniflex | N12: ExNACMi | O12: 0 | P12: 3 | Q12: ExNACMi03Y | T12: ≥ 66kV & ≤ 132kV | U12: 49.26 | V12: 56.65 | Z12: ≥ 66kV & ≤ 132kV | AA12: 49.26 | AB12: 56.65 | AF12: ≥ 66kV & ≤ 132kV | AG12: 49.22 | AH12: 56.6 | AL12: ≥ 66kV & ≤ 132kV | AM12: 49.26 | AN12: 56.65
A13: Excess NAC Megaflex | B13: ExNACMe | C13: 0 | D13: 4 | E13: ExNACMe04Y | G13: Excess NAC Nightsave Large | H13: ExNACNL | I13: 0 | J13: 4 | K13: ExNACNL04Y | M13: Excess NAC Miniflex | N13: ExNACMi | O13: 0 | P13: 4 | Q13: ExNACMi04Y | T13: > 132kV* | U13: 42.72 | V13: 49.13 | Z13: > 132kV* | AA13: 42.72 | AB13: 49.13 | AF13: > 132kV* | AG13: 42.72 | AH13: 49.13 | AL13: > 132kV* | AM13: 42.72 | AN13: 49.13
A14: Excess NAC Megaflex | B14: ExNACMe | C14: 1 | D14: 1 | E14: ExNACMe11Y | G14: Excess NAC Nightsave Large | H14: ExNACNL | I14: 1 | J14: 1 | K14: ExNACNL11Y | M14: Excess NAC Miniflex | N14: ExNACMi | O14: 1 | P14: 1 | Q14: ExNACMi11Y | S14: > 300km and ≤ 600km | T14: < 500V | U14: 47 | V14: 54.05 | Y14: > 300km and ≤ 600km | Z14: < 500V | AA14: 47 | AB14: 54.05 | AE14: > 300km and ≤ 600km | AF14: < 500V | AG14: 46.99 | AH14: 54.04 | AK14: > 300km and ≤ 600km | AL14: < 500V | AM14: 47 | AN14: 54.05
A15: Excess NAC Megaflex | B15: ExNACMe | C15: 1 | D15: 2 | E15: ExNACMe12Y | G15: Excess NAC Nightsave Large | H15: ExNACNL | I15: 1 | J15: 2 | K15: ExNACNL12Y | M15: Excess NAC Miniflex | N15: ExNACMi | O15: 1 | P15: 2 | Q15: ExNACMi12Y | T15: ≥ 500V & < 66kV | U15: 43.12 | V15: 49.59 | Z15: ≥ 500V & < 66kV | AA15: 43.12 | AB15: 49.59 | AF15: ≥ 500V & < 66kV | AG15: 43.13 | AH15: 49.6 | AL15: ≥ 500V & < 66kV | AM15: 43.12 | AN15: 49.59
A16: Excess NAC Megaflex | B16: ExNACMe | C16: 1 | D16: 3 | E16: ExNACMe13Y | G16: Excess NAC Nightsave Large | H16: ExNACNL | I16: 1 | J16: 3 | K16: ExNACNL13Y | M16: Excess NAC Miniflex | N16: ExNACMi | O16: 1 | P16: 3 | Q16: ExNACMi13Y | T16: ≥ 66kV & ≤ 132kV | U16: 49.38 | V16: 56.79 | Z16: ≥ 66kV & ≤ 132kV | AA16: 49.38 | AB16: 56.79 | AF16: ≥ 66kV & ≤ 132kV | AG16: 49.35 | AH16: 56.75 | AL16: ≥ 66kV & ≤ 132kV | AM16: 49.38 | AN16: 56.79
A17: Excess NAC Megaflex | B17: ExNACMe | C17: 1 | D17: 4 | E17: ExNACMe14Y | G17: Excess NAC Nightsave Large | H17: ExNACNL | I17: 1 | J17: 4 | K17: ExNACNL14Y | M17: Excess NAC Miniflex | N17: ExNACMi | O17: 1 | P17: 4 | Q17: ExNACMi14Y | T17: > 132kV* | U17: 42.89 | V17: 49.32 | Z17: > 132kV* | AA17: 42.89 | AB17: 49.32 | AF17: > 132kV* | AG17: 42.89 | AH17: 49.32 | AL17: > 132kV* | AM17: 42.89 | AN17: 49.32
A18: Excess NAC Megaflex | B18: ExNACMe | C18: 2 | D18: 1 | E18: ExNACMe21Y | G18: Excess NAC Nightsave Large | H18: ExNACNL | I18: 2 | J18: 1 | K18: ExNACNL21Y | M18: Excess NAC Miniflex | N18: ExNACMi | O18: 2 | P18: 1 | Q18: ExNACMi21Y | S18: > 600km and ≤ 900km | T18: < 500V | U18: 47.21 | V18: 54.29 | Y18: > 600km and ≤ 900km | Z18: < 500V | AA18: 47.21 | AB18: 54.29 | AE18: > 600km and ≤ 900km | AF18: < 500V | AG18: 47.24 | AH18: 54.33 | AK18: > 600km and ≤ 900km | AL18: < 500V | AM18: 47.21 | AN18: 54.29
A19: Excess NAC Megaflex | B19: ExNACMe | C19: 2 | D19: 2 | E19: ExNACMe22Y | G19: Excess NAC Nightsave Large | H19: ExNACNL | I19: 2 | J19: 2 | K19: ExNACNL22Y | M19: Excess NAC Miniflex | N19: ExNACMi | O19: 2 | P19: 2 | Q19: ExNACMi22Y | T19: ≥ 500V & < 66kV | U19: 43.2 | V19: 49.68 | Z19: ≥ 500V & < 66kV | AA19: 43.2 | AB19: 49.68 | AF19: ≥ 500V & < 66kV | AG19: 43.24 | AH19: 49.73 | AL19: ≥ 500V & < 66kV | AM19: 43.2 | AN19: 49.68
A20: Excess NAC Megaflex | B20: ExNACMe | C20: 2 | D20: 3 | E20: ExNACMe23Y | G20: Excess NAC Nightsave Large | H20: ExNACNL | I20: 2 | J20: 3 | K20: ExNACNL23Y | M20: Excess NAC Miniflex | N20: ExNACMi | O20: 2 | P20: 3 | Q20: ExNACMi23Y | T20: ≥ 66kV & ≤ 132kV | U20: 49.49 | V20: 56.91 | Z20: ≥ 66kV & ≤ 132kV | AA20: 49.49 | AB20: 56.91 | AF20: ≥ 66kV & ≤ 132kV | AG20: 49.47 | AH20: 56.89 | AL20: ≥ 66kV & ≤ 132kV | AM20: 49.49 | AN20: 56.91
A21: Excess NAC Megaflex | B21: ExNACMe | C21: 2 | D21: 4 | E21: ExNACMe24Y | G21: Excess NAC Nightsave Large | H21: ExNACNL | I21: 2 | J21: 4 | K21: ExNACNL24Y | M21: Excess NAC Miniflex | N21: ExNACMi | O21: 2 | P21: 4 | Q21: ExNACMi24Y | T21: > 132kV* | U21: 43.13 | V21: 49.6 | Z21: > 132kV* | AA21: 43.13 | AB21: 49.6 | AF21: > 132kV* | AG21: 43.13 | AH21: 49.6 | AL21: > 132kV* | AM21: 43.13 | AN21: 49.6
A22: Excess NAC Megaflex | B22: ExNACMe | C22: 3 | D22: 1 | E22: ExNACMe31Y | G22: Excess NAC Nightsave Large | H22: ExNACNL | I22: 3 | J22: 1 | K22: ExNACNL31Y | M22: Excess NAC Miniflex | N22: ExNACMi | O22: 3 | P22: 1 | Q22: ExNACMi31Y | S22: > 900km | T22: < 500V | U22: 47.28 | V22: 54.37 | Y22: > 900km | Z22: < 500V | AA22: 47.28 | AB22: 54.37 | AE22: > 900km | AF22: < 500V | AG22: 47.26 | AH22: 54.35 | AK22: > 900km | AL22: < 500V | AM22: 47.28 | AN22: 54.37
A23: Excess NAC Megaflex | B23: ExNACMe | C23: 3 | D23: 2 | E23: ExNACMe32Y | G23: Excess NAC Nightsave Large | H23: ExNACNL | I23: 3 | J23: 2 | K23: ExNACNL32Y | M23: Excess NAC Miniflex | N23: ExNACMi | O23: 3 | P23: 2 | Q23: ExNACMi32Y | T23: ≥ 500V & < 66kV | U23: 43.37 | V23: 49.88 | Z23: ≥ 500V & < 66kV | AA23: 43.37 | AB23: 49.88 | AF23: ≥ 500V & < 66kV | AG23: 43.43 | AH23: 49.94 | AL23: ≥ 500V & < 66kV | AM23: 43.37 | AN23: 49.88
A24: Excess NAC Megaflex | B24: ExNACMe | C24: 3 | D24: 3 | E24: ExNACMe33Y | G24: Excess NAC Nightsave Large | H24: ExNACNL | I24: 3 | J24: 3 | K24: ExNACNL33Y | M24: Excess NAC Miniflex | N24: ExNACMi | O24: 3 | P24: 3 | Q24: ExNACMi33Y | T24: ≥ 66kV & ≤ 132kV | U24: 49.59 | V24: 57.03 | Z24: ≥ 66kV & ≤ 132kV | AA24: 49.59 | AB24: 57.03 | AF24: ≥ 66kV & ≤ 132kV | AG24: 49.56 | AH24: 56.99 | AL24: ≥ 66kV & ≤ 132kV | AM24: 49.59 | AN24: 57.03
A25: Excess NAC Megaflex | B25: ExNACMe | C25: 3 | D25: 4 | E25: ExNACMe34Y | G25: Excess NAC Nightsave Large | H25: ExNACNL | I25: 3 | J25: 4 | K25: ExNACNL34Y | M25: Excess NAC Miniflex | N25: ExNACMi | O25: 3 | P25: 4 | Q25: ExNACMi34Y | T25: > 132kV* | U25: 43.24 | V25: 49.73 | Z25: > 132kV* | AA25: 43.24 | AB25: 49.73 | AF25: > 132kV* | AG25: 43.24 | AH25: 49.73 | AL25: > 132kV* | AM25: 43.24 | AN25: 49.73
T26: * 132 kV or Transmission connected | Z26: * 132 kV or Transmission connected | AF26: * 132 kV or Transmission connected | AL26: * 132 kV or Transmission connected
S28: Urban - Excess NCC Nightsave Urban Small [Local authorities] | X28: Rural - Excess NCC Nightsave Rural [Local authorities] | AD28: Rural - Excess NCC Ruraflex [Local authorities]
U30: Excess NCC[R/kVA/m] | AA30: Excess NCC[R/kVA/m] | AG30: Excess NCC[R/kVA/m]
S31: Transmission zone | Y31: Transmission zone | AE31: Transmission zone
T32: Voltage | Z32: Voltage | AF32: Voltage
A33: Tariff | B33: Tariff nameBillcode | C33: Tx zone | D33: Voltage | E33: Billcode | G33: Tariff | H33: Tariff nameBillcode | I33: Tx zone | J33: Voltage | K33: Billcode | M33: Tariff | N33: Tariff nameBillcode | O33: Tx zone | P33: Voltage | Q33: Billcode | V33: VAT incl | AB33: VAT incl | AH33: VAT incl
A34: Excess NAC Nightsave Small | B34: ExNACNS | C34: 0 | D34: 1 | E34: =B34&C34&D34&IF($A$4="Non-municipal","N",IF($A$4="Municiple","Y","error")) -> ExNACNS01Y | G34: Excess NAC Nightsave Rural | H34: ExNACNR | I34: 0 | J34: 1 | K34: =H34&I34&J34&IF($A$4="Non-municipal","N",IF($A$4="Municiple","Y","error")) -> ExNACNR01Y | M34: Excess NAC Ruraflex | N34: ExNACRu | O34: 0 | P34: 1 | Q34: =N34&O34&P34&IF($A$4="Non-municipal","N",IF($A$4="Municiple","Y","error")) -> ExNACRu01Y | S34: ≤ 300km | T34: < 500V | U34: 46.94 | V34: =ROUND(U34 * (1 + VAT), 2) -> 53.98 | Y34: ≤ 300km | Z34: < 500V | AA34: 23.74 | AB34: =ROUND(AA34 * (1 + VAT), 2) -> 27.3 | AE34: ≤ 300km | AF34: < 500V | AG34: 33.13 | AH34: =ROUND(AG34 * (1 + VAT), 2) -> 38.1
A35: Excess NAC Nightsave Small | B35: ExNACNS | C35: 0 | D35: 2 | E35: =B35&C35&D35&IF($A$4="Non-municipal","N",IF($A$4="Municiple","Y","error")) -> ExNACNS02Y | G35: Excess NAC Nightsave Rural | H35: ExNACNR | I35: 0 | J35: 2 | K35: =H35&I35&J35&IF($A$4="Non-municipal","N",IF($A$4="Municiple","Y","error")) -> ExNACNR02Y | M35: Excess NAC Ruraflex | N35: ExNACRu | O35: 0 | P35: 2 | Q35: =N35&O35&P35&IF($A$4="Non-municipal","N",IF($A$4="Municiple","Y","error")) -> ExNACRu02Y | T35: ≥ 500V & < 66kV | U35: 42.95 | V35: 49.39 | Z35: ≥ 500V & ≤ 22kV | AA35: 21.8 | AB35: =ROUND(AA35 * (1 + VAT), 2) -> 25.07 | AF35: ≥ 500V & ≤ 22kV | AG35: 30.39 | AH35: =ROUND(AG35 * (1 + VAT), 2) -> 34.95
A36: Excess NAC Nightsave Small | B36: ExNACNS | C36: 0 | D36: 3 | E36: ExNACNS03Y | G36: Excess NAC Nightsave Rural | H36: ExNACNR | I36: 0 | J36: 3 | K36: ExNACNR03Y | M36: Excess NAC Ruraflex | N36: ExNACRu | O36: 0 | P36: 3 | Q36: ExNACRu03Y | T36: ≥ 66kV & ≤ 132kV | U36: 49.26 | V36: 56.65
A37: Excess NAC Nightsave Small | B37: ExNACNS | C37: 0 | D37: 4 | E37: ExNACNS04Y | G37: Excess NAC Nightsave Rural | H37: ExNACNR | I37: 0 | J37: 4 | K37: ExNACNR04Y | M37: Excess NAC Ruraflex | N37: ExNACRu | O37: 0 | P37: 4 | Q37: ExNACRu04Y | T37: > 132kV* | U37: 42.72 | V37: 49.13
A38: Excess NAC Nightsave Small | B38: ExNACNS | C38: 1 | D38: 1 | E38: ExNACNS11Y | G38: Excess NAC Nightsave Rural | H38: ExNACNR | I38: 1 | J38: 1 | K38: ExNACNR11Y | M38: Excess NAC Ruraflex | N38: ExNACRu | O38: 1 | P38: 1 | Q38: ExNACRu11Y | S38: > 300km and ≤ 600km | T38: < 500V | U38: 47 | V38: 54.05 | Y38: > 300km and ≤ 600km | Z38: < 500V | AA38: 23.78 | AB38: =ROUND(AA38 * (1 + VAT), 2) -> 27.35 | AE38: > 300km and ≤ 600km | AF38: < 500V | AG38: 33.27 | AH38: =ROUND(AG38 * (1 + VAT), 2) -> 38.26
A39: Excess NAC Nightsave Small | B39: ExNACNS | C39: 1 | D39: 2 | E39: ExNACNS12Y | G39: Excess NAC Nightsave Rural | H39: ExNACNR | I39: 1 | J39: 2 | K39: ExNACNR12Y | M39: Excess NAC Ruraflex | N39: ExNACRu | O39: 1 | P39: 2 | Q39: ExNACRu12Y | T39: ≥ 500V & < 66kV | U39: 43.12 | V39: 49.59 | Z39: ≥ 500V & ≤ 22kV | AA39: 21.88 | AB39: =ROUND(AA39 * (1 + VAT), 2) -> 25.16 | AF39: ≥ 500V & ≤ 22kV | AG39: 30.56 | AH39: =ROUND(AG39 * (1 + VAT), 2) -> 35.14
A40: Excess NAC Nightsave Small | B40: ExNACNS | C40: 1 | D40: 3 | E40: ExNACNS13Y | G40: Excess NAC Nightsave Rural | H40: ExNACNR | I40: 1 | J40: 3 | K40: ExNACNR13Y | M40: Excess NAC Ruraflex | N40: ExNACRu | O40: 1 | P40: 3 | Q40: ExNACRu13Y | T40: ≥ 66kV & ≤ 132kV | U40: 49.38 | V40: 56.79
A41: Excess NAC Nightsave Small | B41: ExNACNS | C41: 1 | D41: 4 | E41: ExNACNS14Y | G41: Excess NAC Nightsave Rural | H41: ExNACNR | I41: 1 | J41: 4 | K41: ExNACNR14Y | M41: Excess NAC Ruraflex | N41: ExNACRu | O41: 1 | P41: 4 | Q41: ExNACRu14Y | T41: > 132kV* | U41: 42.89 | V41: 49.32
A42: Excess NAC Nightsave Small | B42: ExNACNS | C42: 2 | D42: 1 | E42: ExNACNS21Y | G42: Excess NAC Nightsave Rural | H42: ExNACNR | I42: 2 | J42: 1 | K42: ExNACNR21Y | M42: Excess NAC Ruraflex | N42: ExNACRu | O42: 2 | P42: 1 | Q42: ExNACRu21Y | S42: > 600km and ≤ 900km | T42: < 500V | U42: 47.21 | V42: 54.29 | Y42: > 600km and ≤ 900km | Z42: < 500V | AA42: 24.02 | AB42: =ROUND(AA42 * (1 + VAT), 2) -> 27.62 | AE42: > 600km and ≤ 900km | AF42: < 500V | AG42: 33.45 | AH42: =ROUND(AG42 * (1 + VAT), 2) -> 38.47
A43: Excess NAC Nightsave Small | B43: ExNACNS | C43: 2 | D43: 2 | E43: ExNACNS22Y | G43: Excess NAC Nightsave Rural | H43: ExNACNR | I43: 2 | J43: 2 | K43: ExNACNR22Y | M43: Excess NAC Ruraflex | N43: ExNACRu | O43: 2 | P43: 2 | Q43: ExNACRu22Y | T43: ≥ 500V & < 66kV | U43: 43.2 | V43: 49.68 | Z43: ≥ 500V & ≤ 22kV | AA43: 22.03 | AB43: =ROUND(AA43 * (1 + VAT), 2) -> 25.33 | AF43: ≥ 500V & ≤ 22kV | AG43: 30.72 | AH43: =ROUND(AG43 * (1 + VAT), 2) -> 35.33
A44: Excess NAC Nightsave Small | B44: ExNACNS | C44: 2 | D44: 3 | E44: ExNACNS23Y | G44: Excess NAC Nightsave Rural | H44: ExNACNR | I44: 2 | J44: 3 | K44: ExNACNR23Y | M44: Excess NAC Ruraflex | N44: ExNACRu | O44: 2 | P44: 3 | Q44: ExNACRu23Y | T44: ≥ 66kV & ≤ 132kV | U44: 49.49 | V44: 56.91
A45: Excess NAC Nightsave Small | B45: ExNACNS | C45: 2 | D45: 4 | E45: ExNACNS24Y | G45: Excess NAC Nightsave Rural | H45: ExNACNR | I45: 2 | J45: 4 | K45: ExNACNR24Y | M45: Excess NAC Ruraflex | N45: ExNACRu | O45: 2 | P45: 4 | Q45: ExNACRu24Y | T45: > 132kV* | U45: 43.13 | V45: 49.6
A46: Excess NAC Nightsave Small | B46: ExNACNS | C46: 3 | D46: 1 | E46: ExNACNS31Y | G46: Excess NAC Nightsave Rural | H46: ExNACNR | I46: 3 | J46: 1 | K46: ExNACNR31Y | M46: Excess NAC Ruraflex | N46: ExNACRu | O46: 3 | P46: 1 | Q46: ExNACRu31Y | S46: > 900km | T46: < 500V | U46: 47.28 | V46: 54.37 | Y46: > 900km | Z46: < 500V | AA46: 24.05 | AB46: =ROUND(AA46 * (1 + VAT), 2) -> 27.66 | AE46: > 900km | AF46: < 500V | AG46: 33.54 | AH46: =ROUND(AG46 * (1 + VAT), 2) -> 38.57
A47: Excess NAC Nightsave Small | B47: ExNACNS | C47: 3 | D47: 2 | E47: ExNACNS32Y | G47: Excess NAC Nightsave Rural | H47: ExNACNR | I47: 3 | J47: 2 | K47: ExNACNR32Y | M47: Excess NAC Ruraflex | N47: ExNACRu | O47: 3 | P47: 2 | Q47: ExNACRu32Y | T47: ≥ 500V & < 66kV | U47: 43.37 | V47: 49.88 | Z47: ≥ 500V & ≤ 22kV | AA47: 22.04 | AB47: =ROUND(AA47 * (1 + VAT), 2) -> 25.35 | AF47: ≥ 500V & ≤ 22kV | AG47: 30.74 | AH47: =ROUND(AG47 * (1 + VAT), 2) -> 35.35
A48: Excess NAC Nightsave Small | B48: ExNACNS | C48: 3 | D48: 3 | E48: ExNACNS33Y | G48: Excess NAC Nightsave Rural | H48: ExNACNR | I48: 3 | J48: 3 | K48: ExNACNR33Y | M48: Excess NAC Ruraflex | N48: ExNACRu | O48: 3 | P48: 3 | Q48: ExNACRu33Y | T48: ≥ 66kV & ≤ 132kV | U48: 49.59 | V48: 57.03
A49: Excess NAC Nightsave Small | B49: ExNACNS | C49: 3 | D49: 4 | E49: ExNACNS34Y | G49: Excess NAC Nightsave Rural | H49: ExNACNR | I49: 3 | J49: 4 | K49: ExNACNR34Y | M49: Excess NAC Ruraflex | N49: ExNACRu | O49: 3 | P49: 4 | Q49: ExNACRu34Y | T49: > 132kV* | U49: 43.24 | V49: 49.73
T50: * 132 kV or Transmission connected

Sheet Gen Reconciliations
B2: Generator reconciliations
C4: Gen-wheeling tariff | G4: Gen-purchase tariff
C5: Tariff name | D5: Tariff rate | E5: Source | G5: Tariff name | H5: Tariff rate | I5: Source
C6: Gen-wheeling non Munic urban | D6: Energy: (credit) | E6: WEPS energy rate excluding losses | G6: Gen-purchase- urban | H6: Energy: | I6: WEPS energy rate excluding losses
D7: Affordability subsidy: (credit) | E7: same as WEPS | H7: Affordability subsidy: | I7: same as WEPS
D8: Admin charge: | E8: same as WEPS | H8: Admin charge: | I8: same as WEPS
D9: Other components: | E9: not applicable | H9: Other components: | I9: not applicable
C10: Gen-wheeling non Munic rural | D10: Energy: (credit) | E10: WEPS energy rate excluding losses | G10: Gen-purchase-rural | H10: Energy: | I10: WEPS energy rate excluding losses
D11: Admin charge: | E11: same as Ruraflex | H11: Admin charge: | I11: same as Ruraflex
D12: Other components: | E12: not applicable | H12: Other components: | I12: not applicable
C13: Gen-wheeling Munic urban | D13: Energy (Local): (credit) | E13: WEPS energy rate excluding losses (Local) | G13: Gen-purchase Munic urban | H13: Energy: | I13: WEPS energy rate excluding losses(Local)
D14: Admin charge: | E14: same as WEPS (local) | H14: Admin charge: | I14: same as WEPS (Local)
D15: Other components: | E15: not applicable | H15: Other components: | I15: not applicable
C16: Gen-wheeling Munic rural | D16: Energy (Local): (credit) | E16: WEPS energy rate excluding losses (Local) | G16: Gen-purchase Munic rural | H16: Energy: | I16: WEPS energy rate excluding losses(Local)
D17: Admin charge: | E17: same as Ruraflex (local) | H17: Admin charge: | I17: same as Ruraflex (Local)
D18: Other components: | E18: not applicable | H18: Other components: | I18: not applicable
C21: Gen-offset tariff
C22: Tariff name | D22: Tariff rate | E22: Source
C23: Gen-offset urban | D23: Energy: (credit) | E23: WEPS energy rate including losses (per Tx and voltage zone)
D24: Ancilliary service charge (credit): | E24: same as WEPS
D25: Affordability subsidy: (credit) | E25: same as WEPS
D26: Admin charge: | E26: same as WEPS
D27: Other components: | E27: not applicable
C28: Gen-offset rural | D28: Energy: (credit) | E28: Ruraflex energy rate (per Tx and voltage zone)
D29: Ancilliary service charge (credit): | E29: same as Ruraflex
D30: Admin charge: | E30: same as Ruraflex
D31: Other components: | E31: not applicable
C32: Gen-offset Homeflex | D32: Energy charge (credit) | E32: Equal to the active energy charge of Homeflex

Sheet Env levy
B2: Urban
B3: Ave c/kWh | C3: Column Labels
B4: Row Labels | C4: 0 | D4: 1 | E4: 2 | F4: 3 | G4: Grand Total
B5: 1 | C5: 4.244173496 | D5: 3.922922112 | E5: 3.952738211 | F5: 3.99518266 | G5: 4.230325642
B6: 2 | C6: 3.818605965 | D6: 3.856792025 | E6: 3.895359945 | F6: 3.934313544 | G6: 3.830031886
B7: 3 | C7: 3.6978496 | D7: 3.734828096 | E7: 3.772176377 | F7: 3.809898141 | G7: 3.749584404
B8: 4 | C8: 3.485023597 | D8: 3.519873833 | E8: 3.555072571 | F8: 0 | G8: 3.497836202
B9: Grand Total | C9: 3.768693197 | D9: 3.666474757 | E9: 3.798966039 | F9: 3.84820921 | G9: 3.760612171
B11: Rural pivot(excluding landrate)
B12: Ave c/kWh | C12: Column Labels
B13: Row Labels | C13: 0 | D13: 1 | E13: 2 | F13: 3 | G13: Grand Total
B14: 1 | C14: 4.017125899 | D14: 4.057297158 | E14: 4.097870129 | F14: 4.138848829 | G14: 4.064771786
B15: 2 | C15: 3.977159862 | D15: 4.01693146 | E15: 4.057100775 | F15: 4.097671783 | G15: 4.019422117
B16: Grand Total | C16: 3.992398248 | D16: 4.037020529 | E16: 4.075975827 | F16: 4.117029851 | G16: 4.039902702
B18: Landrate
B19: Ave c/kWh | C19: Column Labels
B20: Row Labels | C20: 0 | D20: Grand Total
B21: 1 | C21: 4.654296484 | D21: 4.654296484
B22: Grand Total | C22: 4.654296484 | D22: 4.654296484
